{"text_format":"1","workbook":"xlsx","n_sheets":7,"sheets":["Deckblatt","Anleitung","Allgemeine Projektdaten","I Eingabe Vorprüfung","II Eingabe Einreichplanung","Auswertung Vorprüfung","Auswertung Einreichplanung"],"not_rendered":{"charts":0,"images":2,"macros":1,"external_links":0,"defined_names":9,"comments":0,"pivot_tables":0},"unopened":[],"bounds":{"document_bytes":16777216,"sheet_cells":100000,"rows_first":2000,"rows_last":500,"rows_between":2000,"halvings":0,"cell_chars":16384,"cell_head_chars":4096},"cells_cut":0,"cells_raw":0,"read":"whole","date_system":"1900"}

{"sheet":"Deckblatt","index":0,"n_rows":35,"n_cols":11,"rows_kept":35,"cut":false,"hidden":false,"merged":[[16,3,16,10],[18,3,18,10],[19,3,19,10],[28,4,28,7],[29,4,29,7],[20,3,20,10],[33,2,33,11],[27,4,27,7],[21,3,21,10],[22,3,22,10],[23,3,23,10],[24,3,24,10],[26,3,26,10],[31,3,31,10],[3,3,3,8],[4,3,4,8],[12,2,12,11],[9,2,10,11],[11,2,11,8],[6,2,7,11]]}
[]
[]
[]
[null,null,null,"KRITERIENKATALOG / PFLICHTWASSER-LEITFADEN"]
[null,null,null,"DIGITALER PRÜFKATALOG"]
[]
[null,null,"Der Kriterienkatalog definiert die Wertigkeit von Fließgewässern. Er stellt eine objektive, standardisierte Entscheidungsgrundlage für die Naturschutzbehörde dar. Daneben werden im Kriterienkatalog Hinweise zur Projektierung abgefragt."]
[]
[]
[null,null,"Der Pflichtwasser-Leitfaden beinhaltet Grundlagen für die ökologische Planung von Wasserkraftanlagen an Fließgewässern mit einem Mittelwasserabfluss kleiner 20 m³/s."]
[]
[]
[null,null,"Der vorliegende Prüfkatalog wurde im Rahmen der Aktualisierung des Pflichtwasserleitfadens erstellt. Die enthaltenen digitalen Prüfblätter stellen eine praktische Hilfestellung für den Sachverständigen dar. Die Fragen beziehen sich stets auf den Kriterienkatalog (2008) und den Pflichtwasserleitfaden 2016 (2. Auflage)."]
[]
[]
[]
[null,null,null,"PFLICHTWASSERLEITFADEN 2016 & DIGITALER PRÜFKATALOG:"]
[]
[null,null,null,"Medieninhaber und Herausgeber sowie für den sachlichen Inhalt verantwortlich:"]
[null,null,null,"Land Steiermark,"]
[null,null,null,"Amt der Steiermärkischen Landesregierung"]
[null,null,null,"Abteilung 13 Umwelt und Raumordnung"]
[null,null,null,"Referat Naturschutz – Dr. Gerolf Forster"]
[null,null,null,"Stempfergasse 7, 8010 Graz"]
[null,null,null,"Download: www.verwaltung.steiermark.at/pflichtwasserleitfaden2016"]
[]
[null,null,null,"Projektrealisation:"]
[null,null,null,null,"Ziviltechnik KOFLER Umweltmanagement"]
[null,null,null,null,"Traföß 20, 8132 Pernegg a.d.Mur"]
[null,null,null,null,"office@zt-kofler.at, www.zt-kofler.at"]
[]
[null,null,null,"  "]
[]
[null,null,"Aus Gründen der besseren Lesbarkeit wurde darauf verzichtet, die männliche und die weibliche Form anzuführen. Selbstverständlich gelten sämtliche Personenbezeichnungen für beiderlei Geschlecht."]
[null,null,null,null,null,null,null,null,null,null,"2017-04-27"]

{"sheet":"Anleitung","index":1,"n_rows":50,"n_cols":4,"rows_kept":50,"cut":false,"hidden":false,"merged":[[2,3,2,10],[3,3,3,10],[7,3,7,10],[9,3,9,10],[29,3,29,10],[30,3,30,10],[10,3,10,10],[13,3,13,5],[15,3,15,5],[16,3,16,5],[17,3,17,5],[18,3,18,5],[49,3,49,10],[12,3,12,5],[14,3,14,5],[43,3,43,10],[44,3,44,10],[46,3,46,10],[31,3,31,10],[32,3,32,10],[36,3,36,5],[38,3,38,10],[40,3,40,10],[42,3,42,10],[20,3,20,10],[22,3,22,10],[26,3,26,10],[28,3,28,10]]}
[]
[]
[null,null,null,"KRITERIENKATALOG / PFLICHTWASSER-LEITFADEN:\nDIGITALER PRÜFKATALOG"]
[null,null,null,"ANLEITUNG ZUR HANDHABUNG"]
[]
[]
[]
[null,null,null,"Zum Aufbau des Prüfkataloges"]
[]
[null,null,null,"Der Prüfkatalog enthält Fragen, die sich auf die Ergebnisse der Prüfung mittels Kriterienkatalog* (VORPRÜFUNG) und die EINREICHPLANUNG beziehen."]
[null,null,null,"Der Prüfkatalog enthält folgende Registerblätter:"]
[]
[null,null,null,"·      Deckblatt"]
[null,null,null,"·      Anleitung"]
[null,null,null,"·      Allgemeine Projektdaten"]
[null,null,null,"·      I Eingabe Vorprüfung"]
[null,null,null,"·      II Eingabe Einreichplanung"]
[null,null,null,"·      Auswertung Vorprüfung"]
[null,null,null,"·      Auswertung Einreichplanung"]
[]
[null,null,null,"Die Registerblätter „I Eingabe Vorprüfung“ und „II Eingabe Einreichplanung“ sind für den Bearbeiter freigeschaltet und werden im Zuge der Bearbeitung mit den entsprechenden Informationen befüllt."]
[]
[null,null,null,"In den Registerblättern „Auswertung Vorprüfung“ und „Auswertung Einreichplanung“ werden die Ergebnisse der Eingabe in den Registerblättern „I Eingabe Vorprüfung“ und „II Eingabe Einreichplanung“ automatisiert zusammengeführt. Dies liefert ein übersichtliches Ergebnis, in dem jene Aspekte zusammenfassend dargestellt werden, deren Beurteilung noch offen oder kritisch ist.\nJene Aspekte, deren Beurteilung als unkritisch eingestuft wurde, sind in diesem zusammenfassenden Ergebnis nicht enthalten."]
[]
[]
[]
[null,null,null,"Zur Anwendung des Prüfkataloges"]
[]
[null,null,null,"1.    Aktivieren Sie Makros in Ihrem Excel (siehe unten: „Aktivierung von Makros“)."]
[null,null,null,"2.    Klicken Sie das Registerblatt „I Eingabe Vorprüfung“ oder „II Eingabe Einreichplanung“ für Ihre Eingabe an."]
[null,null,null,"3.  Die Beantwortung der Fragen erfolgt durch Auswahl der entsprechenden Antwort in der Spalte „Überprüfung“ (durch Anklicken der Zelle und Auswahl aus dem Drop-Down-Menü). In der Spalte „Beurteilung“ wird entsprechend der Antwortauswahl automatisch das Ergebnis „kritisch“, „offen“, „unkritisch“ oder \"nicht relevant\" angezeigt.\nWurde die Überprüfung von Ihnen durchgeführt, wählen Sie unter \"Überprüfung\" das jeweilige entsprechende Ergebnis Ihrer Überprüfung aus: \"überprüft: ...\". Ist eine Frage durch den Bearbeiter \"noch zu prüfen\", so wird die \"Beurteilung\"  stets als \"offen\" dargestellt. "]
[null,null,null,"4.    Das Kommentarfeld steht dem Bearbeiter für Anmerkungen zur Verfügung. Geben Sie hier bis zu 200 Zeichen ein. Fragen, welche die Beurteilung \"kritisch\" aufweisen, sollen im Kommentarfeld mit einer Begründung versehen werden.\nKommentare zu als \"offen\" oder \"kritisch\" beurteilten Fragen finden sich in der generierten Auswertung wieder. Kommentare zu Fragen mit der Beurteilung \"unkritisch\" werden in der Auswertung nicht angezeigt, da die Frage, wie oben angeführt, in der Auswertung zur Gänze nicht wiedergegeben wird. "]
[null,null,null,"5.    Für alle Registerblätter wurde ein Druckbereich definiert. Sie können daher sowohl die Auswertungen, als auch die Eingabeblätter ausdrucken oder als PDF speichern."]
[]
[]
[]
[null,null,null,"Aktivierung von Makros"]
[]
[null,null,null,"Wird in Ihrem Excel im oberen Fensterbereich eine Sicherheitswarnung angezeigt, klicken Sie auf „Optionen“ und wählen Sie in dem sich öffnenden Fenster die Option „Diesen Inhalt aktivieren“. Klicken Sie auf „OK“."]
[]
[null,null,null,"Sollte diese Anzeige nicht erscheinen, gehen Sie folgendermaßen vor:"]
[]
[null,null,null,"1.    Klicken Sie im linken oberen Bildschirmbereich auf die Microsoft Office-Schaltfläche."]
[null,null,null,"2.    Klicken Sie auf „Excel-Optionen“ – „Vertrauensstellungscenter“ – „Einstellungen für das Vertrauensstellungscenter“ – „Einstellungen für Makros“"]
[null,null,null,"3.    Wählen Sie „Alle Makros mit Benachrichtigung deaktivieren“ und klicken Sie auf „OK“."]
[]
[null,null,null,"Schließen Sie das Dokument und öffnen Sie es erneut. Nun erscheint die oben erwähnte Sicherheitswarnung. Klicken Sie auf „Optionen“ und aktivieren Sie diesen Inhalt."]
[]
[]
[null,null,null,"* KRITERIENKATALOG zur Ausweisung naturschutzfachlich hochwertiger Fließgewässer (-abschnitte) in der Steiermark (2008, Hrsg. Amt der Steiermärkischen Landesregierung, Fachabteilung 13 C)"]

{"sheet":"Allgemeine Projektdaten","index":2,"n_rows":44,"n_cols":4,"rows_kept":44,"cut":false,"hidden":false,"merged":[[2,3,2,7],[3,3,3,7],[43,3,43,5],[34,3,34,5],[31,3,31,5],[28,3,28,5],[22,3,22,5],[25,3,25,5],[40,3,40,5],[19,3,19,5],[37,3,37,5],[13,3,13,5],[16,3,16,5],[7,3,7,5],[10,3,10,5]]}
[]
[]
[null,null,null,"KRITERIENKATALOG / PFLICHTWASSER-LEITFADEN:\nDIGITALER PRÜFKATALOG"]
[null,null,null,"ALLGEMEINE PROJEKTDATEN"]
[]
[]
[]
[null,null,null,"Projektunterlagen übernommen am:"]
[]
[]
[null,null,null,"Zuständiger Bearbeiter (SV):"]
[]
[]
[null,null,null,"GZ:"]
[]
[]
[null,null,null,"Projekt:"]
[]
[]
[null,null,null,"Projektort (Gemeinde, Bezirk):"]
[]
[]
[null,null,null,"Name des Gewässers:"]
[]
[]
[null,null,null,"Flusskilometer (von - bis):"]
[]
[]
[null,null,null,"Konsenswerber:"]
[]
[]
[null,null,null,"Technischer Planer:"]
[]
[]
[null,null,null,"Ökologischer Planer:"]
[]
[]
[null,null,null,"Oberflächenwasserkörper:"]
[]
[]
[null,null,null,"Schutzgebiet betroffen:\n(ja [Name des Schutzgebietes] / nein)"]
[]
[]
[null,null,null,"Prüfkatalog zuletzt aktualisiert am:"]

{"sheet":"I Eingabe Vorprüfung","index":3,"n_rows":111,"n_cols":6,"rows_kept":111,"cut":false,"hidden":false,"merged":[[106,1,106,5],[108,1,108,5],[46,1,46,5],[70,1,70,5],[9,1,9,5],[26,1,26,5],[38,1,38,5],[30,1,30,5],[42,1,42,5],[34,1,34,5],[100,1,100,5],[61,1,61,5],[60,1,60,5],[65,1,65,5],[71,1,71,5],[77,1,77,5],[5,1,5,5],[7,1,7,5],[43,1,43,5],[83,1,83,5],[18,1,18,5],[8,1,8,5],[10,1,10,5],[53,1,53,5],[64,1,64,5],[25,1,25,5],[17,1,17,5],[37,1,37,5],[33,1,33,5],[29,1,29,5],[59,1,59,5],[47,1,47,5],[54,1,54,5],[82,1,82,5],[87,1,87,5],[99,1,99,5],[76,1,76,5],[88,1,88,5],[95,1,95,5],[93,1,93,5],[2,2,2,4],[1,2,1,4],[3,1,3,5],[0,1,0,5],[4,1,4,5]]}
[]
[null,"Projekt:","GZ:",null,null,"Prüfkatalog zuletzt aktualisiert am:"]
[null,{"$f":"IF('Allgemeine Projektdaten'!H17=\"\",\"\",'Allgemeine Projektdaten'!H17)","v":""},{"$f":"IF('Allgemeine Projektdaten'!H14=\"\",\"\",'Allgemeine Projektdaten'!H14)","v":""},null,null,{"$f":"IF('Allgemeine Projektdaten'!H44=\"\",\"\",'Allgemeine Projektdaten'!H44)","v":""}]
[]
[]
[null,"EINGABE VORPRÜFUNG (Ergebnisse der Prüfung mittels Kriterienkatalog)"]
[null,"Frage","Überprüfung",null,"Beurteilung","Kommentar"]
[]
[null,"I. FRAGEN ZUM VORPROJEKT AUF GRUNDLAGE DES STEIRISCHEN KRITERIENKATALOGES (2008)"]
[]
[null,"Allgemeine Fragen"]
[null,"Wurde der Kriterienkatalog angewendet?","noch zu prüfen",{"$f":"IF(C12=\"noch zu prüfen\",1,IF(C12=\"überprüft: nein\",2,IF(C12=\"überprüft: ja\",3)))","v":1},{"$f":"IF(C12=\"noch zu prüfen\",\"offen\",IF(C12=\"überprüft: nein\",\"kritisch\",IF(C12=\"überprüft: ja\",\"unkritisch\")))","v":"offen"}]
[null,"Sind die Unterlagen zum Kriterienkatalog vollständig und nachvollziehbar abgearbeitet/vorgelegt?","noch zu prüfen",1,{"$f":"IF(C13=\"noch zu prüfen\",\"offen\",IF(C13=\"überprüft: nein\",\"kritisch\",IF(C13=\"überprüft: ja\",\"unkritisch\")))","v":"offen"}]
[null,"Ist eine Hochwertigkeit bereits aufgrund eines Kriteriums (Kategorie A-Kriterium) ausgebildet?","noch zu prüfen",1,{"$f":"IF(C14=\"noch zu prüfen\",\"offen\",IF(C14=\"überprüft: nein\",\"unkritisch\",IF(C14=\"überprüft: ja\",\"kritisch\")))","v":"offen"}]
[4.44444444444444E+54,"Ist eine Hochwertigkeit aufgrund der Kombination von 2 Kategorie B-Kriterien ausgebildet?","noch zu prüfen",1,{"$f":"IF(C15=\"noch zu prüfen\",\"offen\",IF(C15=\"überprüft: nein\",\"unkritisch\",IF(C15=\"überprüft: ja\",\"kritisch\")))","v":"offen"}]
[null,"Ist eine Hochwertigkeit aufgrund der Kombination von 3 Kriterien aus unterschiedlichen Kriteriengruppen (A, B, und/oder C) ausgebildet?","noch zu prüfen",1,{"$f":"IF(C16=\"noch zu prüfen\",\"offen\",IF(C16=\"überprüft: nein\",\"unkritisch\",IF(C16=\"überprüft: ja\",\"kritisch\")))","v":"offen"}]
[null,"Ist eine Hochwertigkeit aufgrund der Kombination von 4 Kriterien aus unterschiedlichen Kriteriengruppen (A, B, und/oder C) ausgebildet?","noch zu prüfen",1,{"$f":"IF(C17=\"noch zu prüfen\",\"offen\",IF(C17=\"überprüft: nein\",\"unkritisch\",IF(C17=\"überprüft: ja\",\"kritisch\")))","v":"offen"}]
[]
[null,"Kriteriengruppe gewässermorphologische Sonderformen"]
[null,"Ist eine Schlucht gemäß Kriterienkatalog ausgebildet?","noch zu prüfen",{"$f":"IF(C20=\"noch zu prüfen\",1,IF(C20=\"überprüft: nein\",2,IF(C20=\"überprüft: ja A\",3,IF(C20=\"überprüft: ja B\",4,IF(C20=\"überprüft: ja C\",5)))))","v":1},{"$f":"IF(C20=\"noch zu prüfen\",\"offen\",IF(C20=\"überprüft: nein\",\"unkritisch\",\"kritisch\"))","v":"offen"}]
[null,"Ist eine Klamm gemäß Kriterienkatalog ausgebildet?","noch zu prüfen",{"$f":"IF(C21=\"noch zu prüfen\",1,IF(C21=\"überprüft: nein\",2,IF(C21=\"überprüft: ja A\",3,IF(C21=\"überprüft: ja B\",4,IF(C21=\"überprüft: ja C\",5)))))","v":1},{"$f":"IF(C21=\"noch zu prüfen\",\"offen\",IF(C21=\"überprüft: nein\",\"unkritisch\",\"kritisch\"))","v":"offen"}]
[null,"Ist ein Katarakt gemäß Kriterienkatalog ausgebildet?","noch zu prüfen",1,"offen"]
[null,"Ist ein Wasserfall gemäß Kriterienkatalog ausgebildet?","noch zu prüfen",1,"offen"]
[null,"Ist ein Kar gemäß Kriterienkatalog ausgebildet?","noch zu prüfen",{"$f":"IF(C24=\"noch zu prüfen\",1,IF(C24=\"überprüft: nein\",2,IF(C24=\"überprüft: ja A\",3,IF(C24=\"überprüft: ja B\",4,IF(C24=\"überprüft: ja C\",5)))))","v":1},"offen"]
[null,"Ist eine Quelle als Ursprung des Fließgewässers gemäß Kriterienkatalog ausgebildet?","noch zu prüfen",1,"offen"]
[]
[null,"Kriteriengruppe Gewässertypologie"]
[null,"Ist ein dem historischen Leitbild entsprechender, ausgeprägter mäandrierender Verlauf gemäß Kriterienkatalog ausgebildet?","noch zu prüfen",1,"offen"]
[null,"Ist ein dem historischen Leitbild entsprechender, ausgeprägter furkierender Verlauf gemäß Kriterienkatalog ausgebildet?","noch zu prüfen",1,"offen"]
[]
[null,"Kriteriengruppe Natürlichkeitsgrad"]
[null,"Ist eine Naturnähe gemäß Kriterienkatalog ausgebildet?","noch zu prüfen",1,"offen"]
[null,"Ist ein naturnaher Mündungsbereich gemäß Kriterienkatalog ausgebildet?","noch zu prüfen",1,"offen"]
[]
[null,"Kriteriengruppe Wohlfahrtsfunktion"]
[null,"Sind Fließgewässerabschnitte mit Wohlfahrtsfunktion gemäß Kriterienkatalog ausgebildet?","noch zu prüfen",1,"offen"]
[null,"Sind spirituell genutzte Orte oder Bauten gemäß Kriterienkatalog ausgebildet?","noch zu prüfen",1,"offen"]
[]
[null,"Kriteriengruppe Biotope"]
[null,"Sind fließgewässerspezifische Lebensraumtyp(en) Anhang I nach FFH-RL im Erhaltungszustand A gemäß Kriterienkatalog ausgebildet?","noch zu prüfen",1,"offen"]
[null,"Sind fließgewässerspezifische Lebensraumtyp(en) Anhang I nach FFH-RL im Erhaltungszustand B gemäß Kriterienkatalog ausgebildet?","noch zu prüfen",1,"offen"]
[null,"Sind fließgewässerspezifische Biotope nach Biotopkartierung Steiermark gemäß Kriterienkatalog ausgebildet?","noch zu prüfen",1,"offen"]
[]
[null,"Kriteriengruppe Tiere und Pflanzen"]
[null,"Sind Vorkommen einer naturschutzfachlich höchst bedeutenden Art gemäß Kriterienkatalog vorhanden bzw. dokumentiert?","noch zu prüfen",1,"offen"]
[null,"Sind Restvorkommen besonders seltener Zönosen gemäß Kriterienkatalog vorhanden bzw. dokumentiert?","noch zu prüfen",1,"offen"]
[]
[null,"Kriteriengruppe Allgemeine Gewässermorphologie"]
[null,"Ist eine ökomorphologische Bewertung gemäß Kriterienkatalog im Rhithral ausgebildet?","noch zu prüfen",1,"offen"]
[null,"Ist eine ökomorphologische Bewertung gemäß Kriterienkatalog im Potamal ausgebildet?","noch zu prüfen",1,"offen"]
[null,"Ist eine Regenerationsstrecke im Rhithral an energetisch bereits genutzten Fließgewässern gemäß Kriterienkatalog ausgebildet?","noch zu prüfen",1,"offen"]
[null,"Ist eine Regenerationsstrecke im Potamal an energetisch bereits genutzten Fließgewässern gemäß Kriterienkatalog ausgebildet?","noch zu prüfen",1,"offen"]
[null,"Ist eine Durchgängigkeit gemäß Kriterienkatalog  ausgebildet?","noch zu prüfen",1,"offen"]
[]
[null,"II. FRAGEN ZU DEN PROJEKTIERUNGSUNTERLAGEN (GEMÄß KRITERIENKATALOG, KAP. B)"]
[null,"Sind die wichtigsten Projektbestandteile planlich und textlich übersichtsmäßig dargestellt?","noch zu prüfen",{"$f":"IF(C56=\"noch zu prüfen\",1,IF(C56=\"überprüft: nein\",2,IF(C56=\"überprüft: ja\",3)))","v":1},{"$f":"IF(C56=\"noch zu prüfen\",\"offen\",IF(C56=\"überprüft: nein\",\"kritisch\",IF(C56=\"überprüft: ja\",\"unkritisch\")))","v":"offen"}]
[null,"Sind die wichtigsten hydrologischen/energetischen Kenngrößen angeführt?","noch zu prüfen",{"$f":"IF(C57=\"noch zu prüfen\",1,IF(C57=\"überprüft: nein\",2,IF(C57=\"überprüft: ja\",3)))","v":1},{"$f":"IF(C57=\"noch zu prüfen\",\"offen\",IF(C57=\"überprüft: nein\",\"kritisch\",IF(C57=\"überprüft: ja\",\"unkritisch\")))","v":"offen"}]
[null,"Welche Art der Pflichtwasserabgabe ist vorgesehen?","noch zu prüfen",{"$f":"IF(C58=\"noch zu prüfen\",1,IF(C58=\"überprüft: Dynamische\",6,IF(C58=\"überprüft: Gestaffelte\",7, IF(C58=\"überprüft: Konstante\",8,IF(C58=\"überprüft: keine\",9)))))","v":1},{"$f":"IF(C58=\"noch zu prüfen\",\"offen\",IF(C58=\"überprüft: Dynamische\",\"unkritisch\",IF(C58=\"überprüft: Gestaffelte\",\"unkritisch\",IF(C58=\"überprüft: Keine\",\"kritisch\",IF(C58=\"überprüft: Konstante\",\"kritisch\")))))","v":"offen"}]
[]
[null,"III. FRAGEN ZUR CHECKLISTE"]
[]
[null,"Allgemeine Fragen"]
[null,"Wurde die Checkliste gemäß Kriterienkatalog angewendet?","noch zu prüfen",{"$f":"IF(C63=\"noch zu prüfen\",1,IF(C63=\"überprüft: nein\",2,IF(C63=\"überprüft: ja\",3)))","v":1},{"$f":"IF(C63=\"noch zu prüfen\",\"offen\",IF(C63=\"überprüft: nein\",\"kritisch\",\"unkritisch\"))","v":"offen"}]
[null,"Sind die Unterlagen zur Checkliste vollständig und nachvollziehbar abgearbeitet/vorgelegt?","noch zu prüfen",{"$f":"IF(C64=\"noch zu prüfen\",1,IF(C64=\"überprüft: nein\",2,IF(C64=\"überprüft: ja\",3,)))","v":1},{"$f":"IF(C64=\"noch zu prüfen\",\"offen\",IF(C64=\"überprüft: nein\",\"kritisch\",\"unkritisch\"))","v":"offen"}]
[]
[null,"Prinzipielle Fragen des Gebiets- und Artenschutzes"]
[null,"Können Europaschutzgebiete durch Projektsbestandteile direkt oder indirekt (also etwa über den Wasserpfad, über Lärm o. ä., via Erschließung etc.) betroffen sein?","noch zu prüfen",{"$f":"IF(C67=\"noch zu prüfen\",1,IF(C67=\"überprüft: nein\",2,IF(C67=\"überprüft: ja\",3,)))","v":1},{"$f":"IF(C67=\"noch zu prüfen\",\"offen\",IF(C67=\"überprüft: nein\",\"unkritisch\",\"kritisch\"))","v":"offen"}]
[null,"Können anderweitige Schutzgebiete betroffen sein, deren Schutzzweck bzw. geltende Verbote durch Projektbestandteile berührt werden? ","noch zu prüfen",{"$f":"IF(C68=\"noch zu prüfen\",1,IF(C68=\"überprüft: nein\",2,IF(C68=\"überprüft: ja\",3,)))","v":1},{"$f":"IF(C68=\"noch zu prüfen\",\"offen\",IF(C68=\"überprüft: nein\",\"unkritisch\",\"kritisch\"))","v":"offen"}]
[null,"Ist die Verletzung artenschutzrechtlicher Verbote (insbesondere gemeinschaftsrechtlich begründeter) bereits jetzt erkennbar? Welche Arten / Verbote sind ggf. berührt?","noch zu prüfen",{"$f":"IF(C69=\"noch zu prüfen\",1,IF(C69=\"überprüft: nein\",2,IF(C69=\"überprüft: ja\",3,)))","v":1},{"$f":"IF(C69=\"noch zu prüfen\",\"offen\",IF(C69=\"überprüft: nein\",\"unkritisch\",\"kritisch\"))","v":"offen"}]
[null,"Werden Maßnahmen bzw. Optimierungen in der Planung zur Vermeidung oder Minderung von Konflikten gesetzt?","noch zu prüfen",{"$f":"IF(C70=\"noch zu prüfen\",1,IF(C70=\"überprüft: nein\",2,IF(C70=\"überprüft: ja\",3)))","v":1},{"$f":"IF(C70=\"noch zu prüfen\",\"offen\",IF(C70=\"überprüft: nein\",\"kritisch\",\"unkritisch\"))","v":"offen"}]
[]
[null,"Fragen zum Fachbereich Pflanzen, Tiere und deren Lebensräume"]
[null,"Kann aufgrund der räumlich-topographischen Situation eine dem erwarteten Fischinventar entsprechende Fischaufstiegshilfe umgesetzt werden?","noch zu prüfen",{"$f":"IF(C73=\"noch zu prüfen\",1,IF(C73=\"überprüft: nein\",2,IF(C73=\"überprüft: ja\",3,)))","v":1},{"$f":"IF(C73=\"noch zu prüfen\",\"offen\",IF(C73=\"überprüft: nein\",\"kritisch\",\"unkritisch\"))","v":"offen"}]
[null,"Werden gefährdete bzw. sensible und schlecht regenerierbare Biotoptypen durch Flächenverlust infolge Projektbestandteilen direkt betroffen oder können solche anderweitig beeinträchtigt werden?","noch zu prüfen",{"$f":"IF(C74=\"noch zu prüfen\",1,IF(C74=\"überprüft: nein\",2,IF(C74=\"überprüft: ja\",3,)))","v":1},{"$f":"IF(C74=\"noch zu prüfen\",\"offen\",IF(C74=\"überprüft: nein\",\"unkritisch\",\"kritisch\"))","v":"offen"}]
[null,"Liegen bereits jetzt Hinweise darauf vor, dass Lebensräume gefährdeter Tier- oder Pflanzenarten durch Flächenverlust infolge Projektbestandteilen direkt betroffen werden oder solche anderweitig beeinträchtigt werden könnten?","noch zu prüfen",{"$f":"IF(C75=\"noch zu prüfen\",1,IF(C75=\"überprüft: nein\",2,IF(C75=\"überprüft: ja\",3,)))","v":1},{"$f":"IF(C75=\"noch zu prüfen\",\"offen\",IF(C75=\"überprüft: nein\",\"unkritisch\",\"kritisch\"))","v":"offen"}]
[null,"Werden Maßnahmen bzw. Optimierungen in der Planung zur Vermeidung oder Minderung von Konflikten gesetzt?","noch zu prüfen",{"$f":"IF(C76=\"noch zu prüfen\",1,IF(C76=\"überprüft: nein\",2,IF(C76=\"überprüft: ja\",3)))","v":1},{"$f":"IF(C76=\"noch zu prüfen\",\"offen\",IF(C76=\"überprüft: nein\",\"kritisch\",\"unkritisch\"))","v":"offen"}]
[]
[null,"Fragen zum Fachbereich Natürlichkeitsgrad"]
[null,"Liegt das Projektgebiet in einer insgesamt besonders sensiblen Kulturlandschaft, die durch eine eher traditionelle/historische Landnutzung auch heute noch geprägt ist? Hierzu zählt insbesondere die Situation der durch Almen führenden Fließgewässer.","noch zu prüfen",{"$f":"IF(C79=\"noch zu prüfen\",1,IF(C79=\"überprüft: nein\",2,IF(C79=\"überprüft: ja\",3,)))","v":1},{"$f":"IF(C79=\"noch zu prüfen\",\"offen\",IF(C79=\"überprüft: nein\",\"unkritisch\",\"kritisch\"))","v":"offen"}]
[null,"Befinden sich im Projektgebiet oder im visuellen Wahrnehmungsfeld charaktervolle, vegetationsbestimmte Landschaftselemente (Einzelbäume, Baumgruppen/ Feldgehölze, Haine) in Kombination mit extensiven landwirtschaftlichen Nutzungen (z.B. Streuobstwiesen, 1 bis 2 mahdige Wiesen)?","noch zu prüfen",{"$f":"IF(C80=\"noch zu prüfen\",1,IF(C80=\"überprüft: nein\",2,IF(C80=\"überprüft: ja\",3,)))","v":1},{"$f":"IF(C80=\"noch zu prüfen\",\"offen\",IF(C80=\"überprüft: nein\",\"unkritisch\",\"kritisch\"))","v":"offen"}]
[null,"Finden sich im Projektgebiet Fließgewässerabschnitte, die prägnante und raumprägende, wasserumspülte Felsvorsprünge, Geländeabbrüche und Reliefnischen aufweisen?","noch zu prüfen",{"$f":"IF(C81=\"noch zu prüfen\",1,IF(C81=\"überprüft: nein\",2,IF(C81=\"überprüft: ja\",3,)))","v":1},{"$f":"IF(C81=\"noch zu prüfen\",\"offen\",IF(C81=\"überprüft: nein\",\"unkritisch\",\"kritisch\"))","v":"offen"}]
[null,"Werden Maßnahmen bzw. Optimierungen in der Planung zur Vermeidung oder Minderung von Konflikten gesetzt?","noch zu prüfen",{"$f":"IF(C82=\"noch zu prüfen\",1,IF(C82=\"überprüft: nein\",2,IF(C82=\"überprüft: ja\",3)))","v":1},{"$f":"IF(C82=\"noch zu prüfen\",\"offen\",IF(C82=\"überprüft: nein\",\"kritisch\",\"unkritisch\"))","v":"offen"}]
[]
[null,"Fragen zum Fachbereich Wohlfahrtsfunktion"]
[null,"Liegt das Projektgebiet in einem für die ruhige, landschaftsbezogene Erholung zumindest lokal wichtigen oder stark frequentierten Raum?","noch zu prüfen",{"$f":"IF(C85=\"noch zu prüfen\",1,IF(C85=\"überprüft: nein\",2,IF(C85=\"überprüft: ja\",3,)))","v":1},{"$f":"IF(C85=\"noch zu prüfen\",\"offen\",IF(C85=\"überprüft: nein\",\"unkritisch\",\"kritisch\"))","v":"offen"}]
[null,"Befinden sich im Projektgebiet oder im unmittelbaren Umfeld relevante Wanderwege oder andere Erholungseinrichtungen?","noch zu prüfen",{"$f":"IF(C86=\"noch zu prüfen\",1,IF(C86=\"überprüft: nein\",2,IF(C86=\"überprüft: ja\",3,)))","v":1},{"$f":"IF(C86=\"noch zu prüfen\",\"offen\",IF(C86=\"überprüft: nein\",\"unkritisch\",\"kritisch\"))","v":"offen"}]
[null,"Werden Maßnahmen bzw. Optimierungen in der Planung zur Vermeidung oder Minderung von Konflikten gesetzt?","noch zu prüfen",{"$f":"IF(C87=\"noch zu prüfen\",1,IF(C87=\"überprüft: nein\",2,IF(C87=\"überprüft: ja\",3)))","v":1},{"$f":"IF(C87=\"noch zu prüfen\",\"offen\",IF(C87=\"überprüft: nein\",\"kritisch\",\"unkritisch\"))","v":"offen"}]
[]
[null,"Sonstige Fragen"]
[null,"Liegen Hinweise darauf vor, dass es projektbedingt zur Beschädigung oder Vernichtung wissenschaftlich bedeutsamer Zeugnisse menschlichen, tierischen, pflanzlichen oder mineralischen Daseins kommen könnte (s. §2 Abs. 2 Stmk. NschG)? Beispiele sind fossile Tier- und Pflanzenvorkommen, besondere Mineralfundstätten oder besondere Bodenausprägungen.","noch zu prüfen",{"$f":"IF(C90=\"noch zu prüfen\",1,IF(C90=\"überprüft: nein\",2,IF(C90=\"überprüft: ja\",3,)))","v":1},{"$f":"IF(C90=\"noch zu prüfen\",\"offen\",IF(C90=\"überprüft: nein\",\"unkritisch\",\"kritisch\"))","v":"offen"}]
[null,"Liegt das Projektgebiet in einem durch öffentliche Mittel geförderten renaturierten Fließgewässerabschnitt (z.B. Life-Projekte)? Wenn ja, sofortige Abklärung der Umsetzbarkeit des geplanten Projektes mit dem Förderungswerber.","noch zu prüfen",{"$f":"IF(C91=\"noch zu prüfen\",1,IF(C91=\"überprüft: nein\",2,IF(C91=\"überprüft: ja\",3,)))","v":1},{"$f":"IF(C91=\"noch zu prüfen\",\"offen\",IF(C91=\"überprüft: nein\",\"unkritisch\",\"kritisch\"))","v":"offen"}]
[null,"Werden Maßnahmen bzw. Optimierungen in der Planung zur Vermeidung oder Minderung von Konflikten gesetzt?","noch zu prüfen",{"$f":"IF(C92=\"noch zu prüfen\",1,IF(C92=\"überprüft: nein\",2,IF(C92=\"überprüft: ja\",3)))","v":1},{"$f":"IF(C92=\"noch zu prüfen\",\"offen\",IF(C92=\"überprüft: nein\",\"kritisch\",\"unkritisch\"))","v":"offen"}]
[]
[null,"IV. FRAGEN ZUM ERHEBUNGSBOGEN"]
[]
[null,"Allgemeine Fragen"]
[null,"Wurde der Erhebungsbogen angewendet?","noch zu prüfen",{"$f":"IF(C97=\"noch zu prüfen\",1,IF(C97=\"überprüft: nein\",2,IF(C97=\"überprüft: ja\",3,)))","v":1},{"$f":"IF(C97=\"noch zu prüfen\",\"offen\",IF(C97=\"überprüft: nein\",\"kritisch\",\"unkritisch\"))","v":"offen"}]
[null,"Sind die Unterlagen zum Erhebungsbogen vollständig und nachvollziehbar abgearbeitet/vorgelegt?","noch zu prüfen",{"$f":"IF(C98=\"noch zu prüfen\",1,IF(C98=\"überprüft: nein\",2,IF(C98=\"überprüft: ja\",3,)))","v":1},{"$f":"IF(C98=\"noch zu prüfen\",\"offen\",IF(C98=\"überprüft: nein\",\"kritisch\",\"unkritisch\"))","v":"offen"}]
[null,"Stimmen die Angaben im Erhebungsbogen mit den Auswertungen zu den einzelnen Kriterien überein?","noch zu prüfen",{"$f":"IF(C99=\"noch zu prüfen\",1,IF(C99=\"überprüft: nein\",2,IF(C99=\"überprüft: ja\",3,)))","v":1},{"$f":"IF(C99=\"noch zu prüfen\",\"offen\",IF(C99=\"überprüft: nein\",\"kritisch\",\"unkritisch\"))","v":"offen"}]
[]
[null,"V. ERSTE FRAGEN ZUR EINREICHPLANUNG"]
[]
[null,"Sind aufgrund von Verordnungen und Bescheiden Verbote ohne Ausnahmeregelung gegeben, die einen Ausschließungsgrund darstellen?","noch zu prüfen",{"$f":"IF(C103=\"noch zu prüfen\",1,IF(C103=\"überprüft: nein\",2,IF(C103=\"überprüft: ja\",3,)))","v":1},{"$f":"IF(C103=\"noch zu prüfen\",\"offen\",IF(C103=\"überprüft: nein\",\"unkritisch\",\"kritisch\"))","v":"offen"}]
[null,"Liegt das Projektgebiet in einem von den Naturschutzbeauftragten empfohlenen Ausschließungsgebiet (Naturschutzgebiete §5, Abs.2 lit.b, lit.c, Naturdenkmäler, Geschützte Landschaftsteile, RAMSAR-Gebiete)? ","noch zu prüfen",{"$f":"IF(C104=\"noch zu prüfen\",1,IF(C104=\"überprüft: nein\",2,IF(C104=\"überprüft: ja\",3,)))","v":1},{"$f":"IF(C104=\"noch zu prüfen\",\"offen\",IF(C104=\"überprüft: nein\",\"unkritisch\",\"kritisch\"))","v":"offen"}]
[null,"Wurde in Schutzgebieten (Naturschutzgebiete §5 Abs. 2 lit.a, Naturparke, Europaschutzgebiete, Biogenetische Reservate, Landschaftsschutzgebiete) der besondere Schutzzweck berücksichtigt und bleibt dieser unberührt?","noch zu prüfen",{"$f":"IF(C105=\"noch zu prüfen\",1,IF(C105=\"überprüft: nein\",2,IF(C105=\"überprüft: ja\",3,)))","v":1},{"$f":"IF(C105=\"noch zu prüfen\",\"offen\",IF(C105=\"überprüft: nein\",\"kritisch\",\"unkritisch\"))","v":"offen"}]
[]
[null,"VI. FRAGEN ZUM ARTENSCHUTZ"]
[]
[null,"Potenzialabschätzung"]
[null,"Wurde eine Potenzialabschätzung zum Artenschutz bzw. zu naturschutzfachlich wertbestimmenden Arten durchgeführt?","noch zu prüfen",{"$f":"IF(C110=\"noch zu prüfen\",1,IF(C110=\"überprüft: nein\",2,IF(C110=\"überprüft: ja\",3,)))","v":1},{"$f":"IF(C110=\"noch zu prüfen\",\"offen\",IF(C110=\"überprüft: nein\",\"kritisch\",\"unkritisch\"))","v":"offen"}]
[null,"Ist auf Grundlage der Potenzialabschätzung mit geschützten Arten bzw. mit naturschutzfachlich wertbestimmenden Arten zu rechnen?\n(Ohne Ergebnisse detaillierter Untersuchungen, die im Einreichprojekt erfolgen.)","noch zu prüfen",1,{"$f":"IF(C111=\"noch zu prüfen\",\"offen\",IF(C111=\"überprüft: nein\",\"unkritisch\",\"kritisch\"))","v":"offen"}]

{"sheet":"II Eingabe Einreichplanung","index":4,"n_rows":164,"n_cols":6,"rows_kept":164,"cut":false,"hidden":false,"merged":[[158,1,158,5],[61,1,61,5],[109,1,109,5],[119,1,119,5],[124,1,124,5],[129,1,129,5],[128,1,128,5],[110,1,110,5],[115,1,115,5],[89,1,89,5],[99,1,99,5],[62,1,62,5],[146,1,146,5],[145,1,145,5],[15,1,15,5],[20,1,20,5],[22,1,22,5],[27,1,27,5],[40,1,40,5],[31,1,31,5],[29,1,29,5],[36,1,36,5],[28,1,28,5],[59,1,59,5],[54,1,54,5],[50,1,50,5],[46,1,46,5],[143,1,143,5],[133,1,133,5],[104,1,104,5],[63,1,63,5],[71,1,71,5],[0,50,0,54],[0,57,0,61],[0,64,0,68],[0,71,0,75],[0,78,0,82],[0,15,0,19],[0,22,0,26],[0,29,0,33],[0,36,0,40],[0,43,0,47],[41,1,41,5],[157,1,157,5],[4,1,4,5],[0,1,0,5],[0,8,0,12],[3,1,3,5],[147,1,147,5],[148,1,148,5],[5,1,5,5],[8,1,8,5],[12,1,12,5],[14,1,14,5],[7,1,7,5],[11,1,11,5],[13,1,13,5],[9,1,9,5],[79,1,79,5],[134,1,134,5],[0,190,0,194],[0,197,0,201],[0,204,0,208],[0,211,0,215],[0,218,0,222],[0,155,0,159],[0,162,0,166],[0,169,0,173],[0,176,0,180],[0,183,0,187],[0,120,0,124],[0,127,0,131],[0,134,0,138],[0,141,0,145],[0,148,0,152],[0,85,0,89],[0,92,0,96],[0,99,0,103],[0,106,0,110],[0,113,0,117],[0,330,0,334],[0,337,0,341],[0,344,0,348],[0,351,0,355],[0,358,0,362],[0,295,0,299],[0,302,0,306],[0,309,0,313],[0,316,0,320],[0,323,0,327],[0,260,0,264],[0,267,0,271],[0,274,0,278],[0,281,0,285],[0,288,0,292],[0,225,0,229],[0,232,0,236],[0,239,0,243],[0,246,0,250],[0,253,0,257],[0,470,0,474],[0,477,0,481],[0,484,0,488],[0,491,0,495],[0,498,0,502],[0,435,0,439],[0,442,0,446],[0,449,0,453],[0,456,0,460],[0,463,0,467],[0,400,0,404],[0,407,0,411],[0,414,0,418],[0,421,0,425],[0,428,0,432],[0,365,0,369],[0,372,0,376],[0,379,0,383],[0,386,0,390],[0,393,0,397],[0,610,0,614],[0,617,0,621],[0,624,0,628],[0,631,0,635],[0,638,0,642],[0,575,0,579],[0,582,0,586],[0,589,0,593],[0,596,0,600],[0,603,0,607],[0,540,0,544],[0,547,0,551],[0,554,0,558],[0,561,0,565],[0,568,0,572],[0,505,0,509],[0,512,0,516],[0,519,0,523],[0,526,0,530],[0,533,0,537],[0,750,0,754],[0,757,0,761],[0,764,0,768],[0,771,0,775],[0,778,0,782],[0,715,0,719],[0,722,0,726],[0,729,0,733],[0,736,0,740],[0,743,0,747],[0,680,0,684],[0,687,0,691],[0,694,0,698],[0,701,0,705],[0,708,0,712],[0,645,0,649],[0,652,0,656],[0,659,0,663],[0,666,0,670],[0,673,0,677],[0,890,0,894],[0,897,0,901],[0,904,0,908],[0,911,0,915],[0,918,0,922],[0,855,0,859],[0,862,0,866],[0,869,0,873],[0,876,0,880],[0,883,0,887],[0,820,0,824],[0,827,0,831],[0,834,0,838],[0,841,0,845],[0,848,0,852],[0,785,0,789],[0,792,0,796],[0,799,0,803],[0,806,0,810],[0,813,0,817],[0,1030,0,1034],[0,1037,0,1041],[0,1044,0,1048],[0,1051,0,1055],[0,1058,0,1062],[0,995,0,999],[0,1002,0,1006],[0,1009,0,1013],[0,1016,0,1020],[0,1023,0,1027],[0,960,0,964],[0,967,0,971],[0,974,0,978],[0,981,0,985],[0,988,0,992],[0,925,0,929],[0,932,0,936],[0,939,0,943],[0,946,0,950],[0,953,0,957],[0,1170,0,1174],[0,1177,0,1181],[0,1184,0,1188],[0,1191,0,1195],[0,1198,0,1202],[0,1135,0,1139],[0,1142,0,1146],[0,1149,0,1153],[0,1156,0,1160],[0,1163,0,1167],[0,1100,0,1104],[0,1107,0,1111],[0,1114,0,1118],[0,1121,0,1125],[0,1128,0,1132],[0,1065,0,1069],[0,1072,0,1076],[0,1079,0,1083],[0,1086,0,1090],[0,1093,0,1097],[0,1310,0,1314],[0,1317,0,1321],[0,1324,0,1328],[0,1331,0,1335],[0,1338,0,1342],[0,1275,0,1279],[0,1282,0,1286],[0,1289,0,1293],[0,1296,0,1300],[0,1303,0,1307],[0,1240,0,1244],[0,1247,0,1251],[0,1254,0,1258],[0,1261,0,1265],[0,1268,0,1272],[0,1205,0,1209],[0,1212,0,1216],[0,1219,0,1223],[0,1226,0,1230],[0,1233,0,1237],[0,1450,0,1454],[0,1457,0,1461],[0,1464,0,1468],[0,1471,0,1475],[0,1478,0,1482],[0,1415,0,1419],[0,1422,0,1426],[0,1429,0,1433],[0,1436,0,1440],[0,1443,0,1447],[0,1380,0,1384],[0,1387,0,1391],[0,1394,0,1398],[0,1401,0,1405],[0,1408,0,1412],[0,1345,0,1349],[0,1352,0,1356],[0,1359,0,1363],[0,1366,0,1370],[0,1373,0,1377],[0,1590,0,1594],[0,1597,0,1601],[0,1604,0,1608],[0,1611,0,1615],[0,1618,0,1622],[0,1555,0,1559],[0,1562,0,1566],[0,1569,0,1573],[0,1576,0,1580],[0,1583,0,1587],[0,1520,0,1524],[0,1527,0,1531],[0,1534,0,1538],[0,1541,0,1545],[0,1548,0,1552],[0,1485,0,1489],[0,1492,0,1496],[0,1499,0,1503],[0,1506,0,1510],[0,1513,0,1517],[0,1730,0,1734],[0,1737,0,1741],[0,1744,0,1748],[0,1751,0,1755],[0,1758,0,1762],[0,1695,0,1699],[0,1702,0,1706],[0,1709,0,1713],[0,1716,0,1720],[0,1723,0,1727],[0,1660,0,1664],[0,1667,0,1671],[0,1674,0,1678],[0,1681,0,1685],[0,1688,0,1692],[0,1625,0,1629],[0,1632,0,1636],[0,1639,0,1643],[0,1646,0,1650],[0,1653,0,1657],[0,1870,0,1874],[0,1877,0,1881],[0,1884,0,1888],[0,1891,0,1895],[0,1898,0,1902],[0,1835,0,1839],[0,1842,0,1846],[0,1849,0,1853],[0,1856,0,1860],[0,1863,0,1867],[0,1800,0,1804],[0,1807,0,1811],[0,1814,0,1818],[0,1821,0,1825],[0,1828,0,1832],[0,1765,0,1769],[0,1772,0,1776],[0,1779,0,1783],[0,1786,0,1790],[0,1793,0,1797],[0,2010,0,2014],[0,2017,0,2021],[0,2024,0,2028],[0,2031,0,2035],[0,2038,0,2042],[0,1975,0,1979],[0,1982,0,1986],[0,1989,0,1993],[0,1996,0,2000],[0,2003,0,2007],[0,1940,0,1944],[0,1947,0,1951],[0,1954,0,1958],[0,1961,0,1965],[0,1968,0,1972],[0,1905,0,1909],[0,1912,0,1916],[0,1919,0,1923],[0,1926,0,1930],[0,1933,0,1937],[0,2150,0,2154],[0,2157,0,2161],[0,2164,0,2168],[0,2171,0,2175],[0,2178,0,2182],[0,2115,0,2119],[0,2122,0,2126],[0,2129,0,2133],[0,2136,0,2140],[0,2143,0,2147],[0,2080,0,2084],[0,2087,0,2091],[0,2094,0,2098],[0,2101,0,2105],[0,2108,0,2112],[0,2045,0,2049],[0,2052,0,2056],[0,2059,0,2063],[0,2066,0,2070],[0,2073,0,2077],[0,2290,0,2294],[0,2297,0,2301],[0,2304,0,2308],[0,2311,0,2315],[0,2318,0,2322],[0,2255,0,2259],[0,2262,0,2266],[0,2269,0,2273],[0,2276,0,2280],[0,2283,0,2287],[0,2220,0,2224],[0,2227,0,2231],[0,2234,0,2238],[0,2241,0,2245],[0,2248,0,2252],[0,2185,0,2189],[0,2192,0,2196],[0,2199,0,2203],[0,2206,0,2210],[0,2213,0,2217],[0,2430,0,2434],[0,2437,0,2441],[0,2444,0,2448],[0,2451,0,2455],[0,2458,0,2462],[0,2395,0,2399],[0,2402,0,2406],[0,2409,0,2413],[0,2416,0,2420],[0,2423,0,2427],[0,2360,0,2364],[0,2367,0,2371],[0,2374,0,2378],[0,2381,0,2385],[0,2388,0,2392],[0,2325,0,2329],[0,2332,0,2336],[0,2339,0,2343],[0,2346,0,2350],[0,2353,0,2357],[0,2570,0,2574],[0,2577,0,2581],[0,2584,0,2588],[0,2591,0,2595],[0,2598,0,2602],[0,2535,0,2539],[0,2542,0,2546],[0,2549,0,2553],[0,2556,0,2560],[0,2563,0,2567],[0,2500,0,2504],[0,2507,0,2511],[0,2514,0,2518],[0,2521,0,2525],[0,2528,0,2532],[0,2465,0,2469],[0,2472,0,2476],[0,2479,0,2483],[0,2486,0,2490],[0,2493,0,2497],[0,2710,0,2714],[0,2717,0,2721],[0,2724,0,2728],[0,2731,0,2735],[0,2738,0,2742],[0,2675,0,2679],[0,2682,0,2686],[0,2689,0,2693],[0,2696,0,2700],[0,2703,0,2707],[0,2640,0,2644],[0,2647,0,2651],[0,2654,0,2658],[0,2661,0,2665],[0,2668,0,2672],[0,2605,0,2609],[0,2612,0,2616],[0,2619,0,2623],[0,2626,0,2630],[0,2633,0,2637],[0,2850,0,2854],[0,2857,0,2861],[0,2864,0,2868],[0,2871,0,2875],[0,2878,0,2882],[0,2815,0,2819],[0,2822,0,2826],[0,2829,0,2833],[0,2836,0,2840],[0,2843,0,2847],[0,2780,0,2784],[0,2787,0,2791],[0,2794,0,2798],[0,2801,0,2805],[0,2808,0,2812],[0,2745,0,2749],[0,2752,0,2756],[0,2759,0,2763],[0,2766,0,2770],[0,2773,0,2777],[0,2990,0,2994],[0,2997,0,3001],[0,3004,0,3008],[0,3011,0,3015],[0,3018,0,3022],[0,2955,0,2959],[0,2962,0,2966],[0,2969,0,2973],[0,2976,0,2980],[0,2983,0,2987],[0,2920,0,2924],[0,2927,0,2931],[0,2934,0,2938],[0,2941,0,2945],[0,2948,0,2952],[0,2885,0,2889],[0,2892,0,2896],[0,2899,0,2903],[0,2906,0,2910],[0,2913,0,2917],[0,3130,0,3134],[0,3137,0,3141],[0,3144,0,3148],[0,3151,0,3155],[0,3158,0,3162],[0,3095,0,3099],[0,3102,0,3106],[0,3109,0,3113],[0,3116,0,3120],[0,3123,0,3127],[0,3060,0,3064],[0,3067,0,3071],[0,3074,0,3078],[0,3081,0,3085],[0,3088,0,3092],[0,3025,0,3029],[0,3032,0,3036],[0,3039,0,3043],[0,3046,0,3050],[0,3053,0,3057],[0,3270,0,3274],[0,3277,0,3281],[0,3284,0,3288],[0,3291,0,3295],[0,3298,0,3302],[0,3235,0,3239],[0,3242,0,3246],[0,3249,0,3253],[0,3256,0,3260],[0,3263,0,3267],[0,3200,0,3204],[0,3207,0,3211],[0,3214,0,3218],[0,3221,0,3225],[0,3228,0,3232],[0,3165,0,3169],[0,3172,0,3176],[0,3179,0,3183],[0,3186,0,3190],[0,3193,0,3197],[0,3410,0,3414],[0,3417,0,3421],[0,3424,0,3428],[0,3431,0,3435],[0,3438,0,3442],[0,3375,0,3379],[0,3382,0,3386],[0,3389,0,3393],[0,3396,0,3400],[0,3403,0,3407],[0,3340,0,3344],[0,3347,0,3351],[0,3354,0,3358],[0,3361,0,3365],[0,3368,0,3372],[0,3305,0,3309],[0,3312,0,3316],[0,3319,0,3323],[0,3326,0,3330],[0,3333,0,3337],[0,3550,0,3554],[0,3557,0,3561],[0,3564,0,3568],[0,3571,0,3575],[0,3578,0,3582],[0,3515,0,3519],[0,3522,0,3526],[0,3529,0,3533],[0,3536,0,3540],[0,3543,0,3547],[0,3480,0,3484],[0,3487,0,3491],[0,3494,0,3498],[0,3501,0,3505],[0,3508,0,3512],[0,3445,0,3449],[0,3452,0,3456],[0,3459,0,3463],[0,3466,0,3470],[0,3473,0,3477],[0,3690,0,3694],[0,3697,0,3701],[0,3704,0,3708],[0,3711,0,3715],[0,3718,0,3722],[0,3655,0,3659],[0,3662,0,3666],[0,3669,0,3673],[0,3676,0,3680],[0,3683,0,3687],[0,3620,0,3624],[0,3627,0,3631],[0,3634,0,3638],[0,3641,0,3645],[0,3648,0,3652],[0,3585,0,3589],[0,3592,0,3596],[0,3599,0,3603],[0,3606,0,3610],[0,3613,0,3617],[0,3830,0,3834],[0,3837,0,3841],[0,3844,0,3848],[0,3851,0,3855],[0,3858,0,3862],[0,3795,0,3799],[0,3802,0,3806],[0,3809,0,3813],[0,3816,0,3820],[0,3823,0,3827],[0,3760,0,3764],[0,3767,0,3771],[0,3774,0,3778],[0,3781,0,3785],[0,3788,0,3792],[0,3725,0,3729],[0,3732,0,3736],[0,3739,0,3743],[0,3746,0,3750],[0,3753,0,3757],[0,3970,0,3974],[0,3977,0,3981],[0,3984,0,3988],[0,3991,0,3995],[0,3998,0,4002],[0,3935,0,3939],[0,3942,0,3946],[0,3949,0,3953],[0,3956,0,3960],[0,3963,0,3967],[0,3900,0,3904],[0,3907,0,3911],[0,3914,0,3918],[0,3921,0,3925],[0,3928,0,3932],[0,3865,0,3869],[0,3872,0,3876],[0,3879,0,3883],[0,3886,0,3890],[0,3893,0,3897],[0,4110,0,4114],[0,4117,0,4121],[0,4124,0,4128],[0,4131,0,4135],[0,4138,0,4142],[0,4075,0,4079],[0,4082,0,4086],[0,4089,0,4093],[0,4096,0,4100],[0,4103,0,4107],[0,4040,0,4044],[0,4047,0,4051],[0,4054,0,4058],[0,4061,0,4065],[0,4068,0,4072],[0,4005,0,4009],[0,4012,0,4016],[0,4019,0,4023],[0,4026,0,4030],[0,4033,0,4037],[0,4250,0,4254],[0,4257,0,4261],[0,4264,0,4268],[0,4271,0,4275],[0,4278,0,4282],[0,4215,0,4219],[0,4222,0,4226],[0,4229,0,4233],[0,4236,0,4240],[0,4243,0,4247],[0,4180,0,4184],[0,4187,0,4191],[0,4194,0,4198],[0,4201,0,4205],[0,4208,0,4212],[0,4145,0,4149],[0,4152,0,4156],[0,4159,0,4163],[0,4166,0,4170],[0,4173,0,4177],[0,4390,0,4394],[0,4397,0,4401],[0,4404,0,4408],[0,4411,0,4415],[0,4418,0,4422],[0,4355,0,4359],[0,4362,0,4366],[0,4369,0,4373],[0,4376,0,4380],[0,4383,0,4387],[0,4320,0,4324],[0,4327,0,4331],[0,4334,0,4338],[0,4341,0,4345],[0,4348,0,4352],[0,4285,0,4289],[0,4292,0,4296],[0,4299,0,4303],[0,4306,0,4310],[0,4313,0,4317],[0,4530,0,4534],[0,4537,0,4541],[0,4544,0,4548],[0,4551,0,4555],[0,4558,0,4562],[0,4495,0,4499],[0,4502,0,4506],[0,4509,0,4513],[0,4516,0,4520],[0,4523,0,4527],[0,4460,0,4464],[0,4467,0,4471],[0,4474,0,4478],[0,4481,0,4485],[0,4488,0,4492],[0,4425,0,4429],[0,4432,0,4436],[0,4439,0,4443],[0,4446,0,4450],[0,4453,0,4457],[0,4670,0,4674],[0,4677,0,4681],[0,4684,0,4688],[0,4691,0,4695],[0,4698,0,4702],[0,4635,0,4639],[0,4642,0,4646],[0,4649,0,4653],[0,4656,0,4660],[0,4663,0,4667],[0,4600,0,4604],[0,4607,0,4611],[0,4614,0,4618],[0,4621,0,4625],[0,4628,0,4632],[0,4565,0,4569],[0,4572,0,4576],[0,4579,0,4583],[0,4586,0,4590],[0,4593,0,4597],[0,4810,0,4814],[0,4817,0,4821],[0,4824,0,4828],[0,4831,0,4835],[0,4838,0,4842],[0,4775,0,4779],[0,4782,0,4786],[0,4789,0,4793],[0,4796,0,4800],[0,4803,0,4807],[0,4740,0,4744],[0,4747,0,4751],[0,4754,0,4758],[0,4761,0,4765],[0,4768,0,4772],[0,4705,0,4709],[0,4712,0,4716],[0,4719,0,4723],[0,4726,0,4730],[0,4733,0,4737],[0,4950,0,4954],[0,4957,0,4961],[0,4964,0,4968],[0,4971,0,4975],[0,4978,0,4982],[0,4915,0,4919],[0,4922,0,4926],[0,4929,0,4933],[0,4936,0,4940],[0,4943,0,4947],[0,4880,0,4884],[0,4887,0,4891],[0,4894,0,4898],[0,4901,0,4905],[0,4908,0,4912],[0,4845,0,4849],[0,4852,0,4856],[0,4859,0,4863],[0,4866,0,4870],[0,4873,0,4877],[0,5090,0,5094],[0,5097,0,5101],[0,5104,0,5108],[0,5111,0,5115],[0,5118,0,5122],[0,5055,0,5059],[0,5062,0,5066],[0,5069,0,5073],[0,5076,0,5080],[0,5083,0,5087],[0,5020,0,5024],[0,5027,0,5031],[0,5034,0,5038],[0,5041,0,5045],[0,5048,0,5052],[0,4985,0,4989],[0,4992,0,4996],[0,4999,0,5003],[0,5006,0,5010],[0,5013,0,5017],[0,5230,0,5234],[0,5237,0,5241],[0,5244,0,5248],[0,5251,0,5255],[0,5258,0,5262],[0,5195,0,5199],[0,5202,0,5206],[0,5209,0,5213],[0,5216,0,5220],[0,5223,0,5227],[0,5160,0,5164],[0,5167,0,5171],[0,5174,0,5178],[0,5181,0,5185],[0,5188,0,5192],[0,5125,0,5129],[0,5132,0,5136],[0,5139,0,5143],[0,5146,0,5150],[0,5153,0,5157],[0,5370,0,5374],[0,5377,0,5381],[0,5384,0,5388],[0,5391,0,5395],[0,5398,0,5402],[0,5335,0,5339],[0,5342,0,5346],[0,5349,0,5353],[0,5356,0,5360],[0,5363,0,5367],[0,5300,0,5304],[0,5307,0,5311],[0,5314,0,5318],[0,5321,0,5325],[0,5328,0,5332],[0,5265,0,5269],[0,5272,0,5276],[0,5279,0,5283],[0,5286,0,5290],[0,5293,0,5297],[0,5510,0,5514],[0,5517,0,5521],[0,5524,0,5528],[0,5531,0,5535],[0,5538,0,5542],[0,5475,0,5479],[0,5482,0,5486],[0,5489,0,5493],[0,5496,0,5500],[0,5503,0,5507],[0,5440,0,5444],[0,5447,0,5451],[0,5454,0,5458],[0,5461,0,5465],[0,5468,0,5472],[0,5405,0,5409],[0,5412,0,5416],[0,5419,0,5423],[0,5426,0,5430],[0,5433,0,5437],[0,5650,0,5654],[0,5657,0,5661],[0,5664,0,5668],[0,5671,0,5675],[0,5678,0,5682],[0,5615,0,5619],[0,5622,0,5626],[0,5629,0,5633],[0,5636,0,5640],[0,5643,0,5647],[0,5580,0,5584],[0,5587,0,5591],[0,5594,0,5598],[0,5601,0,5605],[0,5608,0,5612],[0,5545,0,5549],[0,5552,0,5556],[0,5559,0,5563],[0,5566,0,5570],[0,5573,0,5577],[0,5790,0,5794],[0,5797,0,5801],[0,5804,0,5808],[0,5811,0,5815],[0,5818,0,5822],[0,5755,0,5759],[0,5762,0,5766],[0,5769,0,5773],[0,5776,0,5780],[0,5783,0,5787],[0,5720,0,5724],[0,5727,0,5731],[0,5734,0,5738],[0,5741,0,5745],[0,5748,0,5752],[0,5685,0,5689],[0,5692,0,5696],[0,5699,0,5703],[0,5706,0,5710],[0,5713,0,5717],[0,5930,0,5934],[0,5937,0,5941],[0,5944,0,5948],[0,5951,0,5955],[0,5958,0,5962],[0,5895,0,5899],[0,5902,0,5906],[0,5909,0,5913],[0,5916,0,5920],[0,5923,0,5927],[0,5860,0,5864],[0,5867,0,5871],[0,5874,0,5878],[0,5881,0,5885],[0,5888,0,5892],[0,5825,0,5829],[0,5832,0,5836],[0,5839,0,5843],[0,5846,0,5850],[0,5853,0,5857],[0,6070,0,6074],[0,6077,0,6081],[0,6084,0,6088],[0,6091,0,6095],[0,6098,0,6102],[0,6035,0,6039],[0,6042,0,6046],[0,6049,0,6053],[0,6056,0,6060],[0,6063,0,6067],[0,6000,0,6004],[0,6007,0,6011],[0,6014,0,6018],[0,6021,0,6025],[0,6028,0,6032],[0,5965,0,5969],[0,5972,0,5976],[0,5979,0,5983],[0,5986,0,5990],[0,5993,0,5997],[0,6210,0,6214],[0,6217,0,6221],[0,6224,0,6228],[0,6231,0,6235],[0,6238,0,6242],[0,6175,0,6179],[0,6182,0,6186],[0,6189,0,6193],[0,6196,0,6200],[0,6203,0,6207],[0,6140,0,6144],[0,6147,0,6151],[0,6154,0,6158],[0,6161,0,6165],[0,6168,0,6172],[0,6105,0,6109],[0,6112,0,6116],[0,6119,0,6123],[0,6126,0,6130],[0,6133,0,6137],[0,6350,0,6354],[0,6357,0,6361],[0,6364,0,6368],[0,6371,0,6375],[0,6378,0,6382],[0,6315,0,6319],[0,6322,0,6326],[0,6329,0,6333],[0,6336,0,6340],[0,6343,0,6347],[0,6280,0,6284],[0,6287,0,6291],[0,6294,0,6298],[0,6301,0,6305],[0,6308,0,6312],[0,6245,0,6249],[0,6252,0,6256],[0,6259,0,6263],[0,6266,0,6270],[0,6273,0,6277],[0,6490,0,6494],[0,6497,0,6501],[0,6504,0,6508],[0,6511,0,6515],[0,6518,0,6522],[0,6455,0,6459],[0,6462,0,6466],[0,6469,0,6473],[0,6476,0,6480],[0,6483,0,6487],[0,6420,0,6424],[0,6427,0,6431],[0,6434,0,6438],[0,6441,0,6445],[0,6448,0,6452],[0,6385,0,6389],[0,6392,0,6396],[0,6399,0,6403],[0,6406,0,6410],[0,6413,0,6417],[0,6630,0,6634],[0,6637,0,6641],[0,6644,0,6648],[0,6651,0,6655],[0,6658,0,6662],[0,6595,0,6599],[0,6602,0,6606],[0,6609,0,6613],[0,6616,0,6620],[0,6623,0,6627],[0,6560,0,6564],[0,6567,0,6571],[0,6574,0,6578],[0,6581,0,6585],[0,6588,0,6592],[0,6525,0,6529],[0,6532,0,6536],[0,6539,0,6543],[0,6546,0,6550],[0,6553,0,6557]],"merged_total":2391,"flags":["merged_cut"]}
[]
[null,"Projekt:","GZ:",null,null,"Prüfkatalog zuletzt aktualisiert am:"]
[null,{"$f":"IF('Allgemeine Projektdaten'!H17=\"\",\"\",'Allgemeine Projektdaten'!H17)","v":""},{"$f":"IF('Allgemeine Projektdaten'!H14=\"\",\"\",'Allgemeine Projektdaten'!H14)","v":""},null,null,{"$f":"IF('Allgemeine Projektdaten'!H44=\"\",\"\",'Allgemeine Projektdaten'!H44)","v":""}]
[]
[]
[null,"EINGABE EINREICHPLANUNG"]
[null,"Frage","Überprüfung",null,"Beurteilung","Kommentar"]
[]
[null,"I. GRUNDSATZFRAGE ZUM VORPROJEKT AUF GRUNDLAGE DES STEIRISCHEN KRITERIENKATALOGES (2008)"]
[]
[null,"Ist die Betroffenheit eines hochwertigen Fließgewässerabschnitts im projektrelevanten Betrachtungsraum gemäß steirischem Kriterienkatalog mit Sicherheit ausgeschlossen?","noch zu prüfen",{"$f":"IF(C11=\"noch zu prüfen\",1,IF(C11=\"überprüft: nein\",2,IF(C11=\"überprüft: ja\",3)))","v":1},{"$f":"IF(C11=\"noch zu prüfen\",\"offen\",IF(C11=\"überprüft: nein\",\"kritisch\",IF(C11=\"überprüft: ja\",\"unkritisch\")))","v":"offen"}]
[]
[null,"II. FRAGEN ZUM EINREICHPROJEKT AUF GRUNDLAGE DES PFLICHTWASSERLEITFADENS (2. Aufl., 2016)"]
[]
[null,"Projektrelevante Daten: Abfragbare Daten"]
[null,"Daten zu Schutzgebieten"]
[null,"Sind Schutzgebiete internationaler Schutzkategorien betroffen?","noch zu prüfen",{"$f":"IF(C17=\"noch zu prüfen\",1,IF(C17=\"überprüft: nein\",2,IF(C17=\"überprüft: ja\",3)))","v":1},{"$f":"IF(C17=\"noch zu prüfen\",\"offen\",IF(C17=\"überprüft: nein\",\"unkritisch\",IF(C17=\"überprüft: ja\",\"kritisch\")))","v":"offen"}]
[null,"Sind naturschutzrechtliche Schutzgebiete nach Landesrecht STMK betroffen?","noch zu prüfen",{"$f":"IF(C18=\"noch zu prüfen\",1,IF(C18=\"überprüft: nein\",2,IF(C18=\"überprüft: ja\",3)))","v":1},{"$f":"IF(C18=\"noch zu prüfen\",\"offen\",IF(C18=\"überprüft: nein\",\"unkritisch\",IF(C18=\"überprüft: ja\",\"kritisch\")))","v":"offen"}]
[null,"Sind A-wertige Fließgewässer nach dem Kriterienkatalog betroffen?","noch zu prüfen",{"$f":"IF(C19=\"noch zu prüfen\",1,IF(C19=\"überprüft: nein\",2,IF(C19=\"überprüft: ja\",3)))","v":1},{"$f":"IF(C19=\"noch zu prüfen\",\"offen\",IF(C19=\"überprüft: nein\",\"unkritisch\",IF(C19=\"überprüft: ja\",\"kritisch\")))","v":"offen"}]
[null,"Sind Wasserschutz- und/oder Wasserschongebiete betroffen?","noch zu prüfen",{"$f":"IF(C20=\"noch zu prüfen\",1,IF(C20=\"überprüft: nein\",2,IF(C20=\"überprüft: ja\",3)))","v":1},{"$f":"IF(C20=\"noch zu prüfen\",\"offen\",IF(C20=\"überprüft: nein\",\"unkritisch\",IF(C20=\"überprüft: ja\",\"kritisch\")))","v":"offen"}]
[null,"Gebietsbezogene Daten"]
[null,"Sind gebietsbezogene Daten zur Raumplanung bzw. zu hochwertigen Biotopen dokumentiert bzw. ausreichend berücksichtigt?","noch zu prüfen",1,{"$f":"IF(C22=\"noch zu prüfen\",\"offen\",IF(C22=\"überprüft: nein\",\"kritisch\",IF(C22=\"überprüft: ja\",\"unkritisch\")))","v":"offen"}]
[null,"Allgemeine Kenndaten zum Gewässer"]
[null,"Liegt ein aktuelles hydrologisches Datenblatt bzw. Gutachten vor? ","noch zu prüfen",1,{"$f":"IF(C24=\"noch zu prüfen\",\"offen\",IF(C24=\"überprüft: nein\",\"kritisch\",IF(C24=\"überprüft: ja\",\"unkritisch\")))","v":"offen"}]
[null,"Sind die Werte MQ, MJNQ und NNQ im hydrologischen Datenblatt ausgewiesen?","noch zu prüfen",1,{"$f":"IF(C25=\"noch zu prüfen\",\"offen\",IF(C25=\"überprüft: nein\",\"kritisch\",IF(C25=\"überprüft: ja\",\"unkritisch\")))","v":"offen"}]
[null,"Ist ein Wasserkörper gemäß NGP durch das Projekt betroffen und dessen ökologischer Zustand mit sehr gut ausgewiesen?","noch zu prüfen",1,{"$f":"IF(C26=\"noch zu prüfen\",\"offen\",IF(C26=\"überprüft: nein\",\"unkritisch\",IF(C26=\"überprüft: ja\",\"kritisch\")))","v":"offen"}]
[null,"Wurden vorhandene ökologische Daten wie u.a. Fischregion, biozönotische Region in den Unterlagen ausreichend und nachvollziehbar angeführt?","noch zu prüfen",1,{"$f":"IF(C27=\"noch zu prüfen\",\"offen\",IF(C27=\"überprüft: nein\",\"kritisch\",IF(C27=\"überprüft: ja\",\"unkritisch\")))","v":"offen"}]
[]
[null,"Projektrelevante Daten: Zu erhebende Daten"]
[null,"Kraftwerksdaten"]
[null,"Sind die Kraftwerksdaten und Anlagenbereiche (Wehranlage, Krafthaus, Restwasserstrecke, Trasse der DRL etc.) ausreichend und nachvollziehbar in den Unterlagen angeführt?","noch zu prüfen",{"$f":"IF(C31=\"noch zu prüfen\",1,IF(C31=\"überprüft: nein\",2,IF(C31=\"überprüft: ja\",3)))","v":1},{"$f":"IF(C31=\"noch zu prüfen\",\"offen\",IF(C31=\"überprüft: nein\",\"kritisch\",IF(C31=\"überprüft: ja\",\"unkritisch\")))","v":"offen"}]
[null,"Wasser- und energiewirtschaftliche Daten"]
[null,"Wurden Abflussdaten erhoben?\n(Die Daten können auf Grundlage eines hydrologischen Gutachtens oder aber auf Grundlage von eigenen Messungen abgeleitet werden.)","noch zu prüfen",{"$f":"IF(C33=\"noch zu prüfen\",1,IF(C33=\"überprüft: nein\",2,IF(C33=\"überprüft: ja\",3)))","v":1},{"$f":"IF(C33=\"noch zu prüfen\",\"offen\",IF(C33=\"überprüft: nein\",\"kritisch\",IF(C33=\"überprüft: ja\",\"unkritisch\")))","v":"offen"}]
[null,"Wurden abflussabhängige abiotischen Parametern wie Tiefen und Fließgeschwindigkeiten bei unterschiedlichen Abflussmengen erhoben?","noch zu prüfen",1,"offen"]
[null,"Wurden physikalisch-chemische Parameter erhoben?","noch zu prüfen",1,"offen"]
[null,"Wurde eine etwaige Verbindung zum Grundwasser berücksichtigt?","noch zu prüfen",{"$f":"IF(C36=\"noch zu prüfen\",1,IF(C36=\"überprüft: nein\",2,IF(C36=\"überprüft: ja\",3,IF(C36=\"überprüft: nicht relevant\",10))))","v":1},{"$f":"IF(C36=\"noch zu prüfen\",\"offen\",IF(C36=\"überprüft: nein\",\"kritisch\",IF(C36=\"überprüft: ja\",\"unkritisch\",IF(C36=\"überprüft: nicht relevant\", \"unkritisch\"))))","v":"offen"}]
[null,"Weitere abiotische Daten"]
[null,"Wurden die Struktur und das Substrat im Flussbett erhoben?","noch zu prüfen",1,"offen"]
[null,"Wurden Kontinuumsunterbrechungen im relevanten Gewässerabschnitt erhoben?","noch zu prüfen",1,"offen"]
[null,"Wurde der morphologische / ökomorphologische Zustand erhoben?","noch zu prüfen",{"$f":"IF(C40=\"noch zu prüfen\",1,IF(C40=\"überprüft: nein\",2,IF(C40=\"überprüft: ja\",3)))","v":1},{"$f":"IF(C40=\"noch zu prüfen\",\"offen\",IF(C40=\"überprüft: nein\",\"kritisch\",IF(C40=\"überprüft: ja\",\"unkritisch\")))","v":"offen"}]
[null,"Biotische Daten / Ist-Zustand"]
[null,"Fische"]
[null,"Handelt es sich beim Gewässer des Projektgebietes um einen Fischlebensraum?\n\nDefinition Fischlebensraum: Ein Fischlebensraum ist ein durch geografische, abiotische und biotische Merkmale gekennzeichnetes Gewässer, oder gekennzeichneter Gewässerabschnitt, das bzw. der ohne menschliches Zutun – insbesondere ohne Besatzmaßnahmen – einen selbsterhaltenden Fischbestand ermöglicht. Darunter fallen auch Gewässerabschnitte, die oberhalb nicht passierbarer Hindernisse (natürlich oder anthropogen bedingt) zu liegen kommen, sofern die oben genannten Kriterien ansonsten zutreffen. Unter Umständen erforderliche habitatorientierte Entwicklungs- und  Pflegemaßnahmen sind in einem Fischlebensraum zulässig, etwa eine naturschutzfachlich unerwünschte (naturfremde) eingeschleppte oder früher eingesetzte – zwischenzeitlich möglicherweise selbstreproduzierende – Art oder Form   z.B. durch selektive Entnahme aus dem Gewässer oder dem Gewässerabschnitt zu entfernen. (Def. in Anlehnung an FFH-RL).","noch zu prüfen",{"$f":"IF(C43=\"noch zu prüfen\",1,IF(C43=\"überprüft: nein\",2,IF(C43=\"überprüft: ja\",3)))","v":1},{"$f":"IF(C43=\"noch zu prüfen\",\"offen\",IF(C43=\"überprüft: nein\",\"Weitere Betrachtung nicht notwendig\",IF(C43=\"überprüft: ja\",\"Weitere Betrachtung notwendig\")))","v":"offen"}]
[null,"Wurde eine Erfassung des Ist-Zustandes nach Pflichtwasserleitfaden (Seite 6) mit dem Ziel der Identifikation naturschutzfachlich wertbestimmender (siehe Pflichtwasserleitfaden, Glossar, Seite 31) Fischarten bzw. Fischbestände durchgeführt?","noch zu prüfen",{"$f":"IF(C44=\"überprüft: nein\",2,IF(C44=\"noch zu prüfen\",1,IF(C44=\"überprüft: ja\",3,IF(C44=\"überprüft: kein Fischlebensraum\",14))))","v":1},{"$f":"IF(C44=\"noch zu prüfen\",\"offen\",IF(C44=\"überprüft: nein\",\"kritisch\",IF(C44=\"überprüft: ja\",\"unkritisch\",IF(C44=\"überprüft: kein Fischlebensraum\",\"nicht relevant\"))))","v":"offen"}]
[null,"Ist die Ist-Aufnahme und Dokumentation der Fischarten bzw. Fischbestände fachlich nachvollziehbar?","noch zu prüfen",{"$f":"IF(C45=\"überprüft: nein\",2,IF(C45=\"noch zu prüfen\",1,IF(C45=\"überprüft: ja\",3,IF(C45=\"überprüft: kein Fischlebensraum\",14))))","v":1},{"$f":"IF(C45=\"noch zu prüfen\",\"offen\",IF(C45=\"überprüft: nein\",\"kritisch\",IF(C45=\"überprüft: ja\",\"unkritisch\",IF(C45=\"überprüft: kein Fischlebensraum\",\"nicht relevant\"))))","v":"offen"}]
[null,"Wurden dabei naturschutzfachlich wertbestimmende Fischarten bzw. Fischbestände identifiziert?","noch zu prüfen",{"$f":"IF(C46=\"überprüft: nein\",2,IF(C46=\"noch zu prüfen\",1,IF(C46=\"überprüft: ja\",3,IF(C46=\"überprüft: kein Fischlebensraum\",14))))","v":1},{"$f":"IF(C46=\"noch zu prüfen\",\"offen\",IF(C46=\"überprüft: nein\",\"unkritisch\",IF(C46=\"überprüft: ja\",\"kritisch\",IF(C46=\"überprüft: kein Fischlebensraum\",\"nicht relevant\"))))","v":"offen"}]
[null,"Makrozoobenthos"]
[null,"Wurde eine Erfassung des Ist-Zustandes nach Pflichtwasserleitfaden (Seite 6) mit dem Ziel der Identifikation naturschutzfachlich wertbestimmender (siehe Pflichtwasserleitfaden, Glossar, Seite 31) Makrozoobenthosarten (-bestände) durchgeführt?","noch zu prüfen",{"$f":"IF(C48=\"noch zu prüfen\",1,IF(C48=\"überprüft: nein\",2,IF(C48=\"überprüft: ja\",3)))","v":1},{"$f":"IF(C48=\"noch zu prüfen\",\"offen\",IF(C48=\"überprüft: nein\",\"kritisch\",IF(C48=\"überprüft: ja\",\"unkritisch\")))","v":"offen"}]
[null,"Ist die Ist-Aufnahme und Dokumentation der Makrozoobenthos-Arten fachlich nachvollziehbar?","noch zu prüfen",{"$f":"IF(C49=\"noch zu prüfen\",1,IF(C49=\"überprüft: nein\",2,IF(C49=\"überprüft: ja\",3)))","v":1},{"$f":"IF(C49=\"noch zu prüfen\",\"offen\",IF(C49=\"überprüft: nein\",\"kritisch\",IF(C49=\"überprüft: ja\",\"unkritisch\")))","v":"offen"}]
[null,"Wurden dabei naturschutzfachlich wertbestimmende Makrozoobenthosarten bzw. -bestände identifiziert?","noch zu prüfen",{"$f":"IF(C50=\"noch zu prüfen\",1,IF(C50=\"überprüft: nein\",2,IF(C50=\"überprüft: ja\",3)))","v":1},{"$f":"IF(C50=\"noch zu prüfen\",\"offen\",IF(C50=\"überprüft: nein\",\"unkritisch\",IF(C50=\"überprüft: ja\",\"kritisch\")))","v":"offen"}]
[null,"Laufkäfer"]
[null,"Wurde eine Erfassung des Ist-Zustandes nach Pflichtwasserleitfaden (Seite 6) mit dem Ziel der Identifikation naturschutzfachlich wertbestimmender (siehe Pflichtwasserleitfaden, Glossar, Seite 31) Laufkäferarten bzw. -bestände durchgeführt?","noch zu prüfen",{"$f":"IF(C52=\"noch zu prüfen\",1,IF(C52=\"überprüft: nein\",2,IF(C52=\"überprüft: ja\",3)))","v":1},{"$f":"IF(C52=\"noch zu prüfen\",\"offen\",IF(C52=\"überprüft: nein\",\"kritisch\",IF(C52=\"überprüft: ja\",\"unkritisch\")))","v":"offen"}]
[null,"Ist die Ist-Aufnahme und Dokumentation der  Laufkäferarten bzw. -bestände fachlich nachvollziehbar?","noch zu prüfen",{"$f":"IF(C53=\"noch zu prüfen\",1,IF(C53=\"überprüft: nein\",2,IF(C53=\"überprüft: ja\",3)))","v":1},{"$f":"IF(C53=\"noch zu prüfen\",\"offen\",IF(C53=\"überprüft: nein\",\"kritisch\",IF(C53=\"überprüft: ja\",\"unkritisch\")))","v":"offen"}]
[null,"Wurden dabei naturschutzfachlich wertbestimmende Laufkäferarten bzw. -bestände identifiziert?","noch zu prüfen",{"$f":"IF(C54=\"noch zu prüfen\",1,IF(C54=\"überprüft: nein\",2,IF(C54=\"überprüft: ja\",3)))","v":1},{"$f":"IF(C54=\"noch zu prüfen\",\"offen\",IF(C54=\"überprüft: nein\",\"unkritisch\",IF(C54=\"überprüft: ja\",\"kritisch\")))","v":"offen"}]
[null,"Vegetation und Biotoptypen"]
[null,"Wurde eine Erfassung des Ist-Zustandes nach Pflichtwasserleitfaden (Seite 6) der Vegetation und der Biotoptypen durchgeführt?","noch zu prüfen",{"$f":"IF(C56=\"noch zu prüfen\",1,IF(C56=\"überprüft: nein\",2,IF(C56=\"überprüft: ja\",3)))","v":1},{"$f":"IF(C56=\"noch zu prüfen\",\"offen\",IF(C56=\"überprüft: nein\",\"kritisch\",IF(C56=\"überprüft: ja\",\"unkritisch\")))","v":"offen"}]
[null,"Ist die Ist-Aufnahme und Dokumentation der Vegetation und Biotoptypen fachlich nachvollziehbar?","noch zu prüfen",{"$f":"IF(C57=\"noch zu prüfen\",1,IF(C57=\"überprüft: nein\",2,IF(C57=\"überprüft: ja\",3)))","v":1},{"$f":"IF(C57=\"noch zu prüfen\",\"offen\",IF(C57=\"überprüft: nein\",\"kritisch\",IF(C57=\"überprüft: ja\",\"unkritisch\")))","v":"offen"}]
[null,"Wurden unter den erhobenen Pflanzenarten naturschutzfachlich wertbestimmende Pflanzenarten identifiziert?","noch zu prüfen",{"$f":"IF(C58=\"noch zu prüfen\",1,IF(C58=\"überprüft: nein\",2,IF(C58=\"überprüft: ja\",3)))","v":1},{"$f":"IF(C58=\"noch zu prüfen\",\"offen\",IF(C58=\"überprüft: nein\",\"unkritisch\",IF(C58=\"überprüft: ja\",\"kritisch\")))","v":"offen"}]
[null,"Wurden unter den erhobenen Biotoptypen naturschutzfachlich wertbestimmende Biotoptypen identifiziert?","noch zu prüfen",{"$f":"IF(C59=\"noch zu prüfen\",1,IF(C59=\"überprüft: nein\",2,IF(C59=\"überprüft: ja\",3)))","v":1},{"$f":"IF(C59=\"noch zu prüfen\",\"offen\",IF(C59=\"überprüft: nein\",\"unkritisch\",IF(C59=\"überprüft: ja\",\"kritisch\")))","v":"offen"}]
[null,"Zusatzfrage zum Ist-Zustand"]
[null,"Wurden weitere projektrelevante naturschutzfachlich wertbestimmende Arten dokumentiert?","noch zu prüfen",{"$f":"IF(C61=\"noch zu prüfen\",1,IF(C61=\"überprüft: nein\",2,IF(C61=\"überprüft: ja\",3)))","v":1},{"$f":"IF(C61=\"noch zu prüfen\",\"offen\",IF(C61=\"überprüft: nein\",\"unkritisch\",IF(C61=\"überprüft: ja\",\"kritisch\")))","v":"offen"}]
[]
[null,"Bewertung des Ist-Zustandes/Auswirkungsanalyse/Kompensation"]
[null,"Fische"]
[null,"Ist die Bestandsbewertung nachvollziehbar und plausibel?","noch zu prüfen",{"$f":"IF(C65=\"noch zu prüfen\",1,IF(C65=\"überprüft: nein\",2,IF(C65=\"überprüft: ja\",3, IF(C65=\"überprüft: kein Fischlebensraum\",14))))","v":1},{"$f":"IF(C65=\"noch zu prüfen\",\"offen\",IF(C65=\"überprüft: nein\",\"kritisch\",IF(C65=\"überprüft: ja\",\"unkritisch\",IF(C65=\"überprüft: kein Fischlebensraum\",\"nicht relevant\"))))","v":"offen"}]
[null,"Ist die durchgeführte Auswirkungsanalyse nachvollziehbar und plausibel?","noch zu prüfen",{"$f":"IF(C66=\"noch zu prüfen\",1,IF(C66=\"überprüft: nein\",2,IF(C66=\"überprüft: ja\",3,IF(C66=\"überprüft: kein Fischlebensraum\",14))))","v":1},{"$f":"IF(C66=\"noch zu prüfen\",\"offen\",IF(C66=\"überprüft: nein\",\"kritisch\",IF(C66=\"überprüft: ja\",\"unkritisch\",IF(C66=\"überprüft: kein Fischlebensraum\",\"nicht relevant\"))))","v":"offen"}]
[null,"Wurden Kompensationsmaßnahmen im Sinne des Pflichtwasserleitfadens verwirklicht?","noch zu prüfen",{"$f":"IF(C67=\"noch zu prüfen\",1,IF(C67=\"überprüft: nein\",2,IF(C67=\"überprüft: ja\",3,IF(C67=\"überprüft: nicht relevant\", 10,IF(C67=\"überprüft: kein Fischlebensraum\",14)))))","v":1},{"$f":"IF(C67=\"noch zu prüfen\",\"offen\",IF(C67=\"überprüft: nein\",\"kritisch\",IF(C67=\"überprüft: ja\",\"unkritisch\",IF(C67=\"überprüft: nicht relevant\",\"unkritisch\",IF(C67=\"überprüft: kein Fischlebensraum\",\"nicht relevant\")))))","v":"offen"}]
[null,"Sind die Kompensationsmaßnahmen dazu geeignet, mögliche festgestellte negative Auswirkungen zu vermeiden, zu vermindern bzw. auszugleichen?","noch zu prüfen",{"$f":"IF(C68=\"noch zu prüfen\",1,IF(C68=\"überprüft: nein\",2,IF(C68=\"überprüft: ja\",3, IF(C68=\"überprüft: nicht relevant\", 10,IF(C68=\"überprüft: kein Fischlebensraum\",14)))))","v":1},{"$f":"IF(C68=\"noch zu prüfen\",\"offen\",IF(C68=\"überprüft: nein\",\"kritisch\",IF(C68=\"überprüft: ja\",\"unkritisch\",IF(C68=\"überprüft: nicht relevant\",\"unkritisch\",IF(C68=\"überprüft: kein Fischlebensraum\",\"nicht relevant\")))))","v":"offen"}]
[null,"Ist eine Abwertung des erhobenen Ist-Zustandes im Sinne der Bewertungsskala des Pflichtwasserleitfadens (Seite 8) gegeben?","noch zu prüfen",{"$f":"IF(C69=\"noch zu prüfen\",1,IF(C69=\"überprüft: nein\",2,IF(C69=\"überprüft: ja\",3,IF(C69=\"überprüft: kein Fischlebensraum\",14))))","v":1},{"$f":"IF(C69=\"noch zu prüfen\",\"offen\",IF(C69=\"überprüft: nein\",\"unkritisch\",IF(C69=\"überprüft: ja\",\"kritisch\",IF(C69=\"überprüft: kein Fischlebensraum\",\"nicht relevant\"))))","v":"offen"}]
[null,"Ist ein etwaiger Flächenbedarf für die Kompensationsmaßnahme(n) vertraglich gesichert?","noch zu prüfen",{"$f":"IF(C70=\"noch zu prüfen\",1,IF(C70=\"überprüft: nein\",2,IF(C70=\"überprüft: ja\",3,IF(C70=\"überprüft: nicht relevant\", 10,IF(C70=\"überprüft: kein Fischlebensraum\",14)))))","v":1},{"$f":"IF(C70=\"noch zu prüfen\",\"offen\",IF(C70=\"überprüft: nein\",\"kritisch\",IF(C70=\"überprüft: ja\",\"unkritisch\",IF(C70=\"überprüft: nicht relevant\",\"unkritisch\",IF(C70=\"überprüft: kein Fischlebensraum\",\"nicht relevant\")))))","v":"offen"}]
[null,"Ist die Umsetzung der Kompensationsmaßnahme(n) vertraglich gesichert?","noch zu prüfen",{"$f":"IF(C71=\"noch zu prüfen\",1,IF(C71=\"überprüft: nein\",2,IF(C71=\"überprüft: ja\",3,IF(C71=\"überprüft: nicht relevant\", 10,IF(C71=\"überprüft: kein Fischlebensraum\",14)))))","v":1},{"$f":"IF(C71=\"noch zu prüfen\",\"offen\",IF(C71=\"überprüft: nein\",\"kritisch\",IF(C71=\"überprüft: ja\",\"unkritisch\",IF(C71=\"überprüft: nicht relevant\",\"unkritisch\",IF(C71=\"überprüft: kein Fischlebensraum\",\"nicht relevant\")))))","v":"offen"}]
[null,"Makrozoobenthos"]
[null,"Ist die Bestandsbewertung nachvollziehbar und plausibel?","noch zu prüfen",{"$f":"IF(C73=\"noch zu prüfen\",1,IF(C73=\"überprüft: nein\",2,IF(C73=\"überprüft: ja\",3)))","v":1},{"$f":"IF(C73=\"noch zu prüfen\",\"offen\",IF(C73=\"überprüft: nein\",\"kritisch\",IF(C73=\"überprüft: ja\",\"unkritisch\")))","v":"offen"}]
[null,"Ist die durchgeführte Auswirkungsanalyse nachvollziehbar und plausibel?","noch zu prüfen",1,{"$f":"IF(C74=\"noch zu prüfen\",\"offen\",IF(C74=\"überprüft: nein\",\"kritisch\",IF(C74=\"überprüft: ja\",\"unkritisch\")))","v":"offen"}]
[null,"Wurden Kompensationsmaßnahmen im Sinne des Pflichtwasserleitfadens verwirklicht?","noch zu prüfen",{"$f":"IF(C75=\"noch zu prüfen\",1,IF(C75=\"überprüft: nein\",2,IF(C75=\"überprüft: ja\",3,IF(C75=\"überprüft: nicht relevant\",10))))","v":1},{"$f":"IF(C75=\"noch zu prüfen\",\"offen\",IF(C75=\"überprüft: nein\",\"kritisch\",IF(C75=\"überprüft: ja\",\"unkritisch\",IF(C75=\"überprüft: nicht relevant\",\"unkritisch\"))))","v":"offen"}]
[null,"Sind die Kompensationsmaßnahmen dazu geeignet, mögliche festgestellte negative Auswirkungen zu vermeiden, zu vermindern bzw. auszugleichen?","noch zu prüfen",{"$f":"IF(C76=\"noch zu prüfen\",1,IF(C76=\"überprüft: nein\",2,IF(C76=\"überprüft: ja\",3,IF(C76=\"überprüft: nicht relevant\",10))))","v":1},{"$f":"IF(C76=\"noch zu prüfen\",\"offen\",IF(C76=\"überprüft: nein\",\"kritisch\",IF(C76=\"überprüft: ja\",\"unkritisch\",IF(C76=\"überprüft: nicht relevant\",\"unkritisch\"))))","v":"offen"}]
[null,"Ist eine Abwertung des erhobenen Ist-Zustandes im Sinne der Bewertungsskala des Pflichtwasserleitfadens (Seite 8) gegeben?","noch zu prüfen",{"$f":"IF(C77=\"noch zu prüfen\",1,IF(C77=\"überprüft: nein\",2,IF(C77=\"überprüft: ja\",3)))","v":1},{"$f":"IF(C77=\"noch zu prüfen\",\"offen\",IF(C77=\"überprüft: nein\",\"unkritisch\",IF(C77=\"überprüft: ja\",\"kritisch\")))","v":"offen"}]
[null,"Ist ein etwaiger Flächenbedarf für die Kompensationsmaßnahme(n) vertraglich gesichert?","noch zu prüfen",{"$f":"IF(C78=\"noch zu prüfen\",1,IF(C78=\"überprüft: nein\",2,IF(C78=\"überprüft: ja\",3,IF(C78=\"überprüft: nicht relevant\",10))))","v":1},{"$f":"IF(C78=\"noch zu prüfen\",\"offen\",IF(C78=\"überprüft: nein\",\"kritisch\",IF(C78=\"überprüft: ja\",\"unkritisch\",IF(C78=\"überprüft: nicht relevant\",\"unkritisch\"))))","v":"offen"}]
[null,"Ist die Umsetzung der Kompensationsmaßnahme(n) vertraglich gesichert?","noch zu prüfen",{"$f":"IF(C79=\"noch zu prüfen\",1,IF(C79=\"überprüft: nein\",2,IF(C79=\"überprüft: ja\",3,IF(C79=\"überprüft: nicht relevant\",10))))","v":1},{"$f":"IF(C79=\"noch zu prüfen\",\"offen\",IF(C79=\"überprüft: nein\",\"kritisch\",IF(C79=\"überprüft: ja\",\"unkritisch\",IF(C79=\"überprüft: nicht relevant\",\"unkritisch\"))))","v":"offen"}]
[null,"Laufkäfer"]
[null,"Wurden die Erhebungsmethoden gemäß Pflichtwasserleitfaden (Kapitel \"Zu erhebende Daten\") angewandt?","noch zu prüfen",{"$f":"IF(C81=\"noch zu prüfen\",1,IF(C81=\"überprüft: nein\",2,IF(C81=\"überprüft: ja\",3)))","v":1},{"$f":"IF(C81=\"noch zu prüfen\",\"offen\",IF(C81=\"überprüft: nein\",\"kritisch\",IF(C81=\"überprüft: ja\",\"unkritisch\")))","v":"offen"}]
[null,"Wurden die vorgegebenen Methoden zur Bestandsbewertung in Anlehnung an die Vorgaben der ÖNORM M 6232 berücksichtigt?","noch zu prüfen",{"$f":"IF(C82=\"noch zu prüfen\",1,IF(C82=\"überprüft: nein\",2,IF(C82=\"überprüft: ja\",3)))","v":1},{"$f":"IF(C82=\"noch zu prüfen\",\"offen\",IF(C82=\"überprüft: nein\",\"kritisch\",IF(C82=\"überprüft: ja\",\"unkritisch\")))","v":"offen"}]
[null,"Ist die Bestandsbewertung nachvollziehbar und plausibel?","noch zu prüfen",{"$f":"IF(C83=\"noch zu prüfen\",1,IF(C83=\"überprüft: nein\",2,IF(C83=\"überprüft: ja\",3)))","v":1},{"$f":"IF(C83=\"noch zu prüfen\",\"offen\",IF(C83=\"überprüft: nein\",\"kritisch\",IF(C83=\"überprüft: ja\",\"unkritisch\")))","v":"offen"}]
[null,"Ist die durchgeführte Auswirkungsanalyse nachvollziehbar und plausibel?","noch zu prüfen",1,{"$f":"IF(C84=\"noch zu prüfen\",\"offen\",IF(C84=\"überprüft: nein\",\"kritisch\",IF(C84=\"überprüft: ja\",\"unkritisch\")))","v":"offen"}]
[null,"Wurden Kompensationsmaßnahmen im Sinne des Pflichtwasserleitfadens verwirklicht?","noch zu prüfen",{"$f":"IF(C85=\"noch zu prüfen\",1,IF(C85=\"überprüft: nein\",2,IF(C85=\"überprüft: ja\",3,IF(C85=\"überprüft: nicht relevant\",10))))","v":1},{"$f":"IF(C85=\"noch zu prüfen\",\"offen\",IF(C85=\"überprüft: nein\",\"kritisch\",IF(C85=\"überprüft: ja\",\"unkritisch\",IF(C85=\"überprüft: nicht relevant\",\"unkritisch\"))))","v":"offen"}]
[null,"Sind die Kompensationsmaßnahmen dazu geeignet, mögliche festgestellte negative Auswirkungen zu vermeiden, zu vermindern bzw. auszugleichen?","noch zu prüfen",{"$f":"IF(C86=\"noch zu prüfen\",1,IF(C86=\"überprüft: nein\",2,IF(C86=\"überprüft: ja\",3,IF(C86=\"überprüft: nicht relevant\",10))))","v":1},{"$f":"IF(C86=\"noch zu prüfen\",\"offen\",IF(C86=\"überprüft: nein\",\"kritisch\",IF(C86=\"überprüft: ja\",\"unkritisch\",IF(C86=\"überprüft: nicht relevant\",\"unkritisch\"))))","v":"offen"}]
[null,"Ist eine Abwertung des erhobenen Ist-Zustandes im Sinne der Bewertungsskala des Pflichtwasserleitfadens (Seite 8) gegeben?","noch zu prüfen",1,{"$f":"IF(C87=\"noch zu prüfen\",\"offen\",IF(C87=\"überprüft: nein\",\"unkritisch\",IF(C87=\"überprüft: ja\",\"kritisch\")))","v":"offen"}]
[null,"Ist ein etwaiger Flächenbedarf für die Kompensationsmaßnahme(n) vertraglich gesichert?","noch zu prüfen",{"$f":"IF(C88=\"noch zu prüfen\",1,IF(C88=\"überprüft: nein\",2,IF(C88=\"überprüft: ja\",3,IF(C88=\"überprüft: nicht relevant\",10))))","v":1},{"$f":"IF(C88=\"noch zu prüfen\",\"offen\",IF(C88=\"überprüft: nein\",\"kritisch\",IF(C88=\"überprüft: ja\",\"unkritisch\",IF(C88=\"überprüft: nicht relevant\",\"unkritisch\"))))","v":"offen"}]
[null,"Ist die Umsetzung der Kompensationsmaßnahme(n) vertraglich gesichert?","noch zu prüfen",{"$f":"IF(C89=\"noch zu prüfen\",1,IF(C89=\"überprüft: nein\",2,IF(C89=\"überprüft: ja\",3,IF(C89=\"überprüft: nicht relevant\",10))))","v":1},{"$f":"IF(C89=\"noch zu prüfen\",\"offen\",IF(C89=\"überprüft: nein\",\"kritisch\",IF(C89=\"überprüft: ja\",\"unkritisch\",IF(C89=\"überprüft: nicht relevant\",\"unkritisch\"))))","v":"offen"}]
[null,"Vegetation und Biotoptypen"]
[null,"Wurden die Erhebungsmethoden gemäß Pflichtwasserleitfaden  angewandt?","noch zu prüfen",{"$f":"IF(C91=\"noch zu prüfen\",1,IF(C91=\"überprüft: nein\",2,IF(C91=\"überprüft: ja\",3)))","v":1},{"$f":"IF(C91=\"noch zu prüfen\",\"offen\",IF(C91=\"überprüft: nein\",\"kritisch\",IF(C91=\"überprüft: ja\",\"unkritisch\")))","v":"offen"}]
[null,"Wurden die vorgegebenen Methoden zur Bestandsbewertung in Anlehnung an die Vorgaben der ÖNORM M 6232 berücksichtigt?","noch zu prüfen",1,{"$f":"IF(C92=\"noch zu prüfen\",\"offen\",IF(C92=\"überprüft: nein\",\"kritisch\",IF(C92=\"überprüft: ja\",\"unkritisch\")))","v":"offen"}]
[null,"Ist die Bestandsbewertung nachvollziehbar und plausibel?","noch zu prüfen",1,{"$f":"IF(C93=\"noch zu prüfen\",\"offen\",IF(C93=\"überprüft: nein\",\"kritisch\",IF(C93=\"überprüft: ja\",\"unkritisch\")))","v":"offen"}]
[null,"Ist die durchgeführte Auswirkungsanalyse nachvollziehbar und plausibel?","noch zu prüfen",1,{"$f":"IF(C94=\"noch zu prüfen\",\"offen\",IF(C94=\"überprüft: nein\",\"kritisch\",IF(C94=\"überprüft: ja\",\"unkritisch\")))","v":"offen"}]
[null,"Wurden Kompensationsmaßnahmen im Sinne des Pflichtwasserleitfadens verwirklicht?","noch zu prüfen",{"$f":"IF(C95=\"noch zu prüfen\",1,IF(C95=\"überprüft: nein\",2,IF(C95=\"überprüft: ja\",3,IF(C95=\"überprüft: nicht relevant\",10))))","v":1},{"$f":"IF(C95=\"noch zu prüfen\",\"offen\",IF(C95=\"überprüft: nein\",\"kritisch\",IF(C95=\"überprüft: ja\",\"unkritisch\",IF(C95=\"überprüft: nicht relevant\",\"unkritisch\"))))","v":"offen"}]
[null,"Sind die Kompensationsmaßnahmen dazu geeignet, mögliche festgestellte negative Auswirkungen zu vermeiden, zu vermindern bzw. auszugleichen?","noch zu prüfen",1,{"$f":"IF(C96=\"noch zu prüfen\",\"offen\",IF(C96=\"überprüft: nein\",\"kritisch\",IF(C96=\"überprüft: ja\",\"unkritisch\")))","v":"offen"}]
[null,"Ist eine Abwertung des erhobenen Ist-Zustandes im Sinne der Bewertungsskala des Pflichtwasserleitfadens (Seite 8) gegeben?","noch zu prüfen",1,{"$f":"IF(C97=\"noch zu prüfen\",\"offen\",IF(C97=\"überprüft: nein\",\"unkritisch\",IF(C97=\"überprüft: ja\",\"kritisch\")))","v":"offen"}]
[null,"Ist ein etwaiger Flächenbedarf für die Kompensationsmaßnahme(n) vertraglich gesichert?","noch zu prüfen",{"$f":"IF(C98=\"noch zu prüfen\",1,IF(C98=\"überprüft: nein\",2,IF(C98=\"überprüft: ja\",3,IF(C98=\"überprüft: nicht relevant\",10))))","v":1},{"$f":"IF(C98=\"noch zu prüfen\",\"offen\",IF(C98=\"überprüft: nein\",\"kritisch\",IF(C98=\"überprüft: ja\",\"unkritisch\",IF(C98=\"überprüft: nicht relevant\",\"unkritisch\"))))","v":"offen"}]
[null,"Ist die Umsetzung der Kompensationsmaßnahme(n) vertraglich gesichert?","noch zu prüfen",{"$f":"IF(C99=\"noch zu prüfen\",1,IF(C99=\"überprüft: nein\",2,IF(C99=\"überprüft: ja\",3,IF(C99=\"überprüft: nicht relevant\",10))))","v":1},{"$f":"IF(C99=\"noch zu prüfen\",\"offen\",IF(C99=\"überprüft: nein\",\"kritisch\",IF(C99=\"überprüft: ja\",\"unkritisch\",IF(C99=\"überprüft: nicht relevant\",\"unkritisch\"))))","v":"offen"}]
[null,"Gewässerspezifisches Landschaftsbild (wassermorphologische Betrachtung)"]
[null,"Wurden die Erhebungsmethoden gemäß Pflichtwasserleitfaden angewandt?","noch zu prüfen",{"$f":"IF(C101=\"noch zu prüfen\",1,IF(C101=\"überprüft: nein\",2,IF(C101=\"überprüft: ja\",3)))","v":1},{"$f":"IF(C101=\"noch zu prüfen\",\"offen\",IF(C101=\"überprüft: nein\",\"kritisch\",IF(C101=\"überprüft: ja\",\"unkritisch\")))","v":"offen"}]
[null,"Wurden die vorgegebenen Teilkriterien zur wassermorphologischen Betrachtung gemäß Pflichtwasserleitfaden berücksichtigt?","noch zu prüfen",1,{"$f":"IF(C102=\"noch zu prüfen\",\"offen\",IF(C102=\"überprüft: nein\",\"kritisch\",IF(C102=\"überprüft: ja\",\"unkritisch\")))","v":"offen"}]
[null,"Ist schon bei Abgabe der Basisdotation der weitestgehende Erhalt der wassermorphologischen Ausprägungen entsprechend dem Ist-Zustand gegeben?","noch zu prüfen",1,{"$f":"IF(C103=\"noch zu prüfen\",\"offen\",IF(C103=\"überprüft: nein\",\"kritisch\",IF(C103=\"überprüft: ja\",\"unkritisch\")))","v":"offen"}]
[null,"Wurde zum Nachweis des weitestgehenden Erhaltes der wassermorphologischen Ausprägungen eine Fotodokumentation vorgelegt?","noch zu prüfen",1,{"$f":"IF(C104=\"noch zu prüfen\",\"offen\",IF(C104=\"überprüft: nein\",\"kritisch\",IF(C104=\"überprüft: ja\",\"unkritisch\")))","v":"offen"}]
[null,"Landschaftliche Einbindung (Landschaftsbild)"]
[null,"Wurden sämtliche erforderliche Anlagen in ihrer Dimension und ihrem Flächenverbrauch weitestgehend unter Berücksichtigung der naturräumlichen Gegebenheiten geplant?","noch zu prüfen",{"$f":"IF(C106=\"noch zu prüfen\",1,IF(C106=\"überprüft: nein\",2,IF(C106=\"überprüft: ja\",3)))","v":1},{"$f":"IF(C106=\"noch zu prüfen\",\"offen\",IF(C106=\"überprüft: nein\",\"kritisch\",IF(C106=\"überprüft: ja\",\"unkritisch\")))","v":"offen"}]
[null,"Wurde auf die gegebene Landschaftscharakteristik bzw. auf die Integration der baulichen Maßnahmen in den gegebenen Naturraum Rücksicht genommen?","noch zu prüfen",1,{"$f":"IF(C107=\"noch zu prüfen\",\"offen\",IF(C107=\"überprüft: nein\",\"kritisch\",IF(C107=\"überprüft: ja\",\"unkritisch\")))","v":"offen"}]
[null,"Werden zur baulichen Ausführung ortsübliche Materialien verwendet?","noch zu prüfen",1,{"$f":"IF(C108=\"noch zu prüfen\",\"offen\",IF(C108=\"überprüft: nein\",\"kritisch\",IF(C108=\"überprüft: ja\",\"unkritisch\")))","v":"offen"}]
[]
[null,"Orientierungswerte als Rahmenwerte zur Beurteilung der Basisdotation der Pflichtwassermenge"]
[null,"Tiefen"]
[null,"Wurde eine ausreichende Anzahl von Querprofilen gemäß Pflichtwasserleitfaden untersucht, um auf Basis der örtlichen Gegebenheiten bei vorgesehener Basisdotation die Erreichung der Mindesttiefen plausibel nachweisen zu können?","noch zu prüfen",{"$f":"IF(C112=\"noch zu prüfen\",1,IF(C112=\"überprüft: nein\",2,IF(C112=\"überprüft: ja\",3)))","v":1},{"$f":"IF(C112=\"noch zu prüfen\",\"offen\",IF(C112=\"überprüft: nein\",\"kritisch\",IF(C112=\"überprüft: ja\",\"unkritisch\")))","v":"offen"}]
[null,"Ist die Verortung der Messpunkte nachvollziehbar?","noch zu prüfen",{"$f":"IF(C113=\"noch zu prüfen\",1,IF(C113=\"überprüft: nein\",2,IF(C113=\"überprüft: ja\",3)))","v":1},{"$f":"IF(C113=\"noch zu prüfen\",\"offen\",IF(C113=\"überprüft: nein\",\"kritisch\",IF(C113=\"überprüft: ja\",\"unkritisch\")))","v":"offen"}]
[null,"Werden die vorgegebenen Mindesttiefen für den Bereich der Schnelle und im Talweg in Abhängigkeit des Gewässertyps erreicht?","noch zu prüfen",{"$f":"IF(C114=\"noch zu prüfen\",1,IF(C114=\"überprüft: nein\",2,IF(C114=\"überprüft: ja\",3)))","v":1},{"$f":"IF(C114=\"noch zu prüfen\",\"offen\",IF(C114=\"überprüft: nein\",\"kritisch\",IF(C114=\"überprüft: ja\",\"unkritisch\")))","v":"offen"}]
[null,"Ist aufgrund der Auswirkungsanalyse für relevante, naturschutzfachlich wertbestimmende Arten eine vom Orientierungswert abweichende Mindesttiefe gewählt worden und wurde diese fachlich nachvollziehbar begründet?","noch zu prüfen",{"$f":"IF(C115=\"noch zu prüfen\",1,IF(C115=\"überprüft: ja, abgewichen, nachvollziehbar\",11,IF(C115=\"überprüft: nein, nicht abgewichen\",12,IF(C115=\"überprüft: ja abgewichen, nicht nachvollziehbar\",13))))","v":1},{"$f":"IF(C115=\"noch zu prüfen\",\"offen\",IF(C115=\"überprüft: ja, abgewichen, nachvollziehbar\",\"unkritisch\",IF(C115=\"überprüft: nein, nicht abgewichen\",\"unkritisch\",IF(C115=\"überprüft: ja abgewichen, nicht nachvollziehbar\",\"kritisch\"))))","v":"offen"}]
[null,"Fließgeschwindigkeiten"]
[null,"Wurde eine ausreichende Anzahl von Querprofilen gemäß Pflichtwasserleitfaden untersucht, um auf Basis der örtlichen Gegebenheiten bei vorgesehener Basisdotation die Erreichung der mittleren sohlnahen Fließgeschwindigkeit (0,25 m/s) plausibel nachweisen zu können?","noch zu prüfen",{"$f":"IF(C117=\"noch zu prüfen\",1,IF(C117=\"überprüft: nein\",2,IF(C117=\"überprüft: ja\",3)))","v":1},{"$f":"IF(C117=\"noch zu prüfen\",\"offen\",IF(C117=\"überprüft: nein\",\"kritisch\",IF(C117=\"überprüft: ja\",\"unkritisch\")))","v":"offen"}]
[null,"Ist die Verortung der Messpunkte nachvollziehbar?","noch zu prüfen",{"$f":"IF(C118=\"noch zu prüfen\",1,IF(C118=\"überprüft: nein\",2,IF(C118=\"überprüft: ja\",3)))","v":1},{"$f":"IF(C118=\"noch zu prüfen\",\"offen\",IF(C118=\"überprüft: nein\",\"kritisch\",IF(C118=\"überprüft: ja\",\"unkritisch\")))","v":"offen"}]
[null,"Ist aufgrund der Auswirkungsanalyse  für relevante, naturschutzfachlich wertbestimmende Arten eine vom Orientierungswert abweichende mittlere sohlnahe Fließgeschwindigkeit gewählt worden  und wurde diese fachlich nachvollziehbar begründet?","noch zu prüfen",{"$f":"IF(C119=\"noch zu prüfen\",1,IF(C119=\"überprüft: ja, abgewichen, nachvollziehbar\",11,IF(C119=\"überprüft: nein, nicht abgewichen\",12,IF(C119=\"überprüft: ja abgewichen, nicht nachvollziehbar\",13))))","v":1},{"$f":"IF(C119=\"noch zu prüfen\",\"offen\",IF(C119=\"überprüft: ja, abgewichen, nachvollziehbar\",\"unkritisch\",IF(C119=\"überprüft: nein, nicht abgewichen\",\"unkritisch\",IF(C119=\"überprüft: ja abgewichen, nicht nachvollziehbar\",\"kritisch\"))))","v":"offen"}]
[null,"Benetzungsgrad"]
[null,"Wurde eine ausreichende Anzahl von Querprofilen gemäß Pflichtwasserleitfaden untersucht, um auf Basis der örtlichen Gegebenheiten bei vorgesehener Basisdotation die Erreichung des erforderlichen Benetzungsgrades plausibel nachweisen zu können?","noch zu prüfen",{"$f":"IF(C121=\"noch zu prüfen\",1,IF(C121=\"überprüft: nein\",2,IF(C121=\"überprüft: ja\",3)))","v":1},{"$f":"IF(C121=\"noch zu prüfen\",\"offen\",IF(C121=\"überprüft: nein\",\"kritisch\",IF(C121=\"überprüft: ja\",\"unkritisch\")))","v":"offen"}]
[null,"Ist die Verortung der Messpunkte nachvollziehbar?","noch zu prüfen",{"$f":"IF(C122=\"noch zu prüfen\",1,IF(C122=\"überprüft: nein\",2,IF(C122=\"überprüft: ja\",3)))","v":1},{"$f":"IF(C122=\"noch zu prüfen\",\"offen\",IF(C122=\"überprüft: nein\",\"kritisch\",IF(C122=\"überprüft: ja\",\"unkritisch\")))","v":"offen"}]
[null,"Sind im Zeitraum von März bis Oktober im Mittel zumindest 70% des Gewässerbettes benetzt?","noch zu prüfen",{"$f":"IF(C123=\"noch zu prüfen\",1,IF(C123=\"überprüft: nein\",2,IF(C123=\"überprüft: ja\",3)))","v":1},{"$f":"IF(C123=\"noch zu prüfen\",\"offen\",IF(C123=\"überprüft: nein\",\"kritisch\",IF(C123=\"überprüft: ja\",\"unkritisch\")))","v":"offen"}]
[null,"Ist aufgrund der Auswirkungsanalyse für relevante, naturschutzfachlich wertbestimmende Arten eine vom Orientierungswert abweichende Benetzung des Gewässerbettes gewählt worden und wurde diese fachlich nachvollziehbar begründet?","noch zu prüfen",{"$f":"IF(C124=\"noch zu prüfen\",1,IF(C124=\"überprüft: ja, abgewichen, nachvollziehbar\",11,IF(C124=\"überprüft: nein, nicht abgewichen\",12,IF(C124=\"überprüft: ja abgewichen, nicht nachvollziehbar\",13))))","v":1},{"$f":"IF(C124=\"noch zu prüfen\",\"offen\",IF(C124=\"überprüft: ja, abgewichen, nachvollziehbar\",\"unkritisch\",IF(C124=\"überprüft: nein, nicht abgewichen\",\"unkritisch\",IF(C124=\"überprüft: ja abgewichen, nicht nachvollziehbar\",\"kritisch\"))))","v":"offen"}]
[null,"Abflussmenge"]
[null,"Werden an rund 50 Prozent der Tage innerhalb der Vegetationsperiode zumindest 20 Prozent vom natürlichen Abfluss als Pflichtwasser abgegeben?","noch zu prüfen",{"$f":"IF(C126=\"noch zu prüfen\",1,IF(C126=\"überprüft: nein\",2,IF(C126=\"überprüft: ja\",3)))","v":1},{"$f":"IF(C126=\"noch zu prüfen\",\"offen\",IF(C126=\"überprüft: nein\",\"kritisch\",IF(C126=\"überprüft: ja\",\"unkritisch\")))","v":"offen"}]
[null,"Werden 12 Prozent vom natürlichen Abfluss innerhalb der Vegetationsperiode als Pflichtwasser abgegeben?","noch zu prüfen",{"$f":"IF(C127=\"noch zu prüfen\",1,IF(C127=\"überprüft: nein\",2,IF(C127=\"überprüft: ja\",3)))","v":1},{"$f":"IF(C127=\"noch zu prüfen\",\"offen\",IF(C127=\"überprüft: nein\",\"kritisch\",IF(C127=\"überprüft: ja\",\"unkritisch\")))","v":"offen"}]
[null,"Ist aufgrund der Auswirkungsanalyse für relevante, naturschutzfachlich wertbestimmende Arten bzw. Biotope eine vom Orientierungswert abweichende  Abflussmenge gewählt worden und wurde diese fachlich nachvollziehbar begründet?","noch zu prüfen",{"$f":"IF(C128=\"noch zu prüfen\",1,IF(C128=\"überprüft: ja, abgewichen, nachvollziehbar\",11,IF(C128=\"überprüft: nein, nicht abgewichen\",12,IF(C128=\"überprüft: ja abgewichen, nicht nachvollziehbar\",13))))","v":1},{"$f":"IF(C128=\"noch zu prüfen\",\"offen\",IF(C128=\"überprüft: ja, abgewichen, nachvollziehbar\",\"unkritisch\",IF(C128=\"überprüft: nein, nicht abgewichen\",\"unkritisch\",IF(C128=\"überprüft: ja abgewichen, nicht nachvollziehbar\",\"kritisch\"))))","v":"offen"}]
[]
[null,"Orientierungswerte als Rahmenwerte zur Beurteilung der Obergrenze der dynamischen Pflichtwassermenge"]
[null,"Wurde als Wert der Obergrenze der dynamischen Pflichtwassermenge 20% des natürlichen Zuflusses bei Erreichen der Ausbauwassermenge (Qa) gewählt?","noch zu prüfen",{"$f":"IF(C131=\"noch zu prüfen\",1,IF(C131=\"überprüft: nein\",2,IF(C131=\"überprüft: ja\",3)))","v":1},{"$f":"IF(C131=\"noch zu prüfen\",\"offen\",IF(C131=\"überprüft: nein\",\"kritisch\",IF(C131=\"überprüft: ja\",\"unkritisch\")))","v":"offen"}]
[null,"Wurde die Abflussdynamik zwischen Basisdotation und Obergrenze derart gewählt, dass für relevante, naturschutzfachlich wertbestimmende Arten bzw. Biotope im Jahresverlauf die jeweiligen Habitatansprüche sichergestellt werden?","noch zu prüfen",{"$f":"IF(C132=\"noch zu prüfen\",1,IF(C132=\"überprüft: nein\",2,IF(C132=\"überprüft: ja\",3)))","v":1},{"$f":"IF(C132=\"noch zu prüfen\",\"offen\",IF(C132=\"überprüft: nein\",\"kritisch\",IF(C132=\"überprüft: ja\",\"unkritisch\")))","v":"offen"}]
[null,"Ist aufgrund der Auswirkungsanalyse für relevante, naturschutzfachlich wertbestimmende Arten bzw. Biotope eine vom Orientierungswert abweichende  Obergrenze gewählt worden und wurde diese fachlich nachvollziehbar begründet?","noch zu prüfen",{"$f":"IF(C133=\"noch zu prüfen\",1,IF(C133=\"überprüft: ja, abgewichen, nachvollziehbar\",11,IF(C133=\"überprüft: nein, nicht abgewichen\",12,IF(C133=\"überprüft: ja abgewichen, nicht nachvollziehbar\",13))))","v":1},{"$f":"IF(C133=\"noch zu prüfen\",\"offen\",IF(C133=\"überprüft: ja, abgewichen, nachvollziehbar\",\"unkritisch\",IF(C133=\"überprüft: nein, nicht abgewichen\",\"unkritisch\",IF(C133=\"überprüft: ja abgewichen, nicht nachvollziehbar\",\"kritisch\"))))","v":"offen"}]
[]
[null,"Ergänzende Fragen zur Pflichtwasserabgabe"]
[null,"Liegt das Verhältnis zwischen Ausbaudurchfluss (Qa) und Mittelwasserabfluss (MQ) zwischen 1,2 und 1,6?\n(Dieses Verhältnis entspricht einem gängigen Ausbaugrad.)","noch zu prüfen",{"$f":"IF(C136=\"noch zu prüfen\",1,IF(C136=\"überprüft: nein\",2,IF(C136=\"überprüft: ja\",3)))","v":1},{"$f":"IF(C136=\"noch zu prüfen\",\"offen\",IF(C136=\"überprüft: nein\",\"kritisch\",IF(C136=\"überprüft: ja\",\"unkritisch\")))","v":"offen"}]
[null,"Ist der Zusammenhang zwischen natürlicher Wasserführung und dynamischer Pflichtwasserabgabe vorzugsweise über eine lineare Funktion oder über eine logarithmische Funktion abgeleitet?","noch zu prüfen",{"$f":"IF(C137=\"noch zu prüfen\",1,IF(C137=\"überprüft: nein\",2,IF(C137=\"überprüft: ja\",3)))","v":1},{"$f":"IF(C137=\"noch zu prüfen\",\"offen\",IF(C137=\"überprüft: nein\",\"kritisch\",IF(C137=\"überprüft: ja\",\"unkritisch\")))","v":"offen"}]
[null,"Ist eine verständliche Abbildung der Jahresganglinie und/oder der Dauerlinie der vorgesehenen Pflichtwasserabgabe in den Unterlagen vorhanden? ","noch zu prüfen",1,{"$f":"IF(C138=\"noch zu prüfen\",\"offen\",IF(C138=\"überprüft: nein\",\"kritisch\",IF(C138=\"überprüft: ja\",\"unkritisch\")))","v":"offen"}]
[null,"Ist die Jahresganglinie der Pflichtwasserabgabe als gerade Linie ausgewiesen?","noch zu prüfen",1,{"$f":"IF(C139=\"noch zu prüfen\",\"offen\",IF(C139=\"überprüft: nein\",\"unkritisch\",IF(C139=\"überprüft: ja\",\"kritisch\")))","v":"offen"}]
[null,"Ist die Dauerlinie der Pflichtwasserabgabe als gerade Linie ausgewiesen?","noch zu prüfen",1,{"$f":"IF(C140=\"noch zu prüfen\",\"offen\",IF(C140=\"überprüft: nein\",\"unkritisch\",IF(C140=\"überprüft: ja\",\"kritisch\")))","v":"offen"}]
[null,"Sind die Abgabemodalitäten der konstanten bzw. dynamischen Pflichtwassermenge übersichtlich dargestellt?","noch zu prüfen",1,{"$f":"IF(C141=\"noch zu prüfen\",\"offen\",IF(C141=\"überprüft: nein\",\"kritisch\",IF(C141=\"überprüft: ja\",\"unkritisch\")))","v":"offen"}]
[null,"Sind visuelle Kontrollmöglichkeiten der konstanten bzw. dynamischen Pflichtwassermenge vorgesehen?","noch zu prüfen",1,{"$f":"IF(C142=\"noch zu prüfen\",\"offen\",IF(C142=\"überprüft: nein\",\"kritisch\",IF(C142=\"überprüft: ja\",\"unkritisch\")))","v":"offen"}]
[]
[null,"Umweltbaubegleitung im Sinne der RVS 04.05.11"]
[null,"Wird durch den Projektanten eine Umweltbaubegleitung vorgesehen und benannt?","noch zu prüfen",{"$f":"IF(C145=\"noch zu prüfen\",1,IF(C145=\"überprüft: nein\",2,IF(C145=\"überprüft: ja\",3)))","v":1},{"$f":"IF(C145=\"noch zu prüfen\",\"offen\",IF(C145=\"überprüft: nein\",\"kritisch\",IF(C145=\"überprüft: ja\",\"unkritisch\")))","v":"offen"}]
[]
[null,"III. FRAGEN ZUM ARTENSCHUTZ"]
[]
[null,"Checkliste Artenschutz",null,{"$f":"IF(C149=\"noch zu prüfen\",1,IF(C149=\"überprüft: nein\",2,IF(C149=\"überprüft: ja\",3,)))","v":0}]
[null,"Wurde eine ausreichende Erfassung der im Untersuchungsraum nach Potenzialabschätzung ggf. vorkommenden Arten des Anhangs IV der FFH-RL oder Vogelarten gem. VS-RL durchgeführt? [Hinweis: Ohne eine solche können i. d. R. die nachfolgenden Fragen nicht beantwortet werden]","noch zu prüfen",{"$f":"IF(C150=\"noch zu prüfen\",1,IF(C150=\"überprüft: nein\",2,IF(C150=\"überprüft: ja\",3)))","v":1},{"$f":"IF(C150=\"noch zu prüfen\",\"offen\",IF(C150=\"überprüft: nein\",\"kritisch\",IF(C150=\"überprüft: ja\",\"unkritisch\")))","v":"offen"}]
[null,"Befinden sich im Untersuchungsraum des Projektes Vorkommen von Arten des Anhangs IV der FFH-RL oder Vogelarten gem. VS-RL?","noch zu prüfen",1,{"$f":"IF(C151=\"noch zu prüfen\",\"offen\",IF(C151=\"überprüft: nein\",\"unkritisch\",\"kritisch\"))","v":"offen"}]
[null,"Wurde eine ausreichende Bewertung einer möglichen Betroffenheit des Vorkommens von Arten des Anhangs IV der FFH-RL oder Vogelarten gem. VS-RL nach anzuwendenden fachlichen und rechtlichen Kriterien durchgeführt und dokumentiert?","noch zu prüfen",{"$f":"IF(C152=\"noch zu prüfen\",1,IF(C152=\"überprüft: nein\",2,IF(C152=\"überprüft: ja\",3)))","v":1},{"$f":"IF(C152=\"noch zu prüfen\",\"offen\",IF(C152=\"überprüft: nein\",\"kritisch\",IF(C152=\"überprüft: ja\",\"unkritisch\")))","v":"offen"}]
[null,"Könnten durch das Projekt Individuen von Arten des Anhang IV der FFH-RL oder Vogelarten gem. VS-RL getötet oder vernichtet werden, wobei die Tötung weder als ein \"äußerst seltenes Ereignis\" noch als \"ein im Allgemeinen nicht vermeidbares Ereignis\" eingestuft werden kann?","noch zu prüfen",1,{"$f":"IF(C153=\"noch zu prüfen\",\"offen\",IF(C153=\"überprüft: nein\",\"unkritisch\",\"kritisch\"))","v":"offen"}]
[null,"Können die relevanten Populationen/Bestände der im Wirkraum vorkommenden Arten des Anhangs IV der FFH-RL oder Vogelarten durch eine projektbedingte Störung erheblich beeinträchtigt werden?","noch zu prüfen",1,"offen"]
[null,"Können Fortpflanzungs- oder Ruhestätten der im Wirkraum vorkommenden Arten des Anhang IV der FFH-RL oder die Nester der Vogelarten durch das Vorhaben beschädigt oder vernichtet werden?","noch zu prüfen",1,"offen"]
[null,"Kann der Verbotstatbestand der Zerstörung oder Beschädigung von Lebensstätten durch funktionserhaltende Maßnahmen als nicht berührt eingestuft werden? [Hinweis: Solche Maßnahmen sind nicht für den Aspekt der Tötung von Individuen oder rein kompensatorisch anwendbar]","noch zu prüfen",{"$f":"IF(C156=\"noch zu prüfen\",1,IF(C156=\"überprüft: nein\",2,IF(C156=\"überprüft: ja\",3)))","v":1},{"$f":"IF(C156=\"noch zu prüfen\",\"offen\",IF(C156=\"überprüft: nein\",\"kritisch\",IF(C156=\"überprüft: ja\",\"unkritisch\")))","v":"offen"}]
[null,"Wurden weitere geschützte Arten nach NschG fachlich ausreichend abgearbeitet/berücksichtigt?","noch zu prüfen",{"$f":"IF(C157=\"noch zu prüfen\",1,IF(C157=\"überprüft: nein\",2,IF(C157=\"überprüft: ja\",3)))","v":1},{"$f":"IF(C157=\"noch zu prüfen\",\"offen\",IF(C157=\"überprüft: nein\",\"kritisch\",IF(C157=\"überprüft: ja\",\"unkritisch\")))","v":"offen"}]
[]
[null,"Ausnahmeverfahren",null,{"$f":"IF(C159=\"noch zu prüfen\",1,IF(C159=\"überprüft: nein\",2,IF(C159=\"überprüft: ja\",3,)))","v":0}]
[null,"Besteht die Möglichkeit, durch anderweitige Lösungen das Ziel des Projektes zu erreichen und die Verbote des Art. 12 FFH-RL bzw. 5 VS-RL zu beachten?","noch zu prüfen",{"$f":"IF(C160=\"noch zu prüfen\",1,IF(C160=\"überprüft: nein\",2,IF(C160=\"überprüft: ja\",3,)))","v":1},{"$f":"IF(C160=\"noch zu prüfen\",\"offen\",IF(C160=\"überprüft: nein\",\"unkritisch\",\"kritisch\"))","v":"offen"}]
[null,"Kann der Projektwerber für das Vorhaben zwingende Gründe eines überwiegend öffentlichen Interesses belegen?","noch zu prüfen",{"$f":"IF(C161=\"noch zu prüfen\",1,IF(C161=\"überprüft: nein\",2,IF(C161=\"überprüft: ja\",3)))","v":1},{"$f":"IF(C161=\"noch zu prüfen\",\"offen\",IF(C161=\"überprüft: nein\",\"kritisch\",IF(C161=\"überprüft: ja\",\"unkritisch\")))","v":"offen"}]
[null,"Wird der Erhaltungszustand der Art im natürlichen Verbreitungsgebiet verschlechtert?","noch zu prüfen",{"$f":"IF(C162=\"noch zu prüfen\",1,IF(C162=\"überprüft: nein\",2,IF(C162=\"überprüft: ja\",3,)))","v":1},{"$f":"IF(C162=\"noch zu prüfen\",\"offen\",IF(C162=\"überprüft: nein\",\"unkritisch\",\"kritisch\"))","v":"offen"}]
[null,"Befindet sich die Art in der betreffenden biogeographischen Region Österreichs in einem günstigen Erhaltungszustand?","noch zu prüfen",{"$f":"IF(C163=\"noch zu prüfen\",1,IF(C163=\"überprüft: nein\",2,IF(C163=\"überprüft: ja\",3)))","v":1},{"$f":"IF(C163=\"noch zu prüfen\",\"offen\",IF(C163=\"überprüft: nein\",\"kritisch\",IF(C163=\"überprüft: ja\",\"unkritisch\")))","v":"offen"}]
[null,"Wird die Wiederherstellung eines günstigen Erhaltungszustandes behindert?","noch zu prüfen",{"$f":"IF(C164=\"noch zu prüfen\",1,IF(C164=\"überprüft: nein\",2,IF(C164=\"überprüft: ja\",3,)))","v":1},{"$f":"IF(C164=\"noch zu prüfen\",\"offen\",IF(C164=\"überprüft: nein\",\"unkritisch\",\"kritisch\"))","v":"offen"}]

{"sheet":"Auswertung Vorprüfung","index":5,"n_rows":111,"n_cols":6,"rows_kept":111,"cut":false,"hidden":false,"merged":[[100,1,100,5],[106,1,106,5],[108,1,108,5],[83,1,83,5],[87,1,87,5],[88,1,88,5],[93,1,93,5],[95,1,95,5],[99,1,99,5],[82,1,82,5],[53,1,53,5],[54,1,54,5],[59,1,59,5],[60,1,60,5],[61,1,61,5],[64,1,64,5],[65,1,65,5],[70,1,70,5],[71,1,71,5],[76,1,76,5],[77,1,77,5],[47,1,47,5],[25,1,25,5],[26,1,26,5],[29,1,29,5],[30,1,30,5],[33,1,33,5],[34,1,34,5],[37,1,37,5],[38,1,38,5],[42,1,42,5],[43,1,43,5],[46,1,46,5],[18,1,18,5],[0,1,0,5],[1,2,1,4],[2,2,2,4],[3,1,3,5],[4,1,4,5],[5,1,5,5],[7,1,7,5],[8,1,8,5],[9,1,9,5],[10,1,10,5],[17,1,17,5]]}
[]
[null,"Projekt:","GZ:",null,null,"Prüfkatalog zuletzt aktualisiert am:"]
[null,{"$f":"IF('Allgemeine Projektdaten'!H17=\"\",\"\",'Allgemeine Projektdaten'!H17)","v":""},{"$f":"IF('Allgemeine Projektdaten'!H14=\"\",\"\",'Allgemeine Projektdaten'!H14)","v":""},null,null,{"$f":"IF('Allgemeine Projektdaten'!H44=\"\",\"\",'Allgemeine Projektdaten'!H44)","v":""}]
[]
[]
[null,"AUSWERTUNG VORPRÜFUNG (Ergebnisse der Prüfung mittels Kriterienkatalog)"]
[null,"Frage","Überprüfung",null,"Beurteilung","Kommentar"]
[]
[null,"I. FRAGEN ZUM VORPROJEKT AUF GRUNDLAGE DES STEIRISCHEN KRITERIENKATALOGES (2008)"]
[]
[null,"Allgemeine Fragen"]
[null,"Wurde der Kriterienkatalog angewendet?",{"$f":"'I Eingabe Vorprüfung'!C12","v":"noch zu prüfen"},{"$f":"IF(C12=\"noch zu prüfen\",1,IF(C12=\"überprüft: nein\",2,IF(C12=\"überprüft: ja\",3)))","v":1},{"$f":"IF(C12=\"noch zu prüfen\",\"offen\",IF(C12=\"überprüft: nein\",\"kritisch\",IF(C12=\"überprüft: ja\",\"unkritisch\")))","v":"offen"},{"$f":"IF('I Eingabe Vorprüfung'!F12=\"\",\"\",'I Eingabe Vorprüfung'!F12)","v":""}]
[null,"Sind die Unterlagen zum Kriterienkatalog vollständig und nachvollziehbar abgearbeitet/vorgelegt?",{"$f":"'I Eingabe Vorprüfung'!C13","v":"noch zu prüfen"},1,{"$f":"IF(C13=\"noch zu prüfen\",\"offen\",IF(C13=\"überprüft: nein\",\"kritisch\",IF(C13=\"überprüft: ja\",\"unkritisch\")))","v":"offen"},{"$f":"IF('I Eingabe Vorprüfung'!F13=\"\",\"\",'I Eingabe Vorprüfung'!F13)","v":""}]
[null,"Ist eine Hochwertigkeit bereits aufgrund eines Kriteriums (Kategorie A-Kriterium) ausgebildet?",{"$f":"'I Eingabe Vorprüfung'!C14","v":"noch zu prüfen"},1,{"$f":"IF(C14=\"noch zu prüfen\",\"offen\",IF(C14=\"überprüft: nein\",\"unkritisch\",IF(C14=\"überprüft: ja\",\"kritisch\")))","v":"offen"},{"$f":"IF('I Eingabe Vorprüfung'!F14=\"\",\"\",'I Eingabe Vorprüfung'!F14)","v":""}]
[4.44444444444444E+54,"Ist eine Hochwertigkeit aufgrund der Kombination von 2 Kategorie B-Kriterien ausgebildet?","überprüft: nein",2,{"$f":"IF(C15=\"noch zu prüfen\",\"offen\",IF(C15=\"überprüft: nein\",\"unkritisch\",IF(C15=\"überprüft: ja\",\"kritisch\")))","v":"unkritisch"},{"$f":"IF('I Eingabe Vorprüfung'!F15=\"\",\"\",'I Eingabe Vorprüfung'!F15)","v":""}]
[null,"Ist eine Hochwertigkeit aufgrund der Kombination von 3 Kriterien aus unterschiedlichen Kriteriengruppen (A, B, und/oder C) ausgebildet?",{"$f":"'I Eingabe Vorprüfung'!C16","v":"noch zu prüfen"},1,{"$f":"IF(C16=\"noch zu prüfen\",\"offen\",IF(C16=\"überprüft: nein\",\"unkritisch\",IF(C16=\"überprüft: ja\",\"kritisch\")))","v":"offen"},{"$f":"IF('I Eingabe Vorprüfung'!F16=\"\",\"\",'I Eingabe Vorprüfung'!F16)","v":""}]
[null,"Ist eine Hochwertigkeit aufgrund der Kombination von 4 Kriterien aus unterschiedlichen Kriteriengruppen (A, B, und/oder C) ausgebildet?",{"$f":"'I Eingabe Vorprüfung'!C17","v":"noch zu prüfen"},1,{"$f":"IF(C17=\"noch zu prüfen\",\"offen\",IF(C17=\"überprüft: nein\",\"unkritisch\",IF(C17=\"überprüft: ja\",\"kritisch\")))","v":"offen"},{"$f":"IF('I Eingabe Vorprüfung'!F17=\"\",\"\",'I Eingabe Vorprüfung'!F17)","v":""}]
[]
[null,"Kriteriengruppe gewässermorphologische Sonderformen"]
[null,"Ist eine Schlucht gemäß Kriterienkatalog ausgebildet?",{"$f":"'I Eingabe Vorprüfung'!C20","v":"noch zu prüfen"},{"$f":"IF(C20=\"noch zu prüfen\",1,IF(C20=\"überprüft: nein\",2,IF(C20=\"überprüft: ja A\",3,IF(C20=\"überprüft: ja B\",4,IF(C20=\"überprüft: ja C\",5)))))","v":1},{"$f":"IF(C20=\"noch zu prüfen\",\"offen\",IF(C20=\"überprüft: nein\",\"unkritisch\",\"kritisch\"))","v":"offen"},{"$f":"IF('I Eingabe Vorprüfung'!F20=\"\",\"\",'I Eingabe Vorprüfung'!F20)","v":""}]
[null,"Ist eine Klamm gemäß Kriterienkatalog ausgebildet?",{"$f":"'I Eingabe Vorprüfung'!C21","v":"noch zu prüfen"},{"$f":"IF(C21=\"noch zu prüfen\",1,IF(C21=\"überprüft: nein\",2,IF(C21=\"überprüft: ja A\",3,IF(C21=\"überprüft: ja B\",4,IF(C21=\"überprüft: ja C\",5)))))","v":1},{"$f":"IF(C21=\"noch zu prüfen\",\"offen\",IF(C21=\"überprüft: nein\",\"unkritisch\",\"kritisch\"))","v":"offen"},{"$f":"IF('I Eingabe Vorprüfung'!F21=\"\",\"\",'I Eingabe Vorprüfung'!F21)","v":""}]
[null,"Ist ein Katarakt gemäß Kriterienkatalog ausgebildet?",{"$f":"'I Eingabe Vorprüfung'!C22","v":"noch zu prüfen"},1,"offen",{"$f":"IF('I Eingabe Vorprüfung'!F22=\"\",\"\",'I Eingabe Vorprüfung'!F22)","v":""}]
[null,"Ist ein Wasserfall gemäß Kriterienkatalog ausgebildet?",{"$f":"'I Eingabe Vorprüfung'!C23","v":"noch zu prüfen"},1,"offen",{"$f":"IF('I Eingabe Vorprüfung'!F23=\"\",\"\",'I Eingabe Vorprüfung'!F23)","v":""}]
[null,"Ist ein Kar gemäß Kriterienkatalog ausgebildet?",{"$f":"'I Eingabe Vorprüfung'!C24","v":"noch zu prüfen"},{"$f":"IF(C24=\"noch zu prüfen\",1,IF(C24=\"überprüft: nein\",2,IF(C24=\"überprüft: ja A\",3,IF(C24=\"überprüft: ja B\",4,IF(C24=\"überprüft: ja C\",5)))))","v":1},"offen",{"$f":"IF('I Eingabe Vorprüfung'!F24=\"\",\"\",'I Eingabe Vorprüfung'!F24)","v":""}]
[null,"Ist eine Quelle als Ursprung des Fließgewässers gemäß Kriterienkatalog ausgebildet?",{"$f":"'I Eingabe Vorprüfung'!C25","v":"noch zu prüfen"},1,"offen",{"$f":"IF('I Eingabe Vorprüfung'!F25=\"\",\"\",'I Eingabe Vorprüfung'!F25)","v":""}]
[]
[null,"Kriteriengruppe Gewässertypologie"]
[null,"Ist ein dem historischen Leitbild entsprechender, ausgeprägter mäandrierender Verlauf gemäß Kriterienkatalog ausgebildet?",{"$f":"'I Eingabe Vorprüfung'!C28","v":"noch zu prüfen"},1,"offen",{"$f":"IF('I Eingabe Vorprüfung'!F28=\"\",\"\",'I Eingabe Vorprüfung'!F28)","v":""}]
[null,"Ist ein dem historischen Leitbild entsprechender, ausgeprägter furkierender Verlauf gemäß Kriterienkatalog ausgebildet?",{"$f":"'I Eingabe Vorprüfung'!C29","v":"noch zu prüfen"},1,"offen",{"$f":"IF('I Eingabe Vorprüfung'!F29=\"\",\"\",'I Eingabe Vorprüfung'!F29)","v":""}]
[]
[null,"Kriteriengruppe Natürlichkeitsgrad"]
[null,"Ist eine Naturnähe gemäß Kriterienkatalog ausgebildet?",{"$f":"'I Eingabe Vorprüfung'!C32","v":"noch zu prüfen"},1,"offen",{"$f":"IF('I Eingabe Vorprüfung'!F32=\"\",\"\",'I Eingabe Vorprüfung'!F32)","v":""}]
[null,"Ist ein naturnaher Mündungsbereich gemäß Kriterienkatalog ausgebildet?",{"$f":"'I Eingabe Vorprüfung'!C33","v":"noch zu prüfen"},1,"offen",{"$f":"IF('I Eingabe Vorprüfung'!F33=\"\",\"\",'I Eingabe Vorprüfung'!F33)","v":""}]
[]
[null,"Kriteriengruppe Wohlfahrtsfunktion"]
[null,"Sind Fließgewässerabschnitte mit Wohlfahrtsfunktion gemäß Kriterienkatalog ausgebildet?",{"$f":"'I Eingabe Vorprüfung'!C36","v":"noch zu prüfen"},1,"offen",{"$f":"IF('I Eingabe Vorprüfung'!F36=\"\",\"\",'I Eingabe Vorprüfung'!F36)","v":""}]
[null,"Sind spirituell genutzte Orte oder Bauten gemäß Kriterienkatalog ausgebildet?",{"$f":"'I Eingabe Vorprüfung'!C37","v":"noch zu prüfen"},1,"offen",{"$f":"IF('I Eingabe Vorprüfung'!F37=\"\",\"\",'I Eingabe Vorprüfung'!F37)","v":""}]
[]
[null,"Kriteriengruppe Biotope"]
[null,"Sind fließgewässerspezifische Lebensraumtyp(en) Anhang I nach FFH-RL im Erhaltungszustand A gemäß Kriterienkatalog ausgebildet?",{"$f":"'I Eingabe Vorprüfung'!C40","v":"noch zu prüfen"},1,"offen",{"$f":"IF('I Eingabe Vorprüfung'!F40=\"\",\"\",'I Eingabe Vorprüfung'!F40)","v":""}]
[null,"Sind fließgewässerspezifische Lebensraumtyp(en) Anhang I nach FFH-RL im Erhaltungszustand B gemäß Kriterienkatalog ausgebildet?",{"$f":"'I Eingabe Vorprüfung'!C41","v":"noch zu prüfen"},1,"offen",{"$f":"IF('I Eingabe Vorprüfung'!F41=\"\",\"\",'I Eingabe Vorprüfung'!F41)","v":""}]
[null,"Sind fließgewässerspezifische Biotope nach Biotopkartierung Steiermark gemäß Kriterienkatalog ausgebildet?",{"$f":"'I Eingabe Vorprüfung'!C42","v":"noch zu prüfen"},1,"offen",{"$f":"IF('I Eingabe Vorprüfung'!F42=\"\",\"\",'I Eingabe Vorprüfung'!F42)","v":""}]
[]
[null,"Kriteriengruppe Tiere und Pflanzen"]
[null,"Sind Vorkommen einer naturschutzfachlich höchst bedeutenden Art gemäß Kriterienkatalog vorhanden bzw. dokumentiert?",{"$f":"'I Eingabe Vorprüfung'!C45","v":"noch zu prüfen"},1,"offen",{"$f":"IF('I Eingabe Vorprüfung'!F45=\"\",\"\",'I Eingabe Vorprüfung'!F45)","v":""}]
[null,"Sind Restvorkommen besonders seltener Zönosen gemäß Kriterienkatalog vorhanden bzw. dokumentiert?",{"$f":"'I Eingabe Vorprüfung'!C46","v":"noch zu prüfen"},1,"offen",{"$f":"IF('I Eingabe Vorprüfung'!F46=\"\",\"\",'I Eingabe Vorprüfung'!F46)","v":""}]
[]
[null,"Kriteriengruppe Allgemeine Gewässermorphologie"]
[null,"Ist eine ökomorphologische Bewertung gemäß Kriterienkatalog im Rhithral ausgebildet?",{"$f":"'I Eingabe Vorprüfung'!C49","v":"noch zu prüfen"},1,"offen",{"$f":"IF('I Eingabe Vorprüfung'!F49=\"\",\"\",'I Eingabe Vorprüfung'!F49)","v":""}]
[null,"Ist eine ökomorphologische Bewertung gemäß Kriterienkatalog im Potamal ausgebildet?",{"$f":"'I Eingabe Vorprüfung'!C50","v":"noch zu prüfen"},1,"offen",{"$f":"IF('I Eingabe Vorprüfung'!F50=\"\",\"\",'I Eingabe Vorprüfung'!F50)","v":""}]
[null,"Ist eine Regenerationsstrecke im Rhithral an energetisch bereits genutzten Fließgewässern gemäß Kriterienkatalog ausgebildet?",{"$f":"'I Eingabe Vorprüfung'!C51","v":"noch zu prüfen"},1,"offen",{"$f":"IF('I Eingabe Vorprüfung'!F51=\"\",\"\",'I Eingabe Vorprüfung'!F51)","v":""}]
[null,"Ist eine Regenerationsstrecke im Potamal an energetisch bereits genutzten Fließgewässern gemäß Kriterienkatalog ausgebildet?",{"$f":"'I Eingabe Vorprüfung'!C52","v":"noch zu prüfen"},1,"offen",{"$f":"IF('I Eingabe Vorprüfung'!F52=\"\",\"\",'I Eingabe Vorprüfung'!F52)","v":""}]
[null,"Ist eine Durchgängigkeit gemäß Kriterienkatalog  ausgebildet?",{"$f":"'I Eingabe Vorprüfung'!C53","v":"noch zu prüfen"},1,"offen",{"$f":"IF('I Eingabe Vorprüfung'!F53=\"\",\"\",'I Eingabe Vorprüfung'!F53)","v":""}]
[]
[null,"II. FRAGEN ZU DEN PROJEKTIERUNGSUNTERLAGEN (GEMÄß KRITERIENKATALOG, KAP. B)"]
[null,"Sind die wichtigsten Projektbestandteile planlich und textlich übersichtsmäßig dargestellt?",{"$f":"'I Eingabe Vorprüfung'!C56","v":"noch zu prüfen"},{"$f":"IF(C56=\"noch zu prüfen\",1,IF(C56=\"überprüft: nein\",2,IF(C56=\"überprüft: ja\",3)))","v":1},{"$f":"IF(C56=\"noch zu prüfen\",\"offen\",IF(C56=\"überprüft: nein\",\"kritisch\",IF(C56=\"überprüft: ja\",\"unkritisch\")))","v":"offen"},{"$f":"IF('I Eingabe Vorprüfung'!F56=\"\",\"\",'I Eingabe Vorprüfung'!F56)","v":""}]
[null,"Sind die wichtigsten hydrologischen/energetischen Kenngrößen angeführt?",{"$f":"'I Eingabe Vorprüfung'!C57","v":"noch zu prüfen"},1,{"$f":"IF(C57=\"noch zu prüfen\",\"offen\",IF(C57=\"überprüft: nein\",\"kritisch\",IF(C57=\"überprüft: ja\",\"unkritisch\")))","v":"offen"},{"$f":"IF('I Eingabe Vorprüfung'!F57=\"\",\"\",'I Eingabe Vorprüfung'!F57)","v":""}]
[null,"Welche Art der Pflichtwasserabgabe ist vorgesehen?",{"$f":"'I Eingabe Vorprüfung'!C58","v":"noch zu prüfen"},{"$f":"IF(C58=\"noch zu prüfen\",1,IF(C58=\"überprüft: Dynamische\",6,IF(C58=\"überprüft: Gestaffelte\",7, IF(C58=\"überprüft: Konstante\",8,IF(C58=\"überprüft: keine\",9)))))","v":1},{"$f":"IF(C58=\"noch zu prüfen\",\"offen\",IF(C58=\"überprüft: Dynamische\",\"unkritisch\",IF(C58=\"überprüft: Gestaffelte\",\"unkritisch\",IF(C58=\"überprüft: Keine\",\"kritisch\",IF(C58=\"überprüft: Konstante\",\"kritisch\")))))","v":"offen"},{"$f":"IF('I Eingabe Vorprüfung'!F58=\"\",\"\",'I Eingabe Vorprüfung'!F58)","v":""}]
[]
[null,"III. FRAGEN ZUR CHECKLISTE"]
[]
[null,"Allgemeine Fragen"]
[null,"Wurde die Checkliste gemäß Kriterienkatalog angewendet?",{"$f":"'I Eingabe Vorprüfung'!C63","v":"noch zu prüfen"},{"$f":"IF(C63=\"noch zu prüfen\",1,IF(C63=\"überprüft: nein\",2,IF(C63=\"überprüft: ja\",3)))","v":1},{"$f":"IF(C63=\"noch zu prüfen\",\"offen\",IF(C63=\"überprüft: nein\",\"kritisch\",\"unkritisch\"))","v":"offen"},{"$f":"IF('I Eingabe Vorprüfung'!F63=\"\",\"\",'I Eingabe Vorprüfung'!F63)","v":""}]
[null,"Sind die Unterlagen zur Checkliste vollständig und nachvollziehbar abgearbeitet/vorgelegt?",{"$f":"'I Eingabe Vorprüfung'!C64","v":"noch zu prüfen"},{"$f":"IF(C64=\"noch zu prüfen\",1,IF(C64=\"überprüft: nein\",2,IF(C64=\"überprüft: ja\",3,)))","v":1},{"$f":"IF(C64=\"noch zu prüfen\",\"offen\",IF(C64=\"überprüft: nein\",\"kritisch\",\"unkritisch\"))","v":"offen"},{"$f":"IF('I Eingabe Vorprüfung'!F64=\"\",\"\",'I Eingabe Vorprüfung'!F64)","v":""}]
[]
[null,"Prinzipielle Fragen des Gebiets- und Artenschutzes"]
[null,"Können Europaschutzgebiete durch Projektsbestandteile direkt oder indirekt (also etwa über den Wasserpfad, über Lärm o. ä., via Erschließung etc.) betroffen sein?",{"$f":"'I Eingabe Vorprüfung'!C67","v":"noch zu prüfen"},{"$f":"IF(C67=\"noch zu prüfen\",1,IF(C67=\"überprüft: nein\",2,IF(C67=\"überprüft: ja\",3,)))","v":1},{"$f":"IF(C67=\"noch zu prüfen\",\"offen\",IF(C67=\"überprüft: nein\",\"unkritisch\",\"kritisch\"))","v":"offen"},{"$f":"IF('I Eingabe Vorprüfung'!F67=\"\",\"\",'I Eingabe Vorprüfung'!F67)","v":""}]
[null,"Können anderweitige Schutzgebiete betroffen sein, deren Schutzzweck bzw. geltende Verbote durch Projektbestandteile berührt werden? ",{"$f":"'I Eingabe Vorprüfung'!C68","v":"noch zu prüfen"},{"$f":"IF(C68=\"noch zu prüfen\",1,IF(C68=\"überprüft: nein\",2,IF(C68=\"überprüft: ja\",3,)))","v":1},{"$f":"IF(C68=\"noch zu prüfen\",\"offen\",IF(C68=\"überprüft: nein\",\"unkritisch\",\"kritisch\"))","v":"offen"},{"$f":"IF('I Eingabe Vorprüfung'!F68=\"\",\"\",'I Eingabe Vorprüfung'!F68)","v":""}]
[null,"Ist die Verletzung artenschutzrechtlicher Verbote (insbesondere gemeinschaftsrechtlich begründeter) bereits jetzt erkennbar? Welche Arten / Verbote sind ggf. berührt?",{"$f":"'I Eingabe Vorprüfung'!C69","v":"noch zu prüfen"},{"$f":"IF(C69=\"noch zu prüfen\",1,IF(C69=\"überprüft: nein\",2,IF(C69=\"überprüft: ja\",3,)))","v":1},{"$f":"IF(C69=\"noch zu prüfen\",\"offen\",IF(C69=\"überprüft: nein\",\"unkritisch\",\"kritisch\"))","v":"offen"},{"$f":"IF('I Eingabe Vorprüfung'!F69=\"\",\"\",'I Eingabe Vorprüfung'!F69)","v":""}]
[null,"Werden Maßnahmen bzw. Optimierungen in der Planung zur Vermeidung oder Minderung von Konflikten gesetzt?",{"$f":"'I Eingabe Vorprüfung'!C70","v":"noch zu prüfen"},{"$f":"IF(C70=\"noch zu prüfen\",1,IF(C70=\"überprüft: nein\",2,IF(C70=\"überprüft: ja\",3)))","v":1},{"$f":"IF(C70=\"noch zu prüfen\",\"offen\",IF(C70=\"überprüft: nein\",\"kritisch\",\"unkritisch\"))","v":"offen"},{"$f":"IF('I Eingabe Vorprüfung'!F70=\"\",\"\",'I Eingabe Vorprüfung'!F70)","v":""}]
[]
[null,"Fragen zum Fachbereich Pflanzen, Tiere und deren Lebensräume"]
[null,"Kann aufgrund der räumlich-topographischen Situation eine dem erwarteten Fischinventar entsprechende Fischaufstiegshilfe umgesetzt werden?",{"$f":"'I Eingabe Vorprüfung'!C73","v":"noch zu prüfen"},{"$f":"IF(C73=\"noch zu prüfen\",1,IF(C73=\"überprüft: nein\",2,IF(C73=\"überprüft: ja\",3,)))","v":1},{"$f":"IF(C73=\"noch zu prüfen\",\"offen\",IF(C73=\"überprüft: nein\",\"kritisch\",\"unkritisch\"))","v":"offen"},{"$f":"IF('I Eingabe Vorprüfung'!F73=\"\",\"\",'I Eingabe Vorprüfung'!F73)","v":""}]
[null,"Werden gefährdete bzw. sensible und schlecht regenerierbare Biotoptypen durch Flächenverlust infolge Projektbestandteilen direkt betroffen oder können solche anderweitig beeinträchtigt werden?",{"$f":"'I Eingabe Vorprüfung'!C74","v":"noch zu prüfen"},{"$f":"IF(C74=\"noch zu prüfen\",1,IF(C74=\"überprüft: nein\",2,IF(C74=\"überprüft: ja\",3,)))","v":1},{"$f":"IF(C74=\"noch zu prüfen\",\"offen\",IF(C74=\"überprüft: nein\",\"unkritisch\",\"kritisch\"))","v":"offen"},{"$f":"IF('I Eingabe Vorprüfung'!F74=\"\",\"\",'I Eingabe Vorprüfung'!F74)","v":""}]
[null,"Liegen bereits jetzt Hinweise darauf vor, dass Lebensräume gefährdeter Tier- oder Pflanzenarten durch Flächenverlust infolge Projektbestandteilen direkt betroffen werden oder solche anderweitig beeinträchtigt werden könnten?",{"$f":"'I Eingabe Vorprüfung'!C75","v":"noch zu prüfen"},{"$f":"IF(C75=\"noch zu prüfen\",1,IF(C75=\"überprüft: nein\",2,IF(C75=\"überprüft: ja\",3,)))","v":1},{"$f":"IF(C75=\"noch zu prüfen\",\"offen\",IF(C75=\"überprüft: nein\",\"unkritisch\",\"kritisch\"))","v":"offen"},{"$f":"IF('I Eingabe Vorprüfung'!F75=\"\",\"\",'I Eingabe Vorprüfung'!F75)","v":""}]
[null,"Werden Maßnahmen bzw. Optimierungen in der Planung zur Vermeidung oder Minderung von Konflikten gesetzt?",{"$f":"'I Eingabe Vorprüfung'!C76","v":"noch zu prüfen"},{"$f":"IF(C76=\"noch zu prüfen\",1,IF(C76=\"überprüft: nein\",2,IF(C76=\"überprüft: ja\",3)))","v":1},{"$f":"IF(C76=\"noch zu prüfen\",\"offen\",IF(C76=\"überprüft: nein\",\"kritisch\",\"unkritisch\"))","v":"offen"},{"$f":"IF('I Eingabe Vorprüfung'!F76=\"\",\"\",'I Eingabe Vorprüfung'!F76)","v":""}]
[]
[null,"Fragen zum Fachbereich Natürlichkeitsgrad"]
[null,"Liegt das Projektgebiet in einer insgesamt besonders sensiblen Kulturlandschaft, die durch eine eher traditionelle/historische Landnutzung auch heute noch geprägt ist? Hierzu zählt insbesondere die Situation der durch Almen führenden Fließgewässer.",{"$f":"'I Eingabe Vorprüfung'!C79","v":"noch zu prüfen"},{"$f":"IF(C79=\"noch zu prüfen\",1,IF(C79=\"überprüft: nein\",2,IF(C79=\"überprüft: ja\",3,)))","v":1},{"$f":"IF(C79=\"noch zu prüfen\",\"offen\",IF(C79=\"überprüft: nein\",\"unkritisch\",\"kritisch\"))","v":"offen"},{"$f":"IF('I Eingabe Vorprüfung'!F79=\"\",\"\",'I Eingabe Vorprüfung'!F79)","v":""}]
[null,"Befinden sich im Projektgebiet oder im visuellen Wahrnehmungsfeld charaktervolle, vegetationsbestimmte Landschaftselemente (Einzelbäume, Baumgruppen/ Feldgehölze, Haine) in Kombination mit extensiven landwirtschaftlichen Nutzungen (z.B. Streuobstwiesen, 1 bis 2 mahdige Wiesen)?",{"$f":"'I Eingabe Vorprüfung'!C80","v":"noch zu prüfen"},{"$f":"IF(C80=\"noch zu prüfen\",1,IF(C80=\"überprüft: nein\",2,IF(C80=\"überprüft: ja\",3,)))","v":1},{"$f":"IF(C80=\"noch zu prüfen\",\"offen\",IF(C80=\"überprüft: nein\",\"unkritisch\",\"kritisch\"))","v":"offen"},{"$f":"IF('I Eingabe Vorprüfung'!F80=\"\",\"\",'I Eingabe Vorprüfung'!F80)","v":""}]
[null,"Finden sich im Projektgebiet Fließgewässerabschnitte, die prägnante und raumprägende, wasserumspülte Felsvorsprünge, Geländeabbrüche und Reliefnischen aufweisen?",{"$f":"'I Eingabe Vorprüfung'!C81","v":"noch zu prüfen"},{"$f":"IF(C81=\"noch zu prüfen\",1,IF(C81=\"überprüft: nein\",2,IF(C81=\"überprüft: ja\",3,)))","v":1},{"$f":"IF(C81=\"noch zu prüfen\",\"offen\",IF(C81=\"überprüft: nein\",\"unkritisch\",\"kritisch\"))","v":"offen"},{"$f":"IF('I Eingabe Vorprüfung'!F81=\"\",\"\",'I Eingabe Vorprüfung'!F81)","v":""}]
[null,"Werden Maßnahmen bzw. Optimierungen in der Planung zur Vermeidung oder Minderung von Konflikten gesetzt?",{"$f":"'I Eingabe Vorprüfung'!C82","v":"noch zu prüfen"},{"$f":"IF(C82=\"noch zu prüfen\",1,IF(C82=\"überprüft: nein\",2,IF(C82=\"überprüft: ja\",3)))","v":1},{"$f":"IF(C82=\"noch zu prüfen\",\"offen\",IF(C82=\"überprüft: nein\",\"kritisch\",\"unkritisch\"))","v":"offen"},{"$f":"IF('I Eingabe Vorprüfung'!F82=\"\",\"\",'I Eingabe Vorprüfung'!F82)","v":""}]
[]
[null,"Fragen zum Fachbereich Wohlfahrtsfunktion"]
[null,"Liegt das Projektgebiet in einem für die ruhige, landschaftsbezogene Erholung zumindest lokal wichtigen oder stark frequentierten Raum?",{"$f":"'I Eingabe Vorprüfung'!C85","v":"noch zu prüfen"},{"$f":"IF(C85=\"noch zu prüfen\",1,IF(C85=\"überprüft: nein\",2,IF(C85=\"überprüft: ja\",3,)))","v":1},{"$f":"IF(C85=\"noch zu prüfen\",\"offen\",IF(C85=\"überprüft: nein\",\"unkritisch\",\"kritisch\"))","v":"offen"},{"$f":"IF('I Eingabe Vorprüfung'!F85=\"\",\"\",'I Eingabe Vorprüfung'!F85)","v":""}]
[null,"Befinden sich im Projektgebiet oder im unmittelbaren Umfeld relevante Wanderwege oder andere Erholungseinrichtungen?",{"$f":"'I Eingabe Vorprüfung'!C86","v":"noch zu prüfen"},{"$f":"IF(C86=\"noch zu prüfen\",1,IF(C86=\"überprüft: nein\",2,IF(C86=\"überprüft: ja\",3,)))","v":1},{"$f":"IF(C86=\"noch zu prüfen\",\"offen\",IF(C86=\"überprüft: nein\",\"unkritisch\",\"kritisch\"))","v":"offen"},{"$f":"IF('I Eingabe Vorprüfung'!F86=\"\",\"\",'I Eingabe Vorprüfung'!F86)","v":""}]
[null,"Werden Maßnahmen bzw. Optimierungen in der Planung zur Vermeidung oder Minderung von Konflikten gesetzt?",{"$f":"'I Eingabe Vorprüfung'!C87","v":"noch zu prüfen"},{"$f":"IF(C87=\"noch zu prüfen\",1,IF(C87=\"überprüft: nein\",2,IF(C87=\"überprüft: ja\",3)))","v":1},{"$f":"IF(C87=\"noch zu prüfen\",\"offen\",IF(C87=\"überprüft: nein\",\"kritisch\",\"unkritisch\"))","v":"offen"},{"$f":"IF('I Eingabe Vorprüfung'!F87=\"\",\"\",'I Eingabe Vorprüfung'!F87)","v":""}]
[]
[null,"Sonstige Fragen"]
[null,"Liegen Hinweise darauf vor, dass es projektbedingt zur Beschädigung oder Vernichtung wissenschaftlich bedeutsamer Zeugnisse menschlichen, tierischen, pflanzlichen oder mineralischen Daseins kommen könnte (s. §2 Abs. 2 Stmk. NschG)? Beispiele sind fossile Tier- und Pflanzenvorkommen, besondere Mineralfundstätten oder besondere Bodenausprägungen.",{"$f":"'I Eingabe Vorprüfung'!C90","v":"noch zu prüfen"},{"$f":"IF(C90=\"noch zu prüfen\",1,IF(C90=\"überprüft: nein\",2,IF(C90=\"überprüft: ja\",3,)))","v":1},{"$f":"IF(C90=\"noch zu prüfen\",\"offen\",IF(C90=\"überprüft: nein\",\"unkritisch\",\"kritisch\"))","v":"offen"},{"$f":"IF('I Eingabe Vorprüfung'!F90=\"\",\"\",'I Eingabe Vorprüfung'!F90)","v":""}]
[null,"Liegt das Projektgebiet in einem durch öffentliche Mittel geförderten renaturierten Fließgewässerabschnitt (z.B. Life-Projekte)? Wenn ja, sofortige Abklärung der Umsetzbarkeit des geplanten Projektes mit dem Förderungswerber.",{"$f":"'I Eingabe Vorprüfung'!C91","v":"noch zu prüfen"},{"$f":"IF(C91=\"noch zu prüfen\",1,IF(C91=\"überprüft: nein\",2,IF(C91=\"überprüft: ja\",3,)))","v":1},{"$f":"IF(C91=\"noch zu prüfen\",\"offen\",IF(C91=\"überprüft: nein\",\"unkritisch\",\"kritisch\"))","v":"offen"},{"$f":"IF('I Eingabe Vorprüfung'!F91=\"\",\"\",'I Eingabe Vorprüfung'!F91)","v":""}]
[null,"Werden Maßnahmen bzw. Optimierungen in der Planung zur Vermeidung oder Minderung von Konflikten gesetzt?",{"$f":"'I Eingabe Vorprüfung'!C92","v":"noch zu prüfen"},{"$f":"IF(C92=\"noch zu prüfen\",1,IF(C92=\"überprüft: nein\",2,IF(C92=\"überprüft: ja\",3)))","v":1},{"$f":"IF(C92=\"noch zu prüfen\",\"offen\",IF(C92=\"überprüft: nein\",\"kritisch\",\"unkritisch\"))","v":"offen"},{"$f":"IF('I Eingabe Vorprüfung'!F92=\"\",\"\",'I Eingabe Vorprüfung'!F92)","v":""}]
[]
[null,"IV. FRAGEN ZUM ERHEBUNGSBOGEN"]
[]
[null,"Allgemeine Fragen"]
[null,"Wurde der Erhebungsbogen angewendet?",{"$f":"'I Eingabe Vorprüfung'!C97","v":"noch zu prüfen"},{"$f":"IF(C97=\"noch zu prüfen\",1,IF(C97=\"überprüft: nein\",2,IF(C97=\"überprüft: ja\",3,)))","v":1},{"$f":"IF(C97=\"noch zu prüfen\",\"offen\",IF(C97=\"überprüft: nein\",\"kritisch\",\"unkritisch\"))","v":"offen"},{"$f":"IF('I Eingabe Vorprüfung'!F97=\"\",\"\",'I Eingabe Vorprüfung'!F97)","v":""}]
[null,"Sind die Unterlagen zum Erhebungsbogen vollständig und nachvollziehbar abgearbeitet/vorgelegt?",{"$f":"'I Eingabe Vorprüfung'!C98","v":"noch zu prüfen"},{"$f":"IF(C98=\"noch zu prüfen\",1,IF(C98=\"überprüft: nein\",2,IF(C98=\"überprüft: ja\",3,)))","v":1},{"$f":"IF(C98=\"noch zu prüfen\",\"offen\",IF(C98=\"überprüft: nein\",\"kritisch\",\"unkritisch\"))","v":"offen"},{"$f":"IF('I Eingabe Vorprüfung'!F98=\"\",\"\",'I Eingabe Vorprüfung'!F98)","v":""}]
[null,"Stimmen die Angaben im Erhebungsbogen mit den Auswertungen zu den einzelnen Kriterien überein?",{"$f":"'I Eingabe Vorprüfung'!C99","v":"noch zu prüfen"},{"$f":"IF(C99=\"noch zu prüfen\",1,IF(C99=\"überprüft: nein\",2,IF(C99=\"überprüft: ja\",3,)))","v":1},{"$f":"IF(C99=\"noch zu prüfen\",\"offen\",IF(C99=\"überprüft: nein\",\"kritisch\",\"unkritisch\"))","v":"offen"},{"$f":"IF('I Eingabe Vorprüfung'!F99=\"\",\"\",'I Eingabe Vorprüfung'!F99)","v":""}]
[]
[null,"V. ERSTE FRAGEN ZUR EINREICHPLANUNG"]
[]
[null,"Sind aufgrund von Verordnungen und Bescheiden Verbote ohne Ausnahmeregelung gegeben, die einen Ausschließungsgrund darstellen?",{"$f":"'I Eingabe Vorprüfung'!C103","v":"noch zu prüfen"},{"$f":"IF(C103=\"noch zu prüfen\",1,IF(C103=\"überprüft: nein\",2,IF(C103=\"überprüft: ja\",3,)))","v":1},{"$f":"IF(C103=\"noch zu prüfen\",\"offen\",IF(C103=\"überprüft: nein\",\"unkritisch\",\"kritisch\"))","v":"offen"},{"$f":"IF('I Eingabe Vorprüfung'!F103=\"\",\"\",'I Eingabe Vorprüfung'!F103)","v":""}]
[null,"Liegt das Projektgebiet in einem von den Naturschutzbeauftragten empfohlenen Ausschließungsgebiet (Naturschutzgebiete §5, Abs.2 lit.b, lit.c, Naturdenkmäler, Geschützte Landschaftsteile, RAMSAR-Gebiete)? ",{"$f":"'I Eingabe Vorprüfung'!C104","v":"noch zu prüfen"},{"$f":"IF(C104=\"noch zu prüfen\",1,IF(C104=\"überprüft: nein\",2,IF(C104=\"überprüft: ja\",3,)))","v":1},{"$f":"IF(C104=\"noch zu prüfen\",\"offen\",IF(C104=\"überprüft: nein\",\"unkritisch\",\"kritisch\"))","v":"offen"},{"$f":"IF('I Eingabe Vorprüfung'!F104=\"\",\"\",'I Eingabe Vorprüfung'!F104)","v":""}]
[null,"Wurde in Schutzgebieten (Naturschutzgebiete §5 Abs. 2 lit.a, Naturparke, Europaschutzgebiete, Biogenetische Reservate, Landschaftsschutzgebiete) der besondere Schutzzweck berücksichtigt und bleibt dieser unberührt?",{"$f":"'I Eingabe Vorprüfung'!C105","v":"noch zu prüfen"},{"$f":"IF(C105=\"noch zu prüfen\",1,IF(C105=\"überprüft: nein\",2,IF(C105=\"überprüft: ja\",3,)))","v":1},{"$f":"IF(C105=\"noch zu prüfen\",\"offen\",IF(C105=\"überprüft: nein\",\"kritisch\",\"unkritisch\"))","v":"offen"},{"$f":"IF('I Eingabe Vorprüfung'!F105=\"\",\"\",'I Eingabe Vorprüfung'!F105)","v":""}]
[]
[null,"VI. FRAGEN ZUM ARTENSCHUTZ"]
[]
[null,"Potenzialabschätzung"]
[null,"Wurde eine Potenzialabschätzung zum Artenschutz bzw. zu naturschutzfachlich wertbestimmenden Arten durchgeführt?",{"$f":"'I Eingabe Vorprüfung'!C110","v":"noch zu prüfen"},{"$f":"IF(C110=\"noch zu prüfen\",1,IF(C110=\"überprüft: nein\",2,IF(C110=\"überprüft: ja\",3,)))","v":1},{"$f":"IF(C110=\"noch zu prüfen\",\"offen\",IF(C110=\"überprüft: nein\",\"kritisch\",\"unkritisch\"))","v":"offen"},{"$f":"IF('I Eingabe Vorprüfung'!F110=\"\",\"\",'I Eingabe Vorprüfung'!F110)","v":""}]
[null,"Ist auf Grundlage der Potenzialabschätzung mit geschützten Arten bzw. mit naturschutzfachlich wertbestimmenden Arten zu rechnen?\n(Ohne Ergenisse detaillierter Untersuchungen, die im Einreichprojekt erfolgen.)",{"$f":"'I Eingabe Vorprüfung'!C111","v":"noch zu prüfen"},1,{"$f":"IF(C111=\"noch zu prüfen\",\"offen\",IF(C111=\"überprüft: nein\",\"unkritisch\",\"kritisch\"))","v":"offen"},{"$f":"IF('I Eingabe Vorprüfung'!F111=\"\",\"\",'I Eingabe Vorprüfung'!F111)","v":""}]

{"sheet":"Auswertung Einreichplanung","index":6,"n_rows":164,"n_cols":6,"rows_kept":164,"cut":false,"hidden":false,"merged":[[148,1,148,5],[157,1,157,5],[158,1,158,5],[133,1,133,5],[134,1,134,5],[143,1,143,5],[145,1,145,5],[146,1,146,5],[147,1,147,5],[110,1,110,5],[115,1,115,5],[119,1,119,5],[124,1,124,5],[128,1,128,5],[129,1,129,5],[71,1,71,5],[79,1,79,5],[89,1,89,5],[99,1,99,5],[104,1,104,5],[109,1,109,5],[50,1,50,5],[54,1,54,5],[59,1,59,5],[61,1,61,5],[62,1,62,5],[63,1,63,5],[29,1,29,5],[31,1,31,5],[36,1,36,5],[40,1,40,5],[41,1,41,5],[46,1,46,5],[14,1,14,5],[15,1,15,5],[20,1,20,5],[22,1,22,5],[27,1,27,5],[28,1,28,5],[7,1,7,5],[8,1,8,5],[9,1,9,5],[11,1,11,5],[12,1,12,5],[13,1,13,5],[0,16381,0,16383],[1,2,1,4],[2,2,2,4],[3,1,3,5],[4,1,4,5],[5,1,5,5],[0,16339,0,16343],[0,16346,0,16350],[0,16353,0,16357],[0,16360,0,16364],[0,16367,0,16371],[0,16374,0,16378],[0,16297,0,16301],[0,16304,0,16308],[0,16311,0,16315],[0,16318,0,16322],[0,16325,0,16329],[0,16332,0,16336],[0,16255,0,16259],[0,16262,0,16266],[0,16269,0,16273],[0,16276,0,16280],[0,16283,0,16287],[0,16290,0,16294],[0,16213,0,16217],[0,16220,0,16224],[0,16227,0,16231],[0,16234,0,16238],[0,16241,0,16245],[0,16248,0,16252],[0,16171,0,16175],[0,16178,0,16182],[0,16185,0,16189],[0,16192,0,16196],[0,16199,0,16203],[0,16206,0,16210],[0,16129,0,16133],[0,16136,0,16140],[0,16143,0,16147],[0,16150,0,16154],[0,16157,0,16161],[0,16164,0,16168],[0,16087,0,16091],[0,16094,0,16098],[0,16101,0,16105],[0,16108,0,16112],[0,16115,0,16119],[0,16122,0,16126],[0,16045,0,16049],[0,16052,0,16056],[0,16059,0,16063],[0,16066,0,16070],[0,16073,0,16077],[0,16080,0,16084],[0,16003,0,16007],[0,16010,0,16014],[0,16017,0,16021],[0,16024,0,16028],[0,16031,0,16035],[0,16038,0,16042],[0,15961,0,15965],[0,15968,0,15972],[0,15975,0,15979],[0,15982,0,15986],[0,15989,0,15993],[0,15996,0,16000],[0,15919,0,15923],[0,15926,0,15930],[0,15933,0,15937],[0,15940,0,15944],[0,15947,0,15951],[0,15954,0,15958],[0,15877,0,15881],[0,15884,0,15888],[0,15891,0,15895],[0,15898,0,15902],[0,15905,0,15909],[0,15912,0,15916],[0,15835,0,15839],[0,15842,0,15846],[0,15849,0,15853],[0,15856,0,15860],[0,15863,0,15867],[0,15870,0,15874],[0,15793,0,15797],[0,15800,0,15804],[0,15807,0,15811],[0,15814,0,15818],[0,15821,0,15825],[0,15828,0,15832],[0,15751,0,15755],[0,15758,0,15762],[0,15765,0,15769],[0,15772,0,15776],[0,15779,0,15783],[0,15786,0,15790],[0,15709,0,15713],[0,15716,0,15720],[0,15723,0,15727],[0,15730,0,15734],[0,15737,0,15741],[0,15744,0,15748],[0,15667,0,15671],[0,15674,0,15678],[0,15681,0,15685],[0,15688,0,15692],[0,15695,0,15699],[0,15702,0,15706],[0,15625,0,15629],[0,15632,0,15636],[0,15639,0,15643],[0,15646,0,15650],[0,15653,0,15657],[0,15660,0,15664],[0,15583,0,15587],[0,15590,0,15594],[0,15597,0,15601],[0,15604,0,15608],[0,15611,0,15615],[0,15618,0,15622],[0,15541,0,15545],[0,15548,0,15552],[0,15555,0,15559],[0,15562,0,15566],[0,15569,0,15573],[0,15576,0,15580],[0,15499,0,15503],[0,15506,0,15510],[0,15513,0,15517],[0,15520,0,15524],[0,15527,0,15531],[0,15534,0,15538],[0,15457,0,15461],[0,15464,0,15468],[0,15471,0,15475],[0,15478,0,15482],[0,15485,0,15489],[0,15492,0,15496],[0,15415,0,15419],[0,15422,0,15426],[0,15429,0,15433],[0,15436,0,15440],[0,15443,0,15447],[0,15450,0,15454],[0,15373,0,15377],[0,15380,0,15384],[0,15387,0,15391],[0,15394,0,15398],[0,15401,0,15405],[0,15408,0,15412],[0,15331,0,15335],[0,15338,0,15342],[0,15345,0,15349],[0,15352,0,15356],[0,15359,0,15363],[0,15366,0,15370],[0,15289,0,15293],[0,15296,0,15300],[0,15303,0,15307],[0,15310,0,15314],[0,15317,0,15321],[0,15324,0,15328],[0,15247,0,15251],[0,15254,0,15258],[0,15261,0,15265],[0,15268,0,15272],[0,15275,0,15279],[0,15282,0,15286],[0,15205,0,15209],[0,15212,0,15216],[0,15219,0,15223],[0,15226,0,15230],[0,15233,0,15237],[0,15240,0,15244],[0,15163,0,15167],[0,15170,0,15174],[0,15177,0,15181],[0,15184,0,15188],[0,15191,0,15195],[0,15198,0,15202],[0,15121,0,15125],[0,15128,0,15132],[0,15135,0,15139],[0,15142,0,15146],[0,15149,0,15153],[0,15156,0,15160],[0,15079,0,15083],[0,15086,0,15090],[0,15093,0,15097],[0,15100,0,15104],[0,15107,0,15111],[0,15114,0,15118],[0,15037,0,15041],[0,15044,0,15048],[0,15051,0,15055],[0,15058,0,15062],[0,15065,0,15069],[0,15072,0,15076],[0,14995,0,14999],[0,15002,0,15006],[0,15009,0,15013],[0,15016,0,15020],[0,15023,0,15027],[0,15030,0,15034],[0,14953,0,14957],[0,14960,0,14964],[0,14967,0,14971],[0,14974,0,14978],[0,14981,0,14985],[0,14988,0,14992],[0,14911,0,14915],[0,14918,0,14922],[0,14925,0,14929],[0,14932,0,14936],[0,14939,0,14943],[0,14946,0,14950],[0,14869,0,14873],[0,14876,0,14880],[0,14883,0,14887],[0,14890,0,14894],[0,14897,0,14901],[0,14904,0,14908],[0,14827,0,14831],[0,14834,0,14838],[0,14841,0,14845],[0,14848,0,14852],[0,14855,0,14859],[0,14862,0,14866],[0,14785,0,14789],[0,14792,0,14796],[0,14799,0,14803],[0,14806,0,14810],[0,14813,0,14817],[0,14820,0,14824],[0,14743,0,14747],[0,14750,0,14754],[0,14757,0,14761],[0,14764,0,14768],[0,14771,0,14775],[0,14778,0,14782],[0,14701,0,14705],[0,14708,0,14712],[0,14715,0,14719],[0,14722,0,14726],[0,14729,0,14733],[0,14736,0,14740],[0,14659,0,14663],[0,14666,0,14670],[0,14673,0,14677],[0,14680,0,14684],[0,14687,0,14691],[0,14694,0,14698],[0,14617,0,14621],[0,14624,0,14628],[0,14631,0,14635],[0,14638,0,14642],[0,14645,0,14649],[0,14652,0,14656],[0,14575,0,14579],[0,14582,0,14586],[0,14589,0,14593],[0,14596,0,14600],[0,14603,0,14607],[0,14610,0,14614],[0,14533,0,14537],[0,14540,0,14544],[0,14547,0,14551],[0,14554,0,14558],[0,14561,0,14565],[0,14568,0,14572],[0,14491,0,14495],[0,14498,0,14502],[0,14505,0,14509],[0,14512,0,14516],[0,14519,0,14523],[0,14526,0,14530],[0,14449,0,14453],[0,14456,0,14460],[0,14463,0,14467],[0,14470,0,14474],[0,14477,0,14481],[0,14484,0,14488],[0,14407,0,14411],[0,14414,0,14418],[0,14421,0,14425],[0,14428,0,14432],[0,14435,0,14439],[0,14442,0,14446],[0,14365,0,14369],[0,14372,0,14376],[0,14379,0,14383],[0,14386,0,14390],[0,14393,0,14397],[0,14400,0,14404],[0,14323,0,14327],[0,14330,0,14334],[0,14337,0,14341],[0,14344,0,14348],[0,14351,0,14355],[0,14358,0,14362],[0,14281,0,14285],[0,14288,0,14292],[0,14295,0,14299],[0,14302,0,14306],[0,14309,0,14313],[0,14316,0,14320],[0,14239,0,14243],[0,14246,0,14250],[0,14253,0,14257],[0,14260,0,14264],[0,14267,0,14271],[0,14274,0,14278],[0,14197,0,14201],[0,14204,0,14208],[0,14211,0,14215],[0,14218,0,14222],[0,14225,0,14229],[0,14232,0,14236],[0,14155,0,14159],[0,14162,0,14166],[0,14169,0,14173],[0,14176,0,14180],[0,14183,0,14187],[0,14190,0,14194],[0,14113,0,14117],[0,14120,0,14124],[0,14127,0,14131],[0,14134,0,14138],[0,14141,0,14145],[0,14148,0,14152],[0,14071,0,14075],[0,14078,0,14082],[0,14085,0,14089],[0,14092,0,14096],[0,14099,0,14103],[0,14106,0,14110],[0,14029,0,14033],[0,14036,0,14040],[0,14043,0,14047],[0,14050,0,14054],[0,14057,0,14061],[0,14064,0,14068],[0,13987,0,13991],[0,13994,0,13998],[0,14001,0,14005],[0,14008,0,14012],[0,14015,0,14019],[0,14022,0,14026],[0,13945,0,13949],[0,13952,0,13956],[0,13959,0,13963],[0,13966,0,13970],[0,13973,0,13977],[0,13980,0,13984],[0,13903,0,13907],[0,13910,0,13914],[0,13917,0,13921],[0,13924,0,13928],[0,13931,0,13935],[0,13938,0,13942],[0,13861,0,13865],[0,13868,0,13872],[0,13875,0,13879],[0,13882,0,13886],[0,13889,0,13893],[0,13896,0,13900],[0,13819,0,13823],[0,13826,0,13830],[0,13833,0,13837],[0,13840,0,13844],[0,13847,0,13851],[0,13854,0,13858],[0,13777,0,13781],[0,13784,0,13788],[0,13791,0,13795],[0,13798,0,13802],[0,13805,0,13809],[0,13812,0,13816],[0,13735,0,13739],[0,13742,0,13746],[0,13749,0,13753],[0,13756,0,13760],[0,13763,0,13767],[0,13770,0,13774],[0,13693,0,13697],[0,13700,0,13704],[0,13707,0,13711],[0,13714,0,13718],[0,13721,0,13725],[0,13728,0,13732],[0,13651,0,13655],[0,13658,0,13662],[0,13665,0,13669],[0,13672,0,13676],[0,13679,0,13683],[0,13686,0,13690],[0,13609,0,13613],[0,13616,0,13620],[0,13623,0,13627],[0,13630,0,13634],[0,13637,0,13641],[0,13644,0,13648],[0,13567,0,13571],[0,13574,0,13578],[0,13581,0,13585],[0,13588,0,13592],[0,13595,0,13599],[0,13602,0,13606],[0,13525,0,13529],[0,13532,0,13536],[0,13539,0,13543],[0,13546,0,13550],[0,13553,0,13557],[0,13560,0,13564],[0,13483,0,13487],[0,13490,0,13494],[0,13497,0,13501],[0,13504,0,13508],[0,13511,0,13515],[0,13518,0,13522],[0,13441,0,13445],[0,13448,0,13452],[0,13455,0,13459],[0,13462,0,13466],[0,13469,0,13473],[0,13476,0,13480],[0,13399,0,13403],[0,13406,0,13410],[0,13413,0,13417],[0,13420,0,13424],[0,13427,0,13431],[0,13434,0,13438],[0,13357,0,13361],[0,13364,0,13368],[0,13371,0,13375],[0,13378,0,13382],[0,13385,0,13389],[0,13392,0,13396],[0,13315,0,13319],[0,13322,0,13326],[0,13329,0,13333],[0,13336,0,13340],[0,13343,0,13347],[0,13350,0,13354],[0,13273,0,13277],[0,13280,0,13284],[0,13287,0,13291],[0,13294,0,13298],[0,13301,0,13305],[0,13308,0,13312],[0,13231,0,13235],[0,13238,0,13242],[0,13245,0,13249],[0,13252,0,13256],[0,13259,0,13263],[0,13266,0,13270],[0,13189,0,13193],[0,13196,0,13200],[0,13203,0,13207],[0,13210,0,13214],[0,13217,0,13221],[0,13224,0,13228],[0,13147,0,13151],[0,13154,0,13158],[0,13161,0,13165],[0,13168,0,13172],[0,13175,0,13179],[0,13182,0,13186],[0,13105,0,13109],[0,13112,0,13116],[0,13119,0,13123],[0,13126,0,13130],[0,13133,0,13137],[0,13140,0,13144],[0,13063,0,13067],[0,13070,0,13074],[0,13077,0,13081],[0,13084,0,13088],[0,13091,0,13095],[0,13098,0,13102],[0,13021,0,13025],[0,13028,0,13032],[0,13035,0,13039],[0,13042,0,13046],[0,13049,0,13053],[0,13056,0,13060],[0,12979,0,12983],[0,12986,0,12990],[0,12993,0,12997],[0,13000,0,13004],[0,13007,0,13011],[0,13014,0,13018],[0,12937,0,12941],[0,12944,0,12948],[0,12951,0,12955],[0,12958,0,12962],[0,12965,0,12969],[0,12972,0,12976],[0,12895,0,12899],[0,12902,0,12906],[0,12909,0,12913],[0,12916,0,12920],[0,12923,0,12927],[0,12930,0,12934],[0,12853,0,12857],[0,12860,0,12864],[0,12867,0,12871],[0,12874,0,12878],[0,12881,0,12885],[0,12888,0,12892],[0,12811,0,12815],[0,12818,0,12822],[0,12825,0,12829],[0,12832,0,12836],[0,12839,0,12843],[0,12846,0,12850],[0,12769,0,12773],[0,12776,0,12780],[0,12783,0,12787],[0,12790,0,12794],[0,12797,0,12801],[0,12804,0,12808],[0,12727,0,12731],[0,12734,0,12738],[0,12741,0,12745],[0,12748,0,12752],[0,12755,0,12759],[0,12762,0,12766],[0,12685,0,12689],[0,12692,0,12696],[0,12699,0,12703],[0,12706,0,12710],[0,12713,0,12717],[0,12720,0,12724],[0,12643,0,12647],[0,12650,0,12654],[0,12657,0,12661],[0,12664,0,12668],[0,12671,0,12675],[0,12678,0,12682],[0,12601,0,12605],[0,12608,0,12612],[0,12615,0,12619],[0,12622,0,12626],[0,12629,0,12633],[0,12636,0,12640],[0,12559,0,12563],[0,12566,0,12570],[0,12573,0,12577],[0,12580,0,12584],[0,12587,0,12591],[0,12594,0,12598],[0,12517,0,12521],[0,12524,0,12528],[0,12531,0,12535],[0,12538,0,12542],[0,12545,0,12549],[0,12552,0,12556],[0,12475,0,12479],[0,12482,0,12486],[0,12489,0,12493],[0,12496,0,12500],[0,12503,0,12507],[0,12510,0,12514],[0,12433,0,12437],[0,12440,0,12444],[0,12447,0,12451],[0,12454,0,12458],[0,12461,0,12465],[0,12468,0,12472],[0,12391,0,12395],[0,12398,0,12402],[0,12405,0,12409],[0,12412,0,12416],[0,12419,0,12423],[0,12426,0,12430],[0,12349,0,12353],[0,12356,0,12360],[0,12363,0,12367],[0,12370,0,12374],[0,12377,0,12381],[0,12384,0,12388],[0,12307,0,12311],[0,12314,0,12318],[0,12321,0,12325],[0,12328,0,12332],[0,12335,0,12339],[0,12342,0,12346],[0,12265,0,12269],[0,12272,0,12276],[0,12279,0,12283],[0,12286,0,12290],[0,12293,0,12297],[0,12300,0,12304],[0,12223,0,12227],[0,12230,0,12234],[0,12237,0,12241],[0,12244,0,12248],[0,12251,0,12255],[0,12258,0,12262],[0,12181,0,12185],[0,12188,0,12192],[0,12195,0,12199],[0,12202,0,12206],[0,12209,0,12213],[0,12216,0,12220],[0,12139,0,12143],[0,12146,0,12150],[0,12153,0,12157],[0,12160,0,12164],[0,12167,0,12171],[0,12174,0,12178],[0,12097,0,12101],[0,12104,0,12108],[0,12111,0,12115],[0,12118,0,12122],[0,12125,0,12129],[0,12132,0,12136],[0,12055,0,12059],[0,12062,0,12066],[0,12069,0,12073],[0,12076,0,12080],[0,12083,0,12087],[0,12090,0,12094],[0,12013,0,12017],[0,12020,0,12024],[0,12027,0,12031],[0,12034,0,12038],[0,12041,0,12045],[0,12048,0,12052],[0,11971,0,11975],[0,11978,0,11982],[0,11985,0,11989],[0,11992,0,11996],[0,11999,0,12003],[0,12006,0,12010],[0,11929,0,11933],[0,11936,0,11940],[0,11943,0,11947],[0,11950,0,11954],[0,11957,0,11961],[0,11964,0,11968],[0,11887,0,11891],[0,11894,0,11898],[0,11901,0,11905],[0,11908,0,11912],[0,11915,0,11919],[0,11922,0,11926],[0,11845,0,11849],[0,11852,0,11856],[0,11859,0,11863],[0,11866,0,11870],[0,11873,0,11877],[0,11880,0,11884],[0,11803,0,11807],[0,11810,0,11814],[0,11817,0,11821],[0,11824,0,11828],[0,11831,0,11835],[0,11838,0,11842],[0,11761,0,11765],[0,11768,0,11772],[0,11775,0,11779],[0,11782,0,11786],[0,11789,0,11793],[0,11796,0,11800],[0,11719,0,11723],[0,11726,0,11730],[0,11733,0,11737],[0,11740,0,11744],[0,11747,0,11751],[0,11754,0,11758],[0,11677,0,11681],[0,11684,0,11688],[0,11691,0,11695],[0,11698,0,11702],[0,11705,0,11709],[0,11712,0,11716],[0,11635,0,11639],[0,11642,0,11646],[0,11649,0,11653],[0,11656,0,11660],[0,11663,0,11667],[0,11670,0,11674],[0,11593,0,11597],[0,11600,0,11604],[0,11607,0,11611],[0,11614,0,11618],[0,11621,0,11625],[0,11628,0,11632],[0,11551,0,11555],[0,11558,0,11562],[0,11565,0,11569],[0,11572,0,11576],[0,11579,0,11583],[0,11586,0,11590],[0,11509,0,11513],[0,11516,0,11520],[0,11523,0,11527],[0,11530,0,11534],[0,11537,0,11541],[0,11544,0,11548],[0,11467,0,11471],[0,11474,0,11478],[0,11481,0,11485],[0,11488,0,11492],[0,11495,0,11499],[0,11502,0,11506],[0,11425,0,11429],[0,11432,0,11436],[0,11439,0,11443],[0,11446,0,11450],[0,11453,0,11457],[0,11460,0,11464],[0,11383,0,11387],[0,11390,0,11394],[0,11397,0,11401],[0,11404,0,11408],[0,11411,0,11415],[0,11418,0,11422],[0,11341,0,11345],[0,11348,0,11352],[0,11355,0,11359],[0,11362,0,11366],[0,11369,0,11373],[0,11376,0,11380],[0,11299,0,11303],[0,11306,0,11310],[0,11313,0,11317],[0,11320,0,11324],[0,11327,0,11331],[0,11334,0,11338],[0,11257,0,11261],[0,11264,0,11268],[0,11271,0,11275],[0,11278,0,11282],[0,11285,0,11289],[0,11292,0,11296],[0,11215,0,11219],[0,11222,0,11226],[0,11229,0,11233],[0,11236,0,11240],[0,11243,0,11247],[0,11250,0,11254],[0,11173,0,11177],[0,11180,0,11184],[0,11187,0,11191],[0,11194,0,11198],[0,11201,0,11205],[0,11208,0,11212],[0,11131,0,11135],[0,11138,0,11142],[0,11145,0,11149],[0,11152,0,11156],[0,11159,0,11163],[0,11166,0,11170],[0,11089,0,11093],[0,11096,0,11100],[0,11103,0,11107],[0,11110,0,11114],[0,11117,0,11121],[0,11124,0,11128],[0,11047,0,11051],[0,11054,0,11058],[0,11061,0,11065],[0,11068,0,11072],[0,11075,0,11079],[0,11082,0,11086],[0,11005,0,11009],[0,11012,0,11016],[0,11019,0,11023],[0,11026,0,11030],[0,11033,0,11037],[0,11040,0,11044],[0,10963,0,10967],[0,10970,0,10974],[0,10977,0,10981],[0,10984,0,10988],[0,10991,0,10995],[0,10998,0,11002],[0,10921,0,10925],[0,10928,0,10932],[0,10935,0,10939],[0,10942,0,10946],[0,10949,0,10953],[0,10956,0,10960],[0,10879,0,10883],[0,10886,0,10890],[0,10893,0,10897],[0,10900,0,10904],[0,10907,0,10911],[0,10914,0,10918],[0,10837,0,10841],[0,10844,0,10848],[0,10851,0,10855],[0,10858,0,10862],[0,10865,0,10869],[0,10872,0,10876],[0,10795,0,10799],[0,10802,0,10806],[0,10809,0,10813],[0,10816,0,10820],[0,10823,0,10827],[0,10830,0,10834],[0,10753,0,10757],[0,10760,0,10764],[0,10767,0,10771],[0,10774,0,10778],[0,10781,0,10785],[0,10788,0,10792],[0,10711,0,10715],[0,10718,0,10722],[0,10725,0,10729],[0,10732,0,10736],[0,10739,0,10743],[0,10746,0,10750],[0,10669,0,10673],[0,10676,0,10680],[0,10683,0,10687],[0,10690,0,10694],[0,10697,0,10701],[0,10704,0,10708],[0,10627,0,10631],[0,10634,0,10638],[0,10641,0,10645],[0,10648,0,10652],[0,10655,0,10659],[0,10662,0,10666],[0,10585,0,10589],[0,10592,0,10596],[0,10599,0,10603],[0,10606,0,10610],[0,10613,0,10617],[0,10620,0,10624],[0,10543,0,10547],[0,10550,0,10554],[0,10557,0,10561],[0,10564,0,10568],[0,10571,0,10575],[0,10578,0,10582],[0,10501,0,10505],[0,10508,0,10512],[0,10515,0,10519],[0,10522,0,10526],[0,10529,0,10533],[0,10536,0,10540],[0,10459,0,10463],[0,10466,0,10470],[0,10473,0,10477],[0,10480,0,10484],[0,10487,0,10491],[0,10494,0,10498],[0,10417,0,10421],[0,10424,0,10428],[0,10431,0,10435],[0,10438,0,10442],[0,10445,0,10449],[0,10452,0,10456],[0,10375,0,10379],[0,10382,0,10386],[0,10389,0,10393],[0,10396,0,10400],[0,10403,0,10407],[0,10410,0,10414],[0,10333,0,10337],[0,10340,0,10344],[0,10347,0,10351],[0,10354,0,10358],[0,10361,0,10365],[0,10368,0,10372],[0,10291,0,10295],[0,10298,0,10302],[0,10305,0,10309],[0,10312,0,10316],[0,10319,0,10323],[0,10326,0,10330],[0,10249,0,10253],[0,10256,0,10260],[0,10263,0,10267],[0,10270,0,10274],[0,10277,0,10281],[0,10284,0,10288],[0,10207,0,10211],[0,10214,0,10218],[0,10221,0,10225],[0,10228,0,10232],[0,10235,0,10239],[0,10242,0,10246],[0,10165,0,10169],[0,10172,0,10176],[0,10179,0,10183],[0,10186,0,10190],[0,10193,0,10197],[0,10200,0,10204],[0,10123,0,10127],[0,10130,0,10134],[0,10137,0,10141],[0,10144,0,10148],[0,10151,0,10155],[0,10158,0,10162],[0,10081,0,10085],[0,10088,0,10092],[0,10095,0,10099],[0,10102,0,10106],[0,10109,0,10113],[0,10116,0,10120],[0,10039,0,10043],[0,10046,0,10050],[0,10053,0,10057],[0,10060,0,10064],[0,10067,0,10071],[0,10074,0,10078],[0,9997,0,10001],[0,10004,0,10008],[0,10011,0,10015],[0,10018,0,10022],[0,10025,0,10029],[0,10032,0,10036],[0,9955,0,9959],[0,9962,0,9966],[0,9969,0,9973],[0,9976,0,9980],[0,9983,0,9987],[0,9990,0,9994],[0,9913,0,9917],[0,9920,0,9924],[0,9927,0,9931],[0,9934,0,9938],[0,9941,0,9945],[0,9948,0,9952],[0,9871,0,9875],[0,9878,0,9882],[0,9885,0,9889],[0,9892,0,9896],[0,9899,0,9903],[0,9906,0,9910],[0,9829,0,9833],[0,9836,0,9840],[0,9843,0,9847],[0,9850,0,9854],[0,9857,0,9861],[0,9864,0,9868],[0,9787,0,9791],[0,9794,0,9798],[0,9801,0,9805],[0,9808,0,9812],[0,9815,0,9819],[0,9822,0,9826],[0,9745,0,9749],[0,9752,0,9756],[0,9759,0,9763],[0,9766,0,9770],[0,9773,0,9777],[0,9780,0,9784],[0,9703,0,9707]],"merged_total":2391,"flags":["merged_cut"]}
[]
[null,"Projekt:","GZ:",null,null,"Prüfkatalog zuletzt aktualisiert am:"]
[null,{"$f":"IF('Allgemeine Projektdaten'!H17=\"\",\"\",'Allgemeine Projektdaten'!H17)","v":""},{"$f":"IF('Allgemeine Projektdaten'!H14=\"\",\"\",'Allgemeine Projektdaten'!H14)","v":""},null,null,{"$f":"IF('Allgemeine Projektdaten'!H44=\"\",\"\",'Allgemeine Projektdaten'!H44)","v":""}]
[]
[]
[null,"AUSWERTUNG EINREICHPLANUNG"]
[null,"Frage","Überprüfung",null,"Beurteilung","Kommentar"]
[]
[null,"I. GRUNDSATZFRAGE ZUM VORPROJEKT AUF GRUNDLAGE DES STEIRISCHEN KRITERIENKATALOGES (2008)"]
[]
[null,"Ist die Betroffenheit eines hochwertigen Fließgewässerabschnitts im projektrelevanten Betrachtungsraum gemäß steirischem Kriterienkatalog mit Sicherheit ausgeschlossen?",{"$f":"'II Eingabe Einreichplanung'!C11","v":"noch zu prüfen"},{"$f":"IF(C11=\"noch zu prüfen\",1,IF(C11=\"überprüft: nein\",2,IF(C11=\"überprüft: ja\",3)))","v":1},{"$f":"IF(C11=\"noch zu prüfen\",\"offen\",IF(C11=\"überprüft: nein\",\"kritisch\",IF(C11=\"überprüft: ja\",\"unkritisch\")))","v":"offen"},{"$f":"IF('II Eingabe Einreichplanung'!F11=\"\",\"\",'II Eingabe Einreichplanung'!F11)","v":""}]
[]
[null,"II. FRAGEN ZUM EINREICHPROJEKT AUF GRUNDLAGE DES PFLICHTWASSERLEITFADENS (2. Aufl., 2016)"]
[]
[null,"Projektrelevante Daten: Abfragbare Daten"]
[null,"Daten zu Schutzgebieten"]
[null,"Sind Schutzgebiete internationaler Schutzkategorien betroffen?",{"$f":"'II Eingabe Einreichplanung'!C17","v":"noch zu prüfen"},{"$f":"IF(C17=\"noch zu prüfen\",1,IF(C17=\"überprüft: nein\",2,IF(C17=\"überprüft: ja\",3)))","v":1},{"$f":"IF(C17=\"noch zu prüfen\",\"offen\",IF(C17=\"überprüft: nein\",\"unkritisch\",IF(C17=\"überprüft: ja\",\"kritisch\")))","v":"offen"},{"$f":"IF('II Eingabe Einreichplanung'!F17=\"\",\"\",'II Eingabe Einreichplanung'!F17)","v":""}]
[null,"Sind naturschutzrechtliche Schutzgebiete nach Landesrecht STMK betroffen?",{"$f":"'II Eingabe Einreichplanung'!C18","v":"noch zu prüfen"},{"$f":"IF(C18=\"noch zu prüfen\",1,IF(C18=\"überprüft: nein\",2,IF(C18=\"überprüft: ja\",3)))","v":1},{"$f":"IF(C18=\"noch zu prüfen\",\"offen\",IF(C18=\"überprüft: nein\",\"unkritisch\",IF(C18=\"überprüft: ja\",\"kritisch\")))","v":"offen"},{"$f":"IF('II Eingabe Einreichplanung'!F18=\"\",\"\",'II Eingabe Einreichplanung'!F18)","v":""}]
[null,"Sind A-wertige Fließgewässer nach dem Kriterienkatalog betroffen?",{"$f":"'II Eingabe Einreichplanung'!C19","v":"noch zu prüfen"},{"$f":"IF(C19=\"noch zu prüfen\",1,IF(C19=\"überprüft: nein\",2,IF(C19=\"überprüft: ja\",3)))","v":1},{"$f":"IF(C19=\"noch zu prüfen\",\"offen\",IF(C19=\"überprüft: nein\",\"unkritisch\",IF(C19=\"überprüft: ja\",\"kritisch\")))","v":"offen"},{"$f":"IF('II Eingabe Einreichplanung'!F19=\"\",\"\",'II Eingabe Einreichplanung'!F19)","v":""}]
[null,"Sind Wasserschutz- und/oder Wasserschongebiete betroffen?",{"$f":"'II Eingabe Einreichplanung'!C20","v":"noch zu prüfen"},{"$f":"IF(C20=\"noch zu prüfen\",1,IF(C20=\"überprüft: nein\",2,IF(C20=\"überprüft: ja\",3)))","v":1},{"$f":"IF(C20=\"noch zu prüfen\",\"offen\",IF(C20=\"überprüft: nein\",\"unkritisch\",IF(C20=\"überprüft: ja\",\"kritisch\")))","v":"offen"},{"$f":"IF('II Eingabe Einreichplanung'!F20=\"\",\"\",'II Eingabe Einreichplanung'!F20)","v":""}]
[null,"Gebietsbezogene Daten"]
[null,"Sind gebietsbezogene Daten zur Raumplanung bzw. zu hochwertigen Biotopen dokumentiert bzw. ausreichend berücksichtigt?",{"$f":"'II Eingabe Einreichplanung'!C22","v":"noch zu prüfen"},1,{"$f":"IF(C22=\"noch zu prüfen\",\"offen\",IF(C22=\"überprüft: nein\",\"kritisch\",IF(C22=\"überprüft: ja\",\"unkritisch\")))","v":"offen"},{"$f":"IF('II Eingabe Einreichplanung'!F22=\"\",\"\",'II Eingabe Einreichplanung'!F22)","v":""}]
[null,"Allgemeine Kenndaten zum Gewässer"]
[null,"Liegt ein aktuelles hydrologisches Datenblatt bzw. Gutachten vor? ",{"$f":"'II Eingabe Einreichplanung'!C24","v":"noch zu prüfen"},1,{"$f":"IF(C24=\"noch zu prüfen\",\"offen\",IF(C24=\"überprüft: nein\",\"kritisch\",IF(C24=\"überprüft: ja\",\"unkritisch\")))","v":"offen"},{"$f":"IF('II Eingabe Einreichplanung'!F24=\"\",\"\",'II Eingabe Einreichplanung'!F24)","v":""}]
[null,"Sind die Werte MQ, MJNQ und NNQ im hydrologischen Datenblatt ausgewiesen?",{"$f":"'II Eingabe Einreichplanung'!C25","v":"noch zu prüfen"},1,{"$f":"IF(C25=\"noch zu prüfen\",\"offen\",IF(C25=\"überprüft: nein\",\"kritisch\",IF(C25=\"überprüft: ja\",\"unkritisch\")))","v":"offen"},{"$f":"IF('II Eingabe Einreichplanung'!F25=\"\",\"\",'II Eingabe Einreichplanung'!F25)","v":""}]
[null,"Ist ein Wasserkörper gemäß NGP durch das Projekt betroffen und dessen ökologischer Zustand mit sehr gut ausgewiesen?",{"$f":"'II Eingabe Einreichplanung'!C26","v":"noch zu prüfen"},1,{"$f":"IF(C26=\"noch zu prüfen\",\"offen\",IF(C26=\"überprüft: nein\",\"unkritisch\",IF(C26=\"überprüft: ja\",\"kritisch\")))","v":"offen"},{"$f":"IF('II Eingabe Einreichplanung'!F26=\"\",\"\",'II Eingabe Einreichplanung'!F26)","v":""}]
[null,"Wurden vorhandene ökologische Daten wie u.a. Fischregion, biozönotische Region in den Unterlagen ausreichend und nachvollziehbar angeführt?",{"$f":"'II Eingabe Einreichplanung'!C27","v":"noch zu prüfen"},1,{"$f":"IF(C27=\"noch zu prüfen\",\"offen\",IF(C27=\"überprüft: nein\",\"kritisch\",IF(C27=\"überprüft: ja\",\"unkritisch\")))","v":"offen"},{"$f":"IF('II Eingabe Einreichplanung'!F27=\"\",\"\",'II Eingabe Einreichplanung'!F27)","v":""}]
[]
[null,"Projektrelevante Daten: Zu erhebende Daten"]
[null,"Kraftwerksdaten"]
[null,"Sind die Kraftwerksdaten und Anlagenbereiche (Wehranlage, Krafthaus, Restwasserstrecke, Trasse der DRL etc.) ausreichend und nachvollziehbar in den Unterlagen angeführt?",{"$f":"'II Eingabe Einreichplanung'!C31","v":"noch zu prüfen"},{"$f":"IF(C31=\"noch zu prüfen\",1,IF(C31=\"überprüft: nein\",2,IF(C31=\"überprüft: ja\",3)))","v":1},{"$f":"IF(C31=\"noch zu prüfen\",\"offen\",IF(C31=\"überprüft: nein\",\"kritisch\",IF(C31=\"überprüft: ja\",\"unkritisch\")))","v":"offen"},{"$f":"IF('II Eingabe Einreichplanung'!F31=\"\",\"\",'II Eingabe Einreichplanung'!F31)","v":""}]
[null,"Wasser- und energiewirtschaftliche Daten"]
[null,"Wurden Abflussdaten erhoben?\n(Die Daten können auf Grundlage eines hydrologischen Gutachtens oder aber auf Grundlage von eigenen Messungen abgeleitet werden.)",{"$f":"'II Eingabe Einreichplanung'!C33","v":"noch zu prüfen"},{"$f":"IF(C33=\"noch zu prüfen\",1,IF(C33=\"überprüft: nein\",2,IF(C33=\"überprüft: ja\",3)))","v":1},{"$f":"IF(C33=\"noch zu prüfen\",\"offen\",IF(C33=\"überprüft: nein\",\"kritisch\",IF(C33=\"überprüft: ja\",\"unkritisch\")))","v":"offen"},{"$f":"IF('II Eingabe Einreichplanung'!F33=\"\",\"\",'II Eingabe Einreichplanung'!F33)","v":""}]
[null,"Wurden abflussabhängige abiotischen Parametern wie Tiefen und Fließgeschwindigkeiten bei unterschiedlichen Abflussmengen erhoben?",{"$f":"'II Eingabe Einreichplanung'!C34","v":"noch zu prüfen"},1,"offen",{"$f":"IF('II Eingabe Einreichplanung'!F34=\"\",\"\",'II Eingabe Einreichplanung'!F34)","v":""}]
[null,"Wurden physikalisch-chemische Parameter erhoben?",{"$f":"'II Eingabe Einreichplanung'!C35","v":"noch zu prüfen"},1,"offen",{"$f":"IF('II Eingabe Einreichplanung'!F35=\"\",\"\",'II Eingabe Einreichplanung'!F35)","v":""}]
[null,"Wurde eine etwaige Verbindung zum Grundwasser berücksichtigt?",{"$f":"'II Eingabe Einreichplanung'!C36","v":"noch zu prüfen"},{"$f":"IF(C36=\"noch zu prüfen\",1,IF(C36=\"überprüft: nein\",2,IF(C36=\"überprüft: ja\",3,IF(C36=\"überprüft: nicht relevant\",10))))","v":1},{"$f":"IF(C36=\"noch zu prüfen\",\"offen\",IF(C36=\"überprüft: nein\",\"kritisch\",IF(C36=\"überprüft: ja\",\"unkritisch\",IF(C36=\"überprüft: nicht relevant\", \"unkritisch\"))))","v":"offen"},{"$f":"IF('II Eingabe Einreichplanung'!F36=\"\",\"\",'II Eingabe Einreichplanung'!F36)","v":""}]
[null,"Weitere abiotische Daten"]
[null,"Wurden die Struktur und das Substrat im Flussbett erhoben?",{"$f":"'II Eingabe Einreichplanung'!C38","v":"noch zu prüfen"},1,"offen",{"$f":"IF('II Eingabe Einreichplanung'!F38=\"\",\"\",'II Eingabe Einreichplanung'!F38)","v":""}]
[null,"Wurden Kontinuumsunterbrechungen im relevanten Gewässerabschnitt erhoben?",{"$f":"'II Eingabe Einreichplanung'!C39","v":"noch zu prüfen"},1,"offen",{"$f":"IF('II Eingabe Einreichplanung'!F39=\"\",\"\",'II Eingabe Einreichplanung'!F39)","v":""}]
[null,"Wurde der morphologische / ökomorphologische Zustand erhoben?",{"$f":"'II Eingabe Einreichplanung'!C40","v":"noch zu prüfen"},{"$f":"IF(C40=\"noch zu prüfen\",1,IF(C40=\"überprüft: nein\",2,IF(C40=\"überprüft: ja\",3)))","v":1},{"$f":"IF(C40=\"noch zu prüfen\",\"offen\",IF(C40=\"überprüft: nein\",\"kritisch\",IF(C40=\"überprüft: ja\",\"unkritisch\")))","v":"offen"},{"$f":"IF('II Eingabe Einreichplanung'!F40=\"\",\"\",'II Eingabe Einreichplanung'!F40)","v":""}]
[null,"Biotische Daten / Ist-Zustand"]
[null,"Fische"]
[null,"Handelt es sich beim Gewässer des Projektgebietes um einen Fischlebensraum?",{"$f":"'II Eingabe Einreichplanung'!C43","v":"noch zu prüfen"},{"$f":"IF(C43=\"noch zu prüfen\",1,IF(C43=\"überprüft: nein\",2,IF(C43=\"überprüft: ja\",3)))","v":1},{"$f":"IF(C43=\"noch zu prüfen\",\"offen\",IF(C43=\"überprüft: nein\",\"Weitere Betrachtung nicht notwendig\",IF(C43=\"überprüft: ja\",\"Weitere Betrachtung notwendig\")))","v":"offen"},{"$f":"IF('II Eingabe Einreichplanung'!F43=\"\",\"\",'II Eingabe Einreichplanung'!F43)","v":""}]
[null,"Wurde eine Erfassung des Ist-Zustandes nach Pflichtwasserleitfaden (Seite 6) mit dem Ziel der Identifikation naturschutzfachlich wertbestimmender (siehe Pflichtwasserleitfaden, Glossar, Seite 31) Fischarten bzw. Fischbestände durchgeführt?",{"$f":"'II Eingabe Einreichplanung'!C44","v":"noch zu prüfen"},{"$f":"IF(C44=\"überprüft: nein\",2,IF(C44=\"noch zu prüfen\",1,IF(C44=\"überprüft: ja\",3,IF(C44=\"überprüft: kein Fischlebensraum\",14))))","v":1},{"$f":"IF(C44=\"noch zu prüfen\",\"offen\",IF(C44=\"überprüft: nein\",\"kritisch\",IF(C44=\"überprüft: ja\",\"unkritisch\",IF(C44=\"überprüft: kein Fischlebensraum\",\"nicht relevant\"))))","v":"offen"},{"$f":"IF('II Eingabe Einreichplanung'!F44=\"\",\"\",'II Eingabe Einreichplanung'!F44)","v":""}]
[null,"Ist die Ist-Aufnahme und Dokumentation der Fischarten bzw. Fischbestände fachlich nachvollziehbar?",{"$f":"'II Eingabe Einreichplanung'!C45","v":"noch zu prüfen"},{"$f":"IF(C45=\"überprüft: nein\",2,IF(C45=\"noch zu prüfen\",1,IF(C45=\"überprüft: ja\",3,IF(C45=\"überprüft: kein Fischlebensraum\",14))))","v":1},{"$f":"IF(C45=\"noch zu prüfen\",\"offen\",IF(C45=\"überprüft: nein\",\"kritisch\",IF(C45=\"überprüft: ja\",\"unkritisch\",IF(C45=\"überprüft: kein Fischlebensraum\",\"nicht relevant\"))))","v":"offen"},{"$f":"IF('II Eingabe Einreichplanung'!F45=\"\",\"\",'II Eingabe Einreichplanung'!F45)","v":""}]
[null,"Wurden dabei naturschutzfachlich wertbestimmende Fischarten bzw. Fischbestände identifiziert?",{"$f":"'II Eingabe Einreichplanung'!C46","v":"noch zu prüfen"},{"$f":"IF(C46=\"überprüft: nein\",2,IF(C46=\"noch zu prüfen\",1,IF(C46=\"überprüft: ja\",3,IF(C46=\"überprüft: kein Fischlebensraum\",14))))","v":1},{"$f":"IF(C46=\"noch zu prüfen\",\"offen\",IF(C46=\"überprüft: nein\",\"unkritisch\",IF(C46=\"überprüft: ja\",\"kritisch\",IF(C46=\"überprüft: kein Fischlebensraum\",\"nicht relevant\"))))","v":"offen"},{"$f":"IF('II Eingabe Einreichplanung'!F46=\"\",\"\",'II Eingabe Einreichplanung'!F46)","v":""}]
[null,"Makrozoobenthos"]
[null,"Wurde eine Erfassung des Ist-Zustandes nach Pflichtwasserleitfaden (Seite 6) mit dem Ziel der Identifikation naturschutzfachlich wertbestimmender (siehe Pflichtwasserleitfaden, Glossar, Seite 31) Makrozoobenthosarten (-bestände) durchgeführt?",{"$f":"'II Eingabe Einreichplanung'!C48","v":"noch zu prüfen"},{"$f":"IF(C48=\"noch zu prüfen\",1,IF(C48=\"überprüft: nein\",2,IF(C48=\"überprüft: ja\",3)))","v":1},{"$f":"IF(C48=\"noch zu prüfen\",\"offen\",IF(C48=\"überprüft: nein\",\"kritisch\",IF(C48=\"überprüft: ja\",\"unkritisch\")))","v":"offen"},{"$f":"IF('II Eingabe Einreichplanung'!F48=\"\",\"\",'II Eingabe Einreichplanung'!F48)","v":""}]
[null,"Ist die Ist-Aufnahme und Dokumentation der Makrozoobenthos-Arten fachlich nachvollziehbar?",{"$f":"'II Eingabe Einreichplanung'!C49","v":"noch zu prüfen"},{"$f":"IF(C49=\"noch zu prüfen\",1,IF(C49=\"überprüft: nein\",2,IF(C49=\"überprüft: ja\",3)))","v":1},{"$f":"IF(C49=\"noch zu prüfen\",\"offen\",IF(C49=\"überprüft: nein\",\"kritisch\",IF(C49=\"überprüft: ja\",\"unkritisch\")))","v":"offen"},{"$f":"IF('II Eingabe Einreichplanung'!F49=\"\",\"\",'II Eingabe Einreichplanung'!F49)","v":""}]
[null,"Wurden dabei naturschutzfachlich wertbestimmende Makrozoobenthosarten bzw. -bestände identifiziert?",{"$f":"'II Eingabe Einreichplanung'!C50","v":"noch zu prüfen"},{"$f":"IF(C50=\"noch zu prüfen\",1,IF(C50=\"überprüft: nein\",2,IF(C50=\"überprüft: ja\",3)))","v":1},{"$f":"IF(C50=\"noch zu prüfen\",\"offen\",IF(C50=\"überprüft: nein\",\"unkritisch\",IF(C50=\"überprüft: ja\",\"kritisch\")))","v":"offen"},{"$f":"IF('II Eingabe Einreichplanung'!F50=\"\",\"\",'II Eingabe Einreichplanung'!F50)","v":""}]
[null,"Laufkäfer"]
[null,"Wurde eine Erfassung des Ist-Zustandes nach Pflichtwasserleitfaden (Seite 6) mit dem Ziel der Identifikation naturschutzfachlich wertbestimmender (siehe Pflichtwasserleitfaden, Glossar, Seite 31) Laufkäferarten bzw. -bestände durchgeführt?",{"$f":"'II Eingabe Einreichplanung'!C52","v":"noch zu prüfen"},{"$f":"IF(C52=\"noch zu prüfen\",1,IF(C52=\"überprüft: nein\",2,IF(C52=\"überprüft: ja\",3)))","v":1},{"$f":"IF(C52=\"noch zu prüfen\",\"offen\",IF(C52=\"überprüft: nein\",\"kritisch\",IF(C52=\"überprüft: ja\",\"unkritisch\")))","v":"offen"},{"$f":"IF('II Eingabe Einreichplanung'!F52=\"\",\"\",'II Eingabe Einreichplanung'!F52)","v":""}]
[null,"Ist die Ist-Aufnahme und Dokumentation der  Laufkäferarten bzw. -bestände fachlich nachvollziehbar?",{"$f":"'II Eingabe Einreichplanung'!C53","v":"noch zu prüfen"},{"$f":"IF(C53=\"noch zu prüfen\",1,IF(C53=\"überprüft: nein\",2,IF(C53=\"überprüft: ja\",3)))","v":1},{"$f":"IF(C53=\"noch zu prüfen\",\"offen\",IF(C53=\"überprüft: nein\",\"kritisch\",IF(C53=\"überprüft: ja\",\"unkritisch\")))","v":"offen"},{"$f":"IF('II Eingabe Einreichplanung'!F53=\"\",\"\",'II Eingabe Einreichplanung'!F53)","v":""}]
[null,"Wurden dabei naturschutzfachlich wertbestimmende Laufkäferarten bzw. -bestände identifiziert?",{"$f":"'II Eingabe Einreichplanung'!C54","v":"noch zu prüfen"},{"$f":"IF(C54=\"noch zu prüfen\",1,IF(C54=\"überprüft: nein\",2,IF(C54=\"überprüft: ja\",3)))","v":1},{"$f":"IF(C54=\"noch zu prüfen\",\"offen\",IF(C54=\"überprüft: nein\",\"unkritisch\",IF(C54=\"überprüft: ja\",\"kritisch\")))","v":"offen"},{"$f":"IF('II Eingabe Einreichplanung'!F54=\"\",\"\",'II Eingabe Einreichplanung'!F54)","v":""}]
[null,"Vegetation und Biotoptypen"]
[null,"Wurde eine Erfassung des Ist-Zustandes nach Pflichtwasserleitfaden (Seite 6) der Vegetation und der Biotoptypen durchgeführt?",{"$f":"'II Eingabe Einreichplanung'!C56","v":"noch zu prüfen"},{"$f":"IF(C56=\"noch zu prüfen\",1,IF(C56=\"überprüft: nein\",2,IF(C56=\"überprüft: ja\",3)))","v":1},{"$f":"IF(C56=\"noch zu prüfen\",\"offen\",IF(C56=\"überprüft: nein\",\"kritisch\",IF(C56=\"überprüft: ja\",\"unkritisch\")))","v":"offen"},{"$f":"IF('II Eingabe Einreichplanung'!F56=\"\",\"\",'II Eingabe Einreichplanung'!F56)","v":""}]
[null,"Ist die Ist-Aufnahme und Dokumentation der Vegetation und Biotoptypen fachlich nachvollziehbar?",{"$f":"'II Eingabe Einreichplanung'!C57","v":"noch zu prüfen"},{"$f":"IF(C57=\"noch zu prüfen\",1,IF(C57=\"überprüft: nein\",2,IF(C57=\"überprüft: ja\",3)))","v":1},{"$f":"IF(C57=\"noch zu prüfen\",\"offen\",IF(C57=\"überprüft: nein\",\"kritisch\",IF(C57=\"überprüft: ja\",\"unkritisch\")))","v":"offen"},{"$f":"IF('II Eingabe Einreichplanung'!F57=\"\",\"\",'II Eingabe Einreichplanung'!F57)","v":""}]
[null,"Wurden unter den erhobenen Pflanzenarten naturschutzfachlich wertbestimmende Pflanzenarten identifiziert?",{"$f":"'II Eingabe Einreichplanung'!C58","v":"noch zu prüfen"},{"$f":"IF(C58=\"noch zu prüfen\",1,IF(C58=\"überprüft: nein\",2,IF(C58=\"überprüft: ja\",3)))","v":1},{"$f":"IF(C58=\"noch zu prüfen\",\"offen\",IF(C58=\"überprüft: nein\",\"unkritisch\",IF(C58=\"überprüft: ja\",\"kritisch\")))","v":"offen"},{"$f":"IF('II Eingabe Einreichplanung'!F58=\"\",\"\",'II Eingabe Einreichplanung'!F58)","v":""}]
[null,"Wurden unter den erhobenen Biotoptypen naturschutzfachlich wertbestimmende Biotoptypen identifiziert?",{"$f":"'II Eingabe Einreichplanung'!C59","v":"noch zu prüfen"},{"$f":"IF(C59=\"noch zu prüfen\",1,IF(C59=\"überprüft: nein\",2,IF(C59=\"überprüft: ja\",3)))","v":1},{"$f":"IF(C59=\"noch zu prüfen\",\"offen\",IF(C59=\"überprüft: nein\",\"unkritisch\",IF(C59=\"überprüft: ja\",\"kritisch\")))","v":"offen"},{"$f":"IF('II Eingabe Einreichplanung'!F59=\"\",\"\",'II Eingabe Einreichplanung'!F59)","v":""}]
[null,"Zusatzfrage zum Ist-Zustand"]
[null,"Wurden weitere projektrelevante naturschutzfachlich wertbestimmende Arten dokumentiert?",{"$f":"'II Eingabe Einreichplanung'!C61","v":"noch zu prüfen"},{"$f":"IF(C61=\"noch zu prüfen\",1,IF(C61=\"überprüft: nein\",2,IF(C61=\"überprüft: ja\",3)))","v":1},{"$f":"IF(C61=\"noch zu prüfen\",\"offen\",IF(C61=\"überprüft: nein\",\"unkritisch\",IF(C61=\"überprüft: ja\",\"kritisch\")))","v":"offen"},{"$f":"IF('II Eingabe Einreichplanung'!F61=\"\",\"\",'II Eingabe Einreichplanung'!F61)","v":""}]
[]
[null,"Bewertung des Ist-Zustandes/Auswirkungsanalyse/Kompensation"]
[null,"Fische"]
[null,"Ist die Bestandsbewertung nachvollziehbar und plausibel?",{"$f":"'II Eingabe Einreichplanung'!C65","v":"noch zu prüfen"},{"$f":"IF(C65=\"noch zu prüfen\",1,IF(C65=\"überprüft: nein\",2,IF(C65=\"überprüft: ja\",3, IF(C65=\"überprüft: kein Fischlebensraum\",14))))","v":1},{"$f":"IF(C65=\"noch zu prüfen\",\"offen\",IF(C65=\"überprüft: nein\",\"kritisch\",IF(C65=\"überprüft: ja\",\"unkritisch\",IF(C65=\"überprüft: kein Fischlebensraum\",\"nicht relevant\"))))","v":"offen"},{"$f":"IF('II Eingabe Einreichplanung'!F65=\"\",\"\",'II Eingabe Einreichplanung'!F65)","v":""}]
[null,"Ist die durchgeführte Auswirkungsanalyse nachvollziehbar und plausibel?",{"$f":"'II Eingabe Einreichplanung'!C66","v":"noch zu prüfen"},{"$f":"IF(C66=\"noch zu prüfen\",1,IF(C66=\"überprüft: nein\",2,IF(C66=\"überprüft: ja\",3,IF(C66=\"überprüft: kein Fischlebensraum\",14))))","v":1},{"$f":"IF(C66=\"noch zu prüfen\",\"offen\",IF(C66=\"überprüft: nein\",\"kritisch\",IF(C66=\"überprüft: ja\",\"unkritisch\",IF(C66=\"überprüft: kein Fischlebensraum\",\"nicht relevant\"))))","v":"offen"},{"$f":"IF('II Eingabe Einreichplanung'!F66=\"\",\"\",'II Eingabe Einreichplanung'!F66)","v":""}]
[null,"Wurden Kompensationsmaßnahmen im Sinne des Pflichtwasserleitfadens verwirklicht?",{"$f":"'II Eingabe Einreichplanung'!C67","v":"noch zu prüfen"},{"$f":"IF(C67=\"noch zu prüfen\",1,IF(C67=\"überprüft: nein\",2,IF(C67=\"überprüft: ja\",3,IF(C67=\"überprüft: nicht relevant\", 10,IF(C67=\"überprüft: kein Fischlebensraum\",14)))))","v":1},{"$f":"IF(C67=\"noch zu prüfen\",\"offen\",IF(C67=\"überprüft: nein\",\"kritisch\",IF(C67=\"überprüft: ja\",\"unkritisch\",IF(C67=\"überprüft: nicht relevant\",\"unkritisch\",IF(C67=\"überprüft: kein Fischlebensraum\",\"nicht relevant\")))))","v":"offen"},{"$f":"IF('II Eingabe Einreichplanung'!F67=\"\",\"\",'II Eingabe Einreichplanung'!F67)","v":""}]
[null,"Sind die Kompensationsmaßnahmen dazu geeignet, mögliche festgestellte negative Auswirkungen zu vermeiden, zu vermindern bzw. auszugleichen?",{"$f":"'II Eingabe Einreichplanung'!C68","v":"noch zu prüfen"},{"$f":"IF(C68=\"noch zu prüfen\",1,IF(C68=\"überprüft: nein\",2,IF(C68=\"überprüft: ja\",3, IF(C68=\"überprüft: nicht relevant\", 10,IF(C68=\"überprüft: kein Fischlebensraum\",14)))))","v":1},{"$f":"IF(C68=\"noch zu prüfen\",\"offen\",IF(C68=\"überprüft: nein\",\"kritisch\",IF(C68=\"überprüft: ja\",\"unkritisch\",IF(C68=\"überprüft: nicht relevant\",\"unkritisch\",IF(C68=\"überprüft: kein Fischlebensraum\",\"nicht relevant\")))))","v":"offen"},{"$f":"IF('II Eingabe Einreichplanung'!F68=\"\",\"\",'II Eingabe Einreichplanung'!F68)","v":""}]
[null,"Ist eine Abwertung des erhobenen Ist-Zustandes im Sinne der Bewertungsskala des Pflichtwasserleitfadens (Seite 8) gegeben?",{"$f":"'II Eingabe Einreichplanung'!C69","v":"noch zu prüfen"},{"$f":"IF(C69=\"noch zu prüfen\",1,IF(C69=\"überprüft: nein\",2,IF(C69=\"überprüft: ja\",3,IF(C69=\"überprüft: kein Fischlebensraum\",14))))","v":1},{"$f":"IF(C69=\"noch zu prüfen\",\"offen\",IF(C69=\"überprüft: nein\",\"unkritisch\",IF(C69=\"überprüft: ja\",\"kritisch\",IF(C69=\"überprüft: kein Fischlebensraum\",\"nicht relevant\"))))","v":"offen"},{"$f":"IF('II Eingabe Einreichplanung'!F69=\"\",\"\",'II Eingabe Einreichplanung'!F69)","v":""}]
[null,"Ist ein etwaiger Flächenbedarf für die Kompensationsmaßnahme(n) vertraglich gesichert?",{"$f":"'II Eingabe Einreichplanung'!C70","v":"noch zu prüfen"},{"$f":"IF(C70=\"noch zu prüfen\",1,IF(C70=\"überprüft: nein\",2,IF(C70=\"überprüft: ja\",3,IF(C70=\"überprüft: nicht relevant\", 10,IF(C70=\"überprüft: kein Fischlebensraum\",14)))))","v":1},{"$f":"IF(C70=\"noch zu prüfen\",\"offen\",IF(C70=\"überprüft: nein\",\"kritisch\",IF(C70=\"überprüft: ja\",\"unkritisch\",IF(C70=\"überprüft: nicht relevant\",\"unkritisch\",IF(C70=\"überprüft: kein Fischlebensraum\",\"nicht relevant\")))))","v":"offen"},{"$f":"IF('II Eingabe Einreichplanung'!F70=\"\",\"\",'II Eingabe Einreichplanung'!F70)","v":""}]
[null,"Ist die Umsetzung der Kompensationsmaßnahme(n) vertraglich gesichert?",{"$f":"'II Eingabe Einreichplanung'!C71","v":"noch zu prüfen"},{"$f":"IF(C71=\"noch zu prüfen\",1,IF(C71=\"überprüft: nein\",2,IF(C71=\"überprüft: ja\",3,IF(C71=\"überprüft: nicht relevant\", 10,IF(C71=\"überprüft: kein Fischlebensraum\",14)))))","v":1},{"$f":"IF(C71=\"noch zu prüfen\",\"offen\",IF(C71=\"überprüft: nein\",\"kritisch\",IF(C71=\"überprüft: ja\",\"unkritisch\",IF(C71=\"überprüft: nicht relevant\",\"unkritisch\",IF(C71=\"überprüft: kein Fischlebensraum\",\"nicht relevant\")))))","v":"offen"},{"$f":"IF('II Eingabe Einreichplanung'!F71=\"\",\"\",'II Eingabe Einreichplanung'!F71)","v":""}]
[null,"Makrozoobenthos"]
[null,"Ist die Bestandsbewertung nachvollziehbar und plausibel?",{"$f":"'II Eingabe Einreichplanung'!C73","v":"noch zu prüfen"},{"$f":"IF(C73=\"noch zu prüfen\",1,IF(C73=\"überprüft: nein\",2,IF(C73=\"überprüft: ja\",3)))","v":1},{"$f":"IF(C73=\"noch zu prüfen\",\"offen\",IF(C73=\"überprüft: nein\",\"kritisch\",IF(C73=\"überprüft: ja\",\"unkritisch\")))","v":"offen"},{"$f":"IF('II Eingabe Einreichplanung'!F73=\"\",\"\",'II Eingabe Einreichplanung'!F73)","v":""}]
[null,"Ist die durchgeführte Auswirkungsanalyse nachvollziehbar und plausibel?",{"$f":"'II Eingabe Einreichplanung'!C74","v":"noch zu prüfen"},1,{"$f":"IF(C74=\"noch zu prüfen\",\"offen\",IF(C74=\"überprüft: nein\",\"kritisch\",IF(C74=\"überprüft: ja\",\"unkritisch\")))","v":"offen"},{"$f":"IF('II Eingabe Einreichplanung'!F74=\"\",\"\",'II Eingabe Einreichplanung'!F74)","v":""}]
[null,"Wurden Kompensationsmaßnahmen im Sinne des Pflichtwasserleitfadens verwirklicht?",{"$f":"'II Eingabe Einreichplanung'!C75","v":"noch zu prüfen"},{"$f":"IF(C75=\"noch zu prüfen\",1,IF(C75=\"überprüft: nein\",2,IF(C75=\"überprüft: ja\",3,IF(C75=\"überprüft: nicht relevant\",10))))","v":1},{"$f":"IF(C75=\"noch zu prüfen\",\"offen\",IF(C75=\"überprüft: nein\",\"kritisch\",IF(C75=\"überprüft: ja\",\"unkritisch\",IF(C75=\"überprüft: nicht relevant\",\"unkritisch\"))))","v":"offen"},{"$f":"IF('II Eingabe Einreichplanung'!F75=\"\",\"\",'II Eingabe Einreichplanung'!F75)","v":""}]
[null,"Sind die Kompensationsmaßnahmen dazu geeignet, mögliche festgestellte negative Auswirkungen zu vermeiden, zu vermindern bzw. auszugleichen?",{"$f":"'II Eingabe Einreichplanung'!C76","v":"noch zu prüfen"},{"$f":"IF(C76=\"noch zu prüfen\",1,IF(C76=\"überprüft: nein\",2,IF(C76=\"überprüft: ja\",3,IF(C76=\"überprüft: nicht relevant\",10))))","v":1},{"$f":"IF(C76=\"noch zu prüfen\",\"offen\",IF(C76=\"überprüft: nein\",\"kritisch\",IF(C76=\"überprüft: ja\",\"unkritisch\",IF(C76=\"überprüft: nicht relevant\",\"unkritisch\"))))","v":"offen"},{"$f":"IF('II Eingabe Einreichplanung'!F76=\"\",\"\",'II Eingabe Einreichplanung'!F76)","v":""}]
[null,"Ist eine Abwertung des erhobenen Ist-Zustandes im Sinne der Bewertungsskala des Pflichtwasserleitfadens (Seite 8) gegeben?",{"$f":"'II Eingabe Einreichplanung'!C77","v":"noch zu prüfen"},{"$f":"IF(C77=\"noch zu prüfen\",1,IF(C77=\"überprüft: nein\",2,IF(C77=\"überprüft: ja\",3)))","v":1},{"$f":"IF(C77=\"noch zu prüfen\",\"offen\",IF(C77=\"überprüft: nein\",\"unkritisch\",IF(C77=\"überprüft: ja\",\"kritisch\")))","v":"offen"},{"$f":"IF('II Eingabe Einreichplanung'!F77=\"\",\"\",'II Eingabe Einreichplanung'!F77)","v":""}]
[null,"Ist ein etwaiger Flächenbedarf für die Kompensationsmaßnahme(n) vertraglich gesichert?",{"$f":"'II Eingabe Einreichplanung'!C78","v":"noch zu prüfen"},{"$f":"IF(C78=\"noch zu prüfen\",1,IF(C78=\"überprüft: nein\",2,IF(C78=\"überprüft: ja\",3,IF(C78=\"überprüft: nicht relevant\",10))))","v":1},{"$f":"IF(C78=\"noch zu prüfen\",\"offen\",IF(C78=\"überprüft: nein\",\"kritisch\",IF(C78=\"überprüft: ja\",\"unkritisch\",IF(C78=\"überprüft: nicht relevant\",\"unkritisch\"))))","v":"offen"},{"$f":"IF('II Eingabe Einreichplanung'!F78=\"\",\"\",'II Eingabe Einreichplanung'!F78)","v":""}]
[null,"Ist die Umsetzung der Kompensationsmaßnahme(n) vertraglich gesichert?",{"$f":"'II Eingabe Einreichplanung'!C79","v":"noch zu prüfen"},{"$f":"IF(C79=\"noch zu prüfen\",1,IF(C79=\"überprüft: nein\",2,IF(C79=\"überprüft: ja\",3,IF(C79=\"überprüft: nicht relevant\",10))))","v":1},{"$f":"IF(C79=\"noch zu prüfen\",\"offen\",IF(C79=\"überprüft: nein\",\"kritisch\",IF(C79=\"überprüft: ja\",\"unkritisch\",IF(C79=\"überprüft: nicht relevant\",\"unkritisch\"))))","v":"offen"},{"$f":"IF('II Eingabe Einreichplanung'!F79=\"\",\"\",'II Eingabe Einreichplanung'!F79)","v":""}]
[null,"Laufkäfer"]
[null,"Wurden die Erhebungsmethoden gemäß Pflichtwasserleitfaden (Kapitel \"Zu erhebende Daten\") angewandt?",{"$f":"'II Eingabe Einreichplanung'!C81","v":"noch zu prüfen"},{"$f":"IF(C81=\"noch zu prüfen\",1,IF(C81=\"überprüft: nein\",2,IF(C81=\"überprüft: ja\",3)))","v":1},{"$f":"IF(C81=\"noch zu prüfen\",\"offen\",IF(C81=\"überprüft: nein\",\"kritisch\",IF(C81=\"überprüft: ja\",\"unkritisch\")))","v":"offen"},{"$f":"IF('II Eingabe Einreichplanung'!F81=\"\",\"\",'II Eingabe Einreichplanung'!F81)","v":""}]
[null,"Wurden die vorgegebenen Methoden zur Bestandsbewertung in Anlehnung an die Vorgaben der ÖNORM M 6232 berücksichtigt?",{"$f":"'II Eingabe Einreichplanung'!C82","v":"noch zu prüfen"},1,{"$f":"IF(C82=\"noch zu prüfen\",\"offen\",IF(C82=\"überprüft: nein\",\"kritisch\",IF(C82=\"überprüft: ja\",\"unkritisch\")))","v":"offen"},{"$f":"IF('II Eingabe Einreichplanung'!F82=\"\",\"\",'II Eingabe Einreichplanung'!F82)","v":""}]
[null,"Ist die Bestandsbewertung nachvollziehbar und plausibel?",{"$f":"'II Eingabe Einreichplanung'!C83","v":"noch zu prüfen"},1,{"$f":"IF(C83=\"noch zu prüfen\",\"offen\",IF(C83=\"überprüft: nein\",\"kritisch\",IF(C83=\"überprüft: ja\",\"unkritisch\")))","v":"offen"},{"$f":"IF('II Eingabe Einreichplanung'!F83=\"\",\"\",'II Eingabe Einreichplanung'!F83)","v":""}]
[null,"Ist die durchgeführte Auswirkungsanalyse nachvollziehbar und plausibel?",{"$f":"'II Eingabe Einreichplanung'!C84","v":"noch zu prüfen"},1,{"$f":"IF(C84=\"noch zu prüfen\",\"offen\",IF(C84=\"überprüft: nein\",\"kritisch\",IF(C84=\"überprüft: ja\",\"unkritisch\")))","v":"offen"},{"$f":"IF('II Eingabe Einreichplanung'!F84=\"\",\"\",'II Eingabe Einreichplanung'!F84)","v":""}]
[null,"Wurden Kompensationsmaßnahmen im Sinne des Pflichtwasserleitfadens verwirklicht?",{"$f":"'II Eingabe Einreichplanung'!C85","v":"noch zu prüfen"},{"$f":"IF(C85=\"noch zu prüfen\",1,IF(C85=\"überprüft: nein\",2,IF(C85=\"überprüft: ja\",3,IF(C85=\"überprüft: nicht relevant\",10))))","v":1},{"$f":"IF(C85=\"noch zu prüfen\",\"offen\",IF(C85=\"überprüft: nein\",\"kritisch\",IF(C85=\"überprüft: ja\",\"unkritisch\",IF(C85=\"überprüft: nicht relevant\",\"unkritisch\"))))","v":"offen"},{"$f":"IF('II Eingabe Einreichplanung'!F85=\"\",\"\",'II Eingabe Einreichplanung'!F85)","v":""}]
[null,"Sind die Kompensationsmaßnahmen dazu geeignet, mögliche festgestellte negative Auswirkungen zu vermeiden, zu vermindern bzw. auszugleichen?",{"$f":"'II Eingabe Einreichplanung'!C86","v":"noch zu prüfen"},{"$f":"IF(C86=\"noch zu prüfen\",1,IF(C86=\"überprüft: nein\",2,IF(C86=\"überprüft: ja\",3,IF(C86=\"überprüft: nicht relevant\",10))))","v":1},{"$f":"IF(C86=\"noch zu prüfen\",\"offen\",IF(C86=\"überprüft: nein\",\"kritisch\",IF(C86=\"überprüft: ja\",\"unkritisch\",IF(C86=\"überprüft: nicht relevant\",\"unkritisch\"))))","v":"offen"},{"$f":"IF('II Eingabe Einreichplanung'!F86=\"\",\"\",'II Eingabe Einreichplanung'!F86)","v":""}]
[null,"Ist eine Abwertung des erhobenen Ist-Zustandes im Sinne der Bewertungsskala des Pflichtwasserleitfadens (Seite 8) gegeben?",{"$f":"'II Eingabe Einreichplanung'!C87","v":"noch zu prüfen"},1,{"$f":"IF(C87=\"noch zu prüfen\",\"offen\",IF(C87=\"überprüft: nein\",\"unkritisch\",IF(C87=\"überprüft: ja\",\"kritisch\")))","v":"offen"},{"$f":"IF('II Eingabe Einreichplanung'!F87=\"\",\"\",'II Eingabe Einreichplanung'!F87)","v":""}]
[null,"Ist ein etwaiger Flächenbedarf für die Kompensationsmaßnahme(n) vertraglich gesichert?",{"$f":"'II Eingabe Einreichplanung'!C88","v":"noch zu prüfen"},{"$f":"IF(C88=\"noch zu prüfen\",1,IF(C88=\"überprüft: nein\",2,IF(C88=\"überprüft: ja\",3,IF(C88=\"überprüft: nicht relevant\",10))))","v":1},{"$f":"IF(C88=\"noch zu prüfen\",\"offen\",IF(C88=\"überprüft: nein\",\"kritisch\",IF(C88=\"überprüft: ja\",\"unkritisch\",IF(C88=\"überprüft: nicht relevant\",\"unkritisch\"))))","v":"offen"},{"$f":"IF('II Eingabe Einreichplanung'!F88=\"\",\"\",'II Eingabe Einreichplanung'!F88)","v":""}]
[null,"Ist die Umsetzung der Kompensationsmaßnahme(n) vertraglich gesichert?",{"$f":"'II Eingabe Einreichplanung'!C89","v":"noch zu prüfen"},{"$f":"IF(C89=\"noch zu prüfen\",1,IF(C89=\"überprüft: nein\",2,IF(C89=\"überprüft: ja\",3,IF(C89=\"überprüft: nicht relevant\",10))))","v":1},{"$f":"IF(C89=\"noch zu prüfen\",\"offen\",IF(C89=\"überprüft: nein\",\"kritisch\",IF(C89=\"überprüft: ja\",\"unkritisch\",IF(C89=\"überprüft: nicht relevant\",\"unkritisch\"))))","v":"offen"},{"$f":"IF('II Eingabe Einreichplanung'!F89=\"\",\"\",'II Eingabe Einreichplanung'!F89)","v":""}]
[null,"Vegetation und Biotoptypen"]
[null,"Wurden die Erhebungsmethoden gemäß Pflichtwasserleitfaden  angewandt?",{"$f":"'II Eingabe Einreichplanung'!C91","v":"noch zu prüfen"},{"$f":"IF(C91=\"noch zu prüfen\",1,IF(C91=\"überprüft: nein\",2,IF(C91=\"überprüft: ja\",3)))","v":1},{"$f":"IF(C91=\"noch zu prüfen\",\"offen\",IF(C91=\"überprüft: nein\",\"kritisch\",IF(C91=\"überprüft: ja\",\"unkritisch\")))","v":"offen"},{"$f":"IF('II Eingabe Einreichplanung'!F91=\"\",\"\",'II Eingabe Einreichplanung'!F91)","v":""}]
[null,"Wurden die vorgegebenen Methoden zur Bestandsbewertung in Anlehnung an die Vorgaben der ÖNORM M 6232 berücksichtigt?",{"$f":"'II Eingabe Einreichplanung'!C92","v":"noch zu prüfen"},1,{"$f":"IF(C92=\"noch zu prüfen\",\"offen\",IF(C92=\"überprüft: nein\",\"kritisch\",IF(C92=\"überprüft: ja\",\"unkritisch\")))","v":"offen"},{"$f":"IF('II Eingabe Einreichplanung'!F92=\"\",\"\",'II Eingabe Einreichplanung'!F92)","v":""}]
[null,"Ist die Bestandsbewertung nachvollziehbar und plausibel?",{"$f":"'II Eingabe Einreichplanung'!C93","v":"noch zu prüfen"},1,{"$f":"IF(C93=\"noch zu prüfen\",\"offen\",IF(C93=\"überprüft: nein\",\"kritisch\",IF(C93=\"überprüft: ja\",\"unkritisch\")))","v":"offen"},{"$f":"IF('II Eingabe Einreichplanung'!F93=\"\",\"\",'II Eingabe Einreichplanung'!F93)","v":""}]
[null,"Ist die durchgeführte Auswirkungsanalyse nachvollziehbar und plausibel?",{"$f":"'II Eingabe Einreichplanung'!C94","v":"noch zu prüfen"},1,{"$f":"IF(C94=\"noch zu prüfen\",\"offen\",IF(C94=\"überprüft: nein\",\"kritisch\",IF(C94=\"überprüft: ja\",\"unkritisch\")))","v":"offen"},{"$f":"IF('II Eingabe Einreichplanung'!F94=\"\",\"\",'II Eingabe Einreichplanung'!F94)","v":""}]
[null,"Wurden Kompensationsmaßnahmen im Sinne des Pflichtwasserleitfadens verwirklicht?",{"$f":"'II Eingabe Einreichplanung'!C95","v":"noch zu prüfen"},{"$f":"IF(C95=\"noch zu prüfen\",1,IF(C95=\"überprüft: nein\",2,IF(C95=\"überprüft: ja\",3,IF(C95=\"überprüft: nicht relevant\",10))))","v":1},{"$f":"IF(C95=\"noch zu prüfen\",\"offen\",IF(C95=\"überprüft: nein\",\"kritisch\",IF(C95=\"überprüft: ja\",\"unkritisch\",IF(C95=\"überprüft: nicht relevant\",\"unkritisch\"))))","v":"offen"},{"$f":"IF('II Eingabe Einreichplanung'!F95=\"\",\"\",'II Eingabe Einreichplanung'!F95)","v":""}]
[null,"Sind die Kompensationsmaßnahmen dazu geeignet, mögliche festgestellte negative Auswirkungen zu vermeiden, zu vermindern bzw. auszugleichen?",{"$f":"'II Eingabe Einreichplanung'!C96","v":"noch zu prüfen"},1,{"$f":"IF(C96=\"noch zu prüfen\",\"offen\",IF(C96=\"überprüft: nein\",\"kritisch\",IF(C96=\"überprüft: ja\",\"unkritisch\")))","v":"offen"},{"$f":"IF('II Eingabe Einreichplanung'!F96=\"\",\"\",'II Eingabe Einreichplanung'!F96)","v":""}]
[null,"Ist eine Abwertung des erhobenen Ist-Zustandes im Sinne der Bewertungsskala des Pflichtwasserleitfadens (Seite 8) gegeben?",{"$f":"'II Eingabe Einreichplanung'!C97","v":"noch zu prüfen"},1,{"$f":"IF(C97=\"noch zu prüfen\",\"offen\",IF(C97=\"überprüft: nein\",\"unkritisch\",IF(C97=\"überprüft: ja\",\"kritisch\")))","v":"offen"},{"$f":"IF('II Eingabe Einreichplanung'!F97=\"\",\"\",'II Eingabe Einreichplanung'!F97)","v":""}]
[null,"Ist ein etwaiger Flächenbedarf für die Kompensationsmaßnahme(n) vertraglich gesichert?",{"$f":"'II Eingabe Einreichplanung'!C98","v":"noch zu prüfen"},{"$f":"IF(C98=\"noch zu prüfen\",1,IF(C98=\"überprüft: nein\",2,IF(C98=\"überprüft: ja\",3,IF(C98=\"überprüft: nicht relevant\",10))))","v":1},{"$f":"IF(C98=\"noch zu prüfen\",\"offen\",IF(C98=\"überprüft: nein\",\"kritisch\",IF(C98=\"überprüft: ja\",\"unkritisch\",IF(C98=\"überprüft: nicht relevant\",\"unkritisch\"))))","v":"offen"},{"$f":"IF('II Eingabe Einreichplanung'!F98=\"\",\"\",'II Eingabe Einreichplanung'!F98)","v":""}]
[null,"Ist die Umsetzung der Kompensationsmaßnahme(n) vertraglich gesichert?",{"$f":"'II Eingabe Einreichplanung'!C99","v":"noch zu prüfen"},{"$f":"IF(C99=\"noch zu prüfen\",1,IF(C99=\"überprüft: nein\",2,IF(C99=\"überprüft: ja\",3,IF(C99=\"überprüft: nicht relevant\",10))))","v":1},{"$f":"IF(C99=\"noch zu prüfen\",\"offen\",IF(C99=\"überprüft: nein\",\"kritisch\",IF(C99=\"überprüft: ja\",\"unkritisch\",IF(C99=\"überprüft: nicht relevant\",\"unkritisch\"))))","v":"offen"},{"$f":"IF('II Eingabe Einreichplanung'!F99=\"\",\"\",'II Eingabe Einreichplanung'!F99)","v":""}]
[null,"Gewässerspezifisches Landschaftsbild (wassermorphologische Betrachtung)"]
[null,"Wurden die Erhebungsmethoden gemäß Pflichtwasserleitfaden angewandt?",{"$f":"'II Eingabe Einreichplanung'!C101","v":"noch zu prüfen"},{"$f":"IF(C101=\"noch zu prüfen\",1,IF(C101=\"überprüft: nein\",2,IF(C101=\"überprüft: ja\",3)))","v":1},{"$f":"IF(C101=\"noch zu prüfen\",\"offen\",IF(C101=\"überprüft: nein\",\"kritisch\",IF(C101=\"überprüft: ja\",\"unkritisch\")))","v":"offen"},{"$f":"IF('II Eingabe Einreichplanung'!F101=\"\",\"\",'II Eingabe Einreichplanung'!F101)","v":""}]
[null,"Wurden die vorgegebenen Teilkriterien zur wassermorphologischen Betrachtung gemäß Pflichtwasserleitfaden berücksichtigt?",{"$f":"'II Eingabe Einreichplanung'!C102","v":"noch zu prüfen"},1,{"$f":"IF(C102=\"noch zu prüfen\",\"offen\",IF(C102=\"überprüft: nein\",\"kritisch\",IF(C102=\"überprüft: ja\",\"unkritisch\")))","v":"offen"},{"$f":"IF('II Eingabe Einreichplanung'!F102=\"\",\"\",'II Eingabe Einreichplanung'!F102)","v":""}]
[null,"Ist schon bei Abgabe der Basisdotation der weitestgehende Erhalt der wassermorphologischen Ausprägungen entsprechend dem Ist-Zustand gegeben?",{"$f":"'II Eingabe Einreichplanung'!C103","v":"noch zu prüfen"},1,{"$f":"IF(C103=\"noch zu prüfen\",\"offen\",IF(C103=\"überprüft: nein\",\"kritisch\",IF(C103=\"überprüft: ja\",\"unkritisch\")))","v":"offen"},{"$f":"IF('II Eingabe Einreichplanung'!F103=\"\",\"\",'II Eingabe Einreichplanung'!F103)","v":""}]
[null,"Wurde zum Nachweis des weitestgehenden Erhaltes der wassermorphologischen Ausprägungen eine Fotodokumentation vorgelegt?",{"$f":"'II Eingabe Einreichplanung'!C104","v":"noch zu prüfen"},1,{"$f":"IF(C104=\"noch zu prüfen\",\"offen\",IF(C104=\"überprüft: nein\",\"kritisch\",IF(C104=\"überprüft: ja\",\"unkritisch\")))","v":"offen"},{"$f":"IF('II Eingabe Einreichplanung'!F104=\"\",\"\",'II Eingabe Einreichplanung'!F104)","v":""}]
[null,"Landschaftliche Einbindung (Landschaftsbild)"]
[null,"Wurden sämtliche erforderliche Anlagen in ihrer Dimension und ihrem Flächenverbrauch weitestgehend unter Berücksichtigung der naturräumlichen Gegebenheiten geplant?",{"$f":"'II Eingabe Einreichplanung'!C106","v":"noch zu prüfen"},{"$f":"IF(C106=\"noch zu prüfen\",1,IF(C106=\"überprüft: nein\",2,IF(C106=\"überprüft: ja\",3)))","v":1},{"$f":"IF(C106=\"noch zu prüfen\",\"offen\",IF(C106=\"überprüft: nein\",\"kritisch\",IF(C106=\"überprüft: ja\",\"unkritisch\")))","v":"offen"},{"$f":"IF('II Eingabe Einreichplanung'!F106=\"\",\"\",'II Eingabe Einreichplanung'!F106)","v":""}]
[null,"Wurde auf die gegebene Landschaftscharakteristik bzw. auf die Integration der baulichen Maßnahmen in den gegebenen Naturraum Rücksicht genommen?",{"$f":"'II Eingabe Einreichplanung'!C107","v":"noch zu prüfen"},1,{"$f":"IF(C107=\"noch zu prüfen\",\"offen\",IF(C107=\"überprüft: nein\",\"kritisch\",IF(C107=\"überprüft: ja\",\"unkritisch\")))","v":"offen"},{"$f":"IF('II Eingabe Einreichplanung'!F107=\"\",\"\",'II Eingabe Einreichplanung'!F107)","v":""}]
[null,"Werden zur baulichen Ausführung ortsübliche Materialien verwendet?",{"$f":"'II Eingabe Einreichplanung'!C108","v":"noch zu prüfen"},1,{"$f":"IF(C108=\"noch zu prüfen\",\"offen\",IF(C108=\"überprüft: nein\",\"kritisch\",IF(C108=\"überprüft: ja\",\"unkritisch\")))","v":"offen"},{"$f":"IF('II Eingabe Einreichplanung'!F108=\"\",\"\",'II Eingabe Einreichplanung'!F108)","v":""}]
[]
[null,"Orientierungswerte als Rahmenwerte zur Beurteilung der Basisdotation der Pflichtwassermenge"]
[null,"Tiefen"]
[null,"Wurde eine ausreichende Anzahl von Querprofilen gemäß Pflichtwasserleitfaden untersucht, um auf Basis der örtlichen Gegebenheiten bei vorgesehener Basisdotation die Erreichung der Mindesttiefen plausibel nachweisen zu können?",{"$f":"'II Eingabe Einreichplanung'!C112","v":"noch zu prüfen"},{"$f":"IF(C112=\"noch zu prüfen\",1,IF(C112=\"überprüft: nein\",2,IF(C112=\"überprüft: ja\",3)))","v":1},{"$f":"IF(C112=\"noch zu prüfen\",\"offen\",IF(C112=\"überprüft: nein\",\"kritisch\",IF(C112=\"überprüft: ja\",\"unkritisch\")))","v":"offen"},{"$f":"IF('II Eingabe Einreichplanung'!F112=\"\",\"\",'II Eingabe Einreichplanung'!F112)","v":""}]
[null,"Ist die Verortung der Messpunkte nachvollziehbar?",{"$f":"'II Eingabe Einreichplanung'!C113","v":"noch zu prüfen"},{"$f":"IF(C113=\"noch zu prüfen\",1,IF(C113=\"überprüft: nein\",2,IF(C113=\"überprüft: ja\",3)))","v":1},{"$f":"IF(C113=\"noch zu prüfen\",\"offen\",IF(C113=\"überprüft: nein\",\"kritisch\",IF(C113=\"überprüft: ja\",\"unkritisch\")))","v":"offen"},{"$f":"IF('II Eingabe Einreichplanung'!F113=\"\",\"\",'II Eingabe Einreichplanung'!F113)","v":""}]
[null,"Werden die vorgegebenen Mindesttiefen für den Bereich der Schnelle und im Talweg in Abhängigkeit des Gewässertyps erreicht?",{"$f":"'II Eingabe Einreichplanung'!C114","v":"noch zu prüfen"},{"$f":"IF(C114=\"noch zu prüfen\",1,IF(C114=\"überprüft: nein\",2,IF(C114=\"überprüft: ja\",3)))","v":1},{"$f":"IF(C114=\"noch zu prüfen\",\"offen\",IF(C114=\"überprüft: nein\",\"kritisch\",IF(C114=\"überprüft: ja\",\"unkritisch\")))","v":"offen"},{"$f":"IF('II Eingabe Einreichplanung'!F114=\"\",\"\",'II Eingabe Einreichplanung'!F114)","v":""}]
[null,"Ist aufgrund der Auswirkungsanalyse für relevante, naturschutzfachlich wertbestimmende Arten eine vom Orientierungswert abweichende Mindesttiefe gewählt worden und wurde diese fachlich nachvollziehbar begründet?",{"$f":"'II Eingabe Einreichplanung'!C115","v":"noch zu prüfen"},{"$f":"IF(C115=\"noch zu prüfen\",1,IF(C115=\"überprüft: ja, abgewichen, nachvollziehbar\",11,IF(C115=\"überprüft: nein, nicht abgewichen\",12,IF(C115=\"überprüft: ja abgewichen, nicht nachvollziehbar\",13))))","v":1},{"$f":"IF(C115=\"noch zu prüfen\",\"offen\",IF(C115=\"überprüft: ja, abgewichen, nachvollziehbar\",\"unkritisch\",IF(C115=\"überprüft: nein, nicht abgewichen\",\"unkritisch\",IF(C115=\"überprüft: ja abgewichen, nicht nachvollziehbar\",\"kritisch\"))))","v":"offen"},{"$f":"IF('II Eingabe Einreichplanung'!F115=\"\",\"\",'II Eingabe Einreichplanung'!F115)","v":""}]
[null,"Fließgeschwindigkeiten"]
[null,"Wurde eine ausreichende Anzahl von Querprofilen gemäß Pflichtwasserleitfaden untersucht, um auf Basis der örtlichen Gegebenheiten bei vorgesehener Basisdotation die Erreichung der mittleren sohlnahen Fließgeschwindigkeit (0,25 m/s) plausibel nachweisen zu können?",{"$f":"'II Eingabe Einreichplanung'!C117","v":"noch zu prüfen"},{"$f":"IF(C117=\"noch zu prüfen\",1,IF(C117=\"überprüft: nein\",2,IF(C117=\"überprüft: ja\",3)))","v":1},{"$f":"IF(C117=\"noch zu prüfen\",\"offen\",IF(C117=\"überprüft: nein\",\"kritisch\",IF(C117=\"überprüft: ja\",\"unkritisch\")))","v":"offen"},{"$f":"IF('II Eingabe Einreichplanung'!F117=\"\",\"\",'II Eingabe Einreichplanung'!F117)","v":""}]
[null,"Ist die Verortung der Messpunkte nachvollziehbar?",{"$f":"'II Eingabe Einreichplanung'!C118","v":"noch zu prüfen"},{"$f":"IF(C118=\"noch zu prüfen\",1,IF(C118=\"überprüft: nein\",2,IF(C118=\"überprüft: ja\",3)))","v":1},{"$f":"IF(C118=\"noch zu prüfen\",\"offen\",IF(C118=\"überprüft: nein\",\"kritisch\",IF(C118=\"überprüft: ja\",\"unkritisch\")))","v":"offen"},{"$f":"IF('II Eingabe Einreichplanung'!F118=\"\",\"\",'II Eingabe Einreichplanung'!F118)","v":""}]
[null,"Ist aufgrund der Auswirkungsanalyse  für relevante, naturschutzfachlich wertbestimmende Arten eine vom Orientierungswert abweichende mittlere sohlnahe Fließgeschwindigkeit gewählt worden  und wurde diese fachlich nachvollziehbar begründet?",{"$f":"'II Eingabe Einreichplanung'!C119","v":"noch zu prüfen"},{"$f":"IF(C119=\"noch zu prüfen\",1,IF(C119=\"überprüft: ja, abgewichen, nachvollziehbar\",11,IF(C119=\"überprüft: nein, nicht abgewichen\",12,IF(C119=\"überprüft: ja abgewichen, nicht nachvollziehbar\",13))))","v":1},{"$f":"IF(C119=\"noch zu prüfen\",\"offen\",IF(C119=\"überprüft: ja, abgewichen, nachvollziehbar\",\"unkritisch\",IF(C119=\"überprüft: nein, nicht abgewichen\",\"unkritisch\",IF(C119=\"überprüft: ja abgewichen, nicht nachvollziehbar\",\"kritisch\"))))","v":"offen"},{"$f":"IF('II Eingabe Einreichplanung'!F119=\"\",\"\",'II Eingabe Einreichplanung'!F119)","v":""}]
[null,"Benetzungsgrad"]
[null,"Wurde eine ausreichende Anzahl von Querprofilen gemäß Pflichtwasserleitfaden untersucht, um auf Basis der örtlichen Gegebenheiten bei vorgesehener Basisdotation die Erreichung des erforderlichen Benetzungsgrades plausibel nachweisen zu können?",{"$f":"'II Eingabe Einreichplanung'!C121","v":"noch zu prüfen"},{"$f":"IF(C121=\"noch zu prüfen\",1,IF(C121=\"überprüft: nein\",2,IF(C121=\"überprüft: ja\",3)))","v":1},{"$f":"IF(C121=\"noch zu prüfen\",\"offen\",IF(C121=\"überprüft: nein\",\"kritisch\",IF(C121=\"überprüft: ja\",\"unkritisch\")))","v":"offen"},{"$f":"IF('II Eingabe Einreichplanung'!F121=\"\",\"\",'II Eingabe Einreichplanung'!F121)","v":""}]
[null,"Ist die Verortung der Messpunkte nachvollziehbar?",{"$f":"'II Eingabe Einreichplanung'!C122","v":"noch zu prüfen"},{"$f":"IF(C122=\"noch zu prüfen\",1,IF(C122=\"überprüft: nein\",2,IF(C122=\"überprüft: ja\",3)))","v":1},{"$f":"IF(C122=\"noch zu prüfen\",\"offen\",IF(C122=\"überprüft: nein\",\"kritisch\",IF(C122=\"überprüft: ja\",\"unkritisch\")))","v":"offen"},{"$f":"IF('II Eingabe Einreichplanung'!F122=\"\",\"\",'II Eingabe Einreichplanung'!F122)","v":""}]
[null,"Sind im Zeitraum von März bis Oktober im Mittel zumindest 70% des Gewässerbettes benetzt?",{"$f":"'II Eingabe Einreichplanung'!C123","v":"noch zu prüfen"},{"$f":"IF(C123=\"noch zu prüfen\",1,IF(C123=\"überprüft: nein\",2,IF(C123=\"überprüft: ja\",3)))","v":1},{"$f":"IF(C123=\"noch zu prüfen\",\"offen\",IF(C123=\"überprüft: nein\",\"kritisch\",IF(C123=\"überprüft: ja\",\"unkritisch\")))","v":"offen"},{"$f":"IF('II Eingabe Einreichplanung'!F123=\"\",\"\",'II Eingabe Einreichplanung'!F123)","v":""}]
[null,"Ist aufgrund der Auswirkungsanalyse für relevante, naturschutzfachlich wertbestimmende Arten eine vom Orientierungswert abweichende Benetzung des Gewässerbettes gewählt worden und wurde diese fachlich nachvollziehbar begründet?",{"$f":"'II Eingabe Einreichplanung'!C124","v":"noch zu prüfen"},{"$f":"IF(C124=\"noch zu prüfen\",1,IF(C124=\"überprüft: ja, abgewichen, nachvollziehbar\",11,IF(C124=\"überprüft: nein, nicht abgewichen\",12,IF(C124=\"überprüft: ja abgewichen, nicht nachvollziehbar\",13))))","v":1},{"$f":"IF(C124=\"noch zu prüfen\",\"offen\",IF(C124=\"überprüft: ja, abgewichen, nachvollziehbar\",\"unkritisch\",IF(C124=\"überprüft: nein, nicht abgewichen\",\"unkritisch\",IF(C124=\"überprüft: ja abgewichen, nicht nachvollziehbar\",\"kritisch\"))))","v":"offen"},{"$f":"IF('II Eingabe Einreichplanung'!F124=\"\",\"\",'II Eingabe Einreichplanung'!F124)","v":""}]
[null,"Abflussmenge"]
[null,"Werden an rund 50 Prozent der Tage innerhalb der Vegetationsperiode zumindest 20 Prozent vom natürlichen Abfluss als Pflichtwasser abgegeben?",{"$f":"'II Eingabe Einreichplanung'!C126","v":"noch zu prüfen"},{"$f":"IF(C126=\"noch zu prüfen\",1,IF(C126=\"überprüft: nein\",2,IF(C126=\"überprüft: ja\",3)))","v":1},{"$f":"IF(C126=\"noch zu prüfen\",\"offen\",IF(C126=\"überprüft: nein\",\"kritisch\",IF(C126=\"überprüft: ja\",\"unkritisch\")))","v":"offen"},{"$f":"IF('II Eingabe Einreichplanung'!F126=\"\",\"\",'II Eingabe Einreichplanung'!F126)","v":""}]
[null,"Werden 12 Prozent vom natürlichen Abfluss innerhalb der Vegetationsperiode als Pflichtwasser abgegeben?",{"$f":"'II Eingabe Einreichplanung'!C127","v":"noch zu prüfen"},{"$f":"IF(C127=\"noch zu prüfen\",1,IF(C127=\"überprüft: nein\",2,IF(C127=\"überprüft: ja\",3)))","v":1},{"$f":"IF(C127=\"noch zu prüfen\",\"offen\",IF(C127=\"überprüft: nein\",\"kritisch\",IF(C127=\"überprüft: ja\",\"unkritisch\")))","v":"offen"},{"$f":"IF('II Eingabe Einreichplanung'!F127=\"\",\"\",'II Eingabe Einreichplanung'!F127)","v":""}]
[null,"Ist aufgrund der Auswirkungsanalyse für relevante, naturschutzfachlich wertbestimmende Arten bzw. Biotope eine vom Orientierungswert abweichende  Abflussmenge gewählt worden und wurde diese fachlich nachvollziehbar begründet?",{"$f":"'II Eingabe Einreichplanung'!C128","v":"noch zu prüfen"},{"$f":"IF(C128=\"noch zu prüfen\",1,IF(C128=\"überprüft: ja, abgewichen, nachvollziehbar\",11,IF(C128=\"überprüft: nein, nicht abgewichen\",12,IF(C128=\"überprüft: ja abgewichen, nicht nachvollziehbar\",13))))","v":1},{"$f":"IF(C128=\"noch zu prüfen\",\"offen\",IF(C128=\"überprüft: ja, abgewichen, nachvollziehbar\",\"unkritisch\",IF(C128=\"überprüft: nein, nicht abgewichen\",\"unkritisch\",IF(C128=\"überprüft: ja abgewichen, nicht nachvollziehbar\",\"kritisch\"))))","v":"offen"},{"$f":"IF('II Eingabe Einreichplanung'!F128=\"\",\"\",'II Eingabe Einreichplanung'!F128)","v":""}]
[]
[null,"Orientierungswerte als Rahmenwerte zur Beurteilung der Obergrenze der dynamischen Pflichtwassermenge"]
[null,"Wurde als Wert der Obergrenze der dynamischen Pflichtwassermenge 20% des natürlichen Zuflusses bei Erreichen der Ausbauwassermenge (Qa) gewählt?",{"$f":"'II Eingabe Einreichplanung'!C131","v":"noch zu prüfen"},{"$f":"IF(C131=\"noch zu prüfen\",1,IF(C131=\"überprüft: nein\",2,IF(C131=\"überprüft: ja\",3)))","v":1},{"$f":"IF(C131=\"noch zu prüfen\",\"offen\",IF(C131=\"überprüft: nein\",\"kritisch\",IF(C131=\"überprüft: ja\",\"unkritisch\")))","v":"offen"},{"$f":"IF('II Eingabe Einreichplanung'!F131=\"\",\"\",'II Eingabe Einreichplanung'!F131)","v":""}]
[null,"Wurde die Abflussdynamik zwischen Basisdotation und Obergrenze derart gewählt, dass für relevante, naturschutzfachlich wertbestimmende Arten bzw. Biotope im Jahresverlauf die jeweiligen Habitatansprüche sichergestellt werden?",{"$f":"'II Eingabe Einreichplanung'!C132","v":"noch zu prüfen"},{"$f":"IF(C132=\"noch zu prüfen\",1,IF(C132=\"überprüft: nein\",2,IF(C132=\"überprüft: ja\",3)))","v":1},{"$f":"IF(C132=\"noch zu prüfen\",\"offen\",IF(C132=\"überprüft: nein\",\"kritisch\",IF(C132=\"überprüft: ja\",\"unkritisch\")))","v":"offen"},{"$f":"IF('II Eingabe Einreichplanung'!F132=\"\",\"\",'II Eingabe Einreichplanung'!F132)","v":""}]
[null,"Ist aufgrund der Auswirkungsanalyse für relevante, naturschutzfachlich wertbestimmende Arten bzw. Biotope eine vom Orientierungswert abweichende  Obergrenze gewählt worden und wurde diese fachlich nachvollziehbar begründet?",{"$f":"'II Eingabe Einreichplanung'!C133","v":"noch zu prüfen"},{"$f":"IF(C133=\"noch zu prüfen\",1,IF(C133=\"überprüft: ja, abgewichen, nachvollziehbar\",11,IF(C133=\"überprüft: nein, nicht abgewichen\",12,IF(C133=\"überprüft: ja abgewichen, nicht nachvollziehbar\",13))))","v":1},{"$f":"IF(C133=\"noch zu prüfen\",\"offen\",IF(C133=\"überprüft: ja, abgewichen, nachvollziehbar\",\"unkritisch\",IF(C133=\"überprüft: nein, nicht abgewichen\",\"unkritisch\",IF(C133=\"überprüft: ja abgewichen, nicht nachvollziehbar\",\"kritisch\"))))","v":"offen"},{"$f":"IF('II Eingabe Einreichplanung'!F133=\"\",\"\",'II Eingabe Einreichplanung'!F133)","v":""}]
[]
[null,"Ergänzende Fragen zur Pflichtwasserabgabe"]
[null,"Liegt das Verhältnis zwischen Ausbaudurchfluss (Qa) und Mittelwasserabfluss (MQ) zwischen 1,2 und 1,6?\n(Dieses Verhältnis entspricht einem gängigen Ausbaugrad.)",{"$f":"'II Eingabe Einreichplanung'!C136","v":"noch zu prüfen"},{"$f":"IF(C136=\"noch zu prüfen\",1,IF(C136=\"überprüft: nein\",2,IF(C136=\"überprüft: ja\",3)))","v":1},{"$f":"IF(C136=\"noch zu prüfen\",\"offen\",IF(C136=\"überprüft: nein\",\"kritisch\",IF(C136=\"überprüft: ja\",\"unkritisch\")))","v":"offen"},{"$f":"IF('II Eingabe Einreichplanung'!F136=\"\",\"\",'II Eingabe Einreichplanung'!F136)","v":""}]
[null,"Ist der Zusammenhang zwischen natürlicher Wasserführung und dynamischer Pflichtwasserabgabe vorzugsweise über eine lineare Funktion oder über eine logarithmische Funktion abgeleitet?",{"$f":"'II Eingabe Einreichplanung'!C137","v":"noch zu prüfen"},{"$f":"IF(C137=\"noch zu prüfen\",1,IF(C137=\"überprüft: nein\",2,IF(C137=\"überprüft: ja\",3)))","v":1},{"$f":"IF(C137=\"noch zu prüfen\",\"offen\",IF(C137=\"überprüft: nein\",\"kritisch\",IF(C137=\"überprüft: ja\",\"unkritisch\")))","v":"offen"},{"$f":"IF('II Eingabe Einreichplanung'!F137=\"\",\"\",'II Eingabe Einreichplanung'!F137)","v":""}]
[null,"Ist eine verständliche Abbildung der Jahresganglinie und/oder der Dauerlinie der vorgesehenen Pflichtwasserabgabe in den Unterlagen vorhanden? ",{"$f":"'II Eingabe Einreichplanung'!C138","v":"noch zu prüfen"},1,{"$f":"IF(C138=\"noch zu prüfen\",\"offen\",IF(C138=\"überprüft: nein\",\"kritisch\",IF(C138=\"überprüft: ja\",\"unkritisch\")))","v":"offen"},{"$f":"IF('II Eingabe Einreichplanung'!F138=\"\",\"\",'II Eingabe Einreichplanung'!F138)","v":""}]
[null,"Ist die Jahresganglinie der Pflichtwasserabgabe als gerade Linie ausgewiesen?",{"$f":"'II Eingabe Einreichplanung'!C139","v":"noch zu prüfen"},1,{"$f":"IF(C139=\"noch zu prüfen\",\"offen\",IF(C139=\"überprüft: nein\",\"unkritisch\",IF(C139=\"überprüft: ja\",\"kritisch\")))","v":"offen"},{"$f":"IF('II Eingabe Einreichplanung'!F139=\"\",\"\",'II Eingabe Einreichplanung'!F139)","v":""}]
[null,"Ist die Dauerlinie der Pflichtwasserabgabe als gerade Linie ausgewiesen?",{"$f":"'II Eingabe Einreichplanung'!C140","v":"noch zu prüfen"},{"$f":"IF(C140=\"noch zu prüfen\",1,IF(C140=\"überprüft: nein\",2,IF(C140=\"überprüft: ja\",3)))","v":1},{"$f":"IF(C140=\"noch zu prüfen\",\"offen\",IF(C140=\"überprüft: nein\",\"unkritisch\",IF(C140=\"überprüft: ja\",\"kritisch\")))","v":"offen"},{"$f":"IF('II Eingabe Einreichplanung'!F140=\"\",\"\",'II Eingabe Einreichplanung'!F140)","v":""}]
[null,"Sind die Abgabemodalitäten der konstanten bzw. dynamischen Pflichtwassermenge übersichtlich dargestellt?",{"$f":"'II Eingabe Einreichplanung'!C141","v":"noch zu prüfen"},{"$f":"IF(C141=\"noch zu prüfen\",1,IF(C141=\"überprüft: nein\",2,IF(C141=\"überprüft: ja\",3)))","v":1},{"$f":"IF(C141=\"noch zu prüfen\",\"offen\",IF(C141=\"überprüft: nein\",\"kritisch\",IF(C141=\"überprüft: ja\",\"unkritisch\")))","v":"offen"},{"$f":"IF('II Eingabe Einreichplanung'!F141=\"\",\"\",'II Eingabe Einreichplanung'!F141)","v":""}]
[null,"Sind visuelle Kontrollmöglichkeiten der konstanten bzw. dynamischen Pflichtwassermenge vorgesehen?",{"$f":"'II Eingabe Einreichplanung'!C142","v":"noch zu prüfen"},{"$f":"IF(C142=\"noch zu prüfen\",1,IF(C142=\"überprüft: nein\",2,IF(C142=\"überprüft: ja\",3)))","v":1},{"$f":"IF(C142=\"noch zu prüfen\",\"offen\",IF(C142=\"überprüft: nein\",\"kritisch\",IF(C142=\"überprüft: ja\",\"unkritisch\")))","v":"offen"},{"$f":"IF('II Eingabe Einreichplanung'!F142=\"\",\"\",'II Eingabe Einreichplanung'!F142)","v":""}]
[]
[null,"Umweltbaubegleitung im Sinne der RVS 04.05.11"]
[null,"Wird durch den Projektanten eine Umweltbaubegleitung vorgesehen und benannt?",{"$f":"'II Eingabe Einreichplanung'!C145","v":"noch zu prüfen"},{"$f":"IF(C145=\"noch zu prüfen\",1,IF(C145=\"überprüft: nein\",2,IF(C145=\"überprüft: ja\",3)))","v":1},{"$f":"IF(C145=\"noch zu prüfen\",\"offen\",IF(C145=\"überprüft: nein\",\"kritisch\",IF(C145=\"überprüft: ja\",\"unkritisch\")))","v":"offen"},{"$f":"IF('II Eingabe Einreichplanung'!F145=\"\",\"\",'II Eingabe Einreichplanung'!F145)","v":""}]
[]
[null,"III. FRAGEN ZUM ARTENSCHUTZ"]
[]
[null,"Checkliste Artenschutz",null,{"$f":"IF(C149=\"noch zu prüfen\",1,IF(C149=\"überprüft: nein\",2,IF(C149=\"überprüft: ja\",3,)))","v":0}]
[null,"Wurde eine ausreichende Erfassung der im Untersuchungsraum nach Potenzialabschätzung ggf. vorkommenden Arten des Anhangs IV der FFH-RL oder Vogelarten gem. VS-RL durchgeführt? [Hinweis: Ohne eine solche können i. d. R. die nachfolgenden Fragen nicht beantwortet werden]",{"$f":"'II Eingabe Einreichplanung'!C150","v":"noch zu prüfen"},{"$f":"IF(C150=\"noch zu prüfen\",1,IF(C150=\"überprüft: nein\",2,IF(C150=\"überprüft: ja\",3)))","v":1},{"$f":"IF(C150=\"noch zu prüfen\",\"offen\",IF(C150=\"überprüft: nein\",\"kritisch\",IF(C150=\"überprüft: ja\",\"unkritisch\")))","v":"offen"},{"$f":"IF('II Eingabe Einreichplanung'!F150=\"\",\"\",'II Eingabe Einreichplanung'!F150)","v":""}]
[null,"Befinden sich im Untersuchungsraum des Projektes Vorkommen von Arten des Anhangs IV der FFH-RL oder Vogelarten gem. VS-RL?",{"$f":"'II Eingabe Einreichplanung'!C151","v":"noch zu prüfen"},1,{"$f":"IF(C151=\"noch zu prüfen\",\"offen\",IF(C151=\"überprüft: nein\",\"unkritisch\",\"kritisch\"))","v":"offen"},{"$f":"IF('II Eingabe Einreichplanung'!F151=\"\",\"\",'II Eingabe Einreichplanung'!F151)","v":""}]
[null,"Wurde eine ausreichende Bewertung einer möglichen Betroffenheit des Vorkommens von Arten des Anhangs IV der FFH-RL oder Vogelarten gem. VS-RL nach anzuwendenden fachlichen und rechtlichen Kriterien durchgeführt und dokumentiert?",{"$f":"'II Eingabe Einreichplanung'!C152","v":"noch zu prüfen"},{"$f":"IF(C152=\"noch zu prüfen\",1,IF(C152=\"überprüft: nein\",2,IF(C152=\"überprüft: ja\",3)))","v":1},{"$f":"IF(C152=\"noch zu prüfen\",\"offen\",IF(C152=\"überprüft: nein\",\"kritisch\",IF(C152=\"überprüft: ja\",\"unkritisch\")))","v":"offen"},{"$f":"IF('II Eingabe Einreichplanung'!F152=\"\",\"\",'II Eingabe Einreichplanung'!F152)","v":""}]
[null,"Könnten durch das Projekt Individuen von Arten des Anhang IV der FFH-RL oder Vogelarten gem. VS-RL getötet oder vernichtet werden, wobei die Tötung weder als ein \"äußerst seltenes Ereignis\" noch als \"ein im Allgemeinen nicht vermeidbares Ereignis\" eingestuft werden kann?",{"$f":"'II Eingabe Einreichplanung'!C153","v":"noch zu prüfen"},1,{"$f":"IF(C153=\"noch zu prüfen\",\"offen\",IF(C153=\"überprüft: nein\",\"unkritisch\",\"kritisch\"))","v":"offen"},{"$f":"IF('II Eingabe Einreichplanung'!F153=\"\",\"\",'II Eingabe Einreichplanung'!F153)","v":""}]
[null,"Können die relevanten Populationen/Bestände der im Wirkraum vorkommenden Arten des Anhangs IV der FFH-RL oder Vogelarten durch eine projektbedingte Störung erheblich beeinträchtigt werden?",{"$f":"'II Eingabe Einreichplanung'!C154","v":"noch zu prüfen"},1,"offen",{"$f":"IF('II Eingabe Einreichplanung'!F154=\"\",\"\",'II Eingabe Einreichplanung'!F154)","v":""}]
[null,"Können Fortpflanzungs- oder Ruhestätten der im Wirkraum vorkommenden Arten des Anhang IV der FFH-RL oder die Nester der Vogelarten durch das Vorhaben beschädigt oder vernichtet werden?",{"$f":"'II Eingabe Einreichplanung'!C155","v":"noch zu prüfen"},1,"offen",{"$f":"IF('II Eingabe Einreichplanung'!F155=\"\",\"\",'II Eingabe Einreichplanung'!F155)","v":""}]
[null,"Kann der Verbotstatbestand der Zerstörung oder Beschädigung von Lebensstätten durch funktionserhaltende Maßnahmen als nicht berührt eingestuft werden? [Hinweis: Solche Maßnahmen sind nicht für den Aspekt der Tötung von Individuen oder rein kompensatorisch anwendbar]",{"$f":"'II Eingabe Einreichplanung'!C156","v":"noch zu prüfen"},{"$f":"IF(C156=\"noch zu prüfen\",1,IF(C156=\"überprüft: nein\",2,IF(C156=\"überprüft: ja\",3)))","v":1},{"$f":"IF(C156=\"noch zu prüfen\",\"offen\",IF(C156=\"überprüft: nein\",\"kritisch\",IF(C156=\"überprüft: ja\",\"unkritisch\")))","v":"offen"},{"$f":"IF('II Eingabe Einreichplanung'!F156=\"\",\"\",'II Eingabe Einreichplanung'!F156)","v":""}]
[null,"Wurden weitere geschützte Arten nach NschG fachlich ausreichend abgearbeitet/berücksichtigt?",{"$f":"'II Eingabe Einreichplanung'!C157","v":"noch zu prüfen"},{"$f":"IF(C157=\"noch zu prüfen\",1,IF(C157=\"überprüft: nein\",2,IF(C157=\"überprüft: ja\",3)))","v":1},{"$f":"IF(C157=\"noch zu prüfen\",\"offen\",IF(C157=\"überprüft: nein\",\"kritisch\",IF(C157=\"überprüft: ja\",\"unkritisch\")))","v":"offen"},{"$f":"IF('II Eingabe Einreichplanung'!F157=\"\",\"\",'II Eingabe Einreichplanung'!F157)","v":""}]
[]
[null,"Ausnahmeverfahren",null,{"$f":"IF(C159=\"noch zu prüfen\",1,IF(C159=\"überprüft: nein\",2,IF(C159=\"überprüft: ja\",3,)))","v":0}]
[null,"Besteht die Möglichkeit, durch anderweitige Lösungen das Ziel des Projektes zu erreichen und die Verbote des Art. 12 FFH-RL bzw. 5 VS-RL zu beachten?",{"$f":"'II Eingabe Einreichplanung'!C160","v":"noch zu prüfen"},{"$f":"IF(C160=\"noch zu prüfen\",1,IF(C160=\"überprüft: nein\",2,IF(C160=\"überprüft: ja\",3,)))","v":1},{"$f":"IF(C160=\"noch zu prüfen\",\"offen\",IF(C160=\"überprüft: nein\",\"unkritisch\",\"kritisch\"))","v":"offen"},{"$f":"IF('II Eingabe Einreichplanung'!F160=\"\",\"\",'II Eingabe Einreichplanung'!F160)","v":""}]
[null,"Kann der Projektwerber für das Vorhaben zwingende Gründe eines überwiegend öffentlichen Interesses belegen?",{"$f":"'II Eingabe Einreichplanung'!C161","v":"noch zu prüfen"},{"$f":"IF(C161=\"noch zu prüfen\",1,IF(C161=\"überprüft: nein\",2,IF(C161=\"überprüft: ja\",3)))","v":1},{"$f":"IF(C161=\"noch zu prüfen\",\"offen\",IF(C161=\"überprüft: nein\",\"kritisch\",IF(C161=\"überprüft: ja\",\"unkritisch\")))","v":"offen"},{"$f":"IF('II Eingabe Einreichplanung'!F161=\"\",\"\",'II Eingabe Einreichplanung'!F161)","v":""}]
[null,"Wird der Erhaltungszustand der Art im natürlichen Verbreitungsgebiet verschlechtert?",{"$f":"'II Eingabe Einreichplanung'!C162","v":"noch zu prüfen"},{"$f":"IF(C162=\"noch zu prüfen\",1,IF(C162=\"überprüft: nein\",2,IF(C162=\"überprüft: ja\",3,)))","v":1},{"$f":"IF(C162=\"noch zu prüfen\",\"offen\",IF(C162=\"überprüft: nein\",\"unkritisch\",\"kritisch\"))","v":"offen"},{"$f":"IF('II Eingabe Einreichplanung'!F162=\"\",\"\",'II Eingabe Einreichplanung'!F162)","v":""}]
[null,"Befindet sich die Art in der betreffenden biogeographischen Region Österreichs in einem günstigen Erhaltungszustand?",{"$f":"'II Eingabe Einreichplanung'!C163","v":"noch zu prüfen"},{"$f":"IF(C163=\"noch zu prüfen\",1,IF(C163=\"überprüft: nein\",2,IF(C163=\"überprüft: ja\",3)))","v":1},{"$f":"IF(C163=\"noch zu prüfen\",\"offen\",IF(C163=\"überprüft: nein\",\"kritisch\",IF(C163=\"überprüft: ja\",\"unkritisch\")))","v":"offen"},{"$f":"IF('II Eingabe Einreichplanung'!F163=\"\",\"\",'II Eingabe Einreichplanung'!F163)","v":""}]
[null,"Wird die Wiederherstellung eines günstigen Erhaltungszustandes behindert?",{"$f":"'II Eingabe Einreichplanung'!C164","v":"noch zu prüfen"},{"$f":"IF(C164=\"noch zu prüfen\",1,IF(C164=\"überprüft: nein\",2,IF(C164=\"überprüft: ja\",3,)))","v":1},{"$f":"IF(C164=\"noch zu prüfen\",\"offen\",IF(C164=\"überprüft: nein\",\"unkritisch\",\"kritisch\"))","v":"offen"},{"$f":"IF('II Eingabe Einreichplanung'!F164=\"\",\"\",'II Eingabe Einreichplanung'!F164)","v":""}]